DIRECTORATE,SECTION,DIVISON,VENDOR_NAME,VENDOR_SITE_ID,PAYMENT_DATE,VOUCHER_NO,AMOUNT,IRRECOVERABLE VATE,PURPOSE_OF_SPEND,PROCUREMENT_CLASSIFICATION
Early Help & Children�s Safeguarding,Integrated and Safeguarding Services Locality 2,Non-Schools,SIMPSON MILLAR LLP,1287481,02/04/2020,3440236,"5,000.00",0.00,N/A,N/A
Learning Disability Support,Transitions and Ordinary Lives - Learning Disability Support,Transitions and Ordinary Lives,1 BROADSTONE CLOSE,10470,07/04/2020,3445038,"3,216.57",0.00,N/A,N/A
Learning Disability Support,Transitions and Ordinary Lives - Learning Disability Support,Transitions and Ordinary Lives,1 BROADSTONE CLOSE,10470,07/04/2020,3445060,"3,216.57",0.00,N/A,N/A
Learning Disability Support,Transitions and Ordinary Lives - Learning Disability Support,Transitions and Ordinary Lives,1 BROADSTONE CLOSE,10470,07/04/2020,3444954,"3,322.06",0.00,N/A,N/A
Learning Disability Support,Transitions and Ordinary Lives - Learning Disability Support,Transitions and Ordinary Lives,1 BROADSTONE CLOSE,10470,07/04/2020,3445039,"3,216.57",0.00,N/A,N/A
Learning Disability Support,Transitions and Ordinary Lives - Learning Disability Support,Transitions and Ordinary Lives,1 BROADSTONE CLOSE,10470,07/04/2020,3444977,"3,216.57",0.00,N/A,N/A
Learning Disability Support,Transitions and Ordinary Lives - Learning Disability Support,Transitions and Ordinary Lives,1 BROADSTONE CLOSE,10470,07/04/2020,3445061,"3,216.57",0.00,N/A,N/A
Learning Disability Support,Transitions and Ordinary Lives - Learning Disability Support,Transitions and Ordinary Lives,1 BROADSTONE CLOSE,10470,07/04/2020,3444916,"3,216.57",0.00,N/A,N/A
Learning Disability Support,Transitions and Ordinary Lives - Learning Disability Support,Transitions and Ordinary Lives,14 LINBY DRIVE,19274,07/04/2020,3445573,"4,114.17",0.00,N/A,N/A
Traffic & Transportation,Traffic & Transportation (inc Integrated Pass Transport),"Strategic Partnerships, Planning & Streetpride",21ST CENTURY PASSENGER SYSTEMS LIMITED,1101478,07/04/2020,3445283,"2,268.00",0.00,N/A,N/A
Traffic & Transportation,Traffic & Transportation (inc Integrated Pass Transport),"Strategic Partnerships, Planning & Streetpride",21ST CENTURY PASSENGER SYSTEMS LIMITED,1101478,07/04/2020,3445282,"1,752.00",0.00,N/A,N/A
Traffic & Transportation,Traffic & Transportation (inc Integrated Pass Transport),"Strategic Partnerships, Planning & Streetpride",21ST CENTURY PASSENGER SYSTEMS LIMITED,1101478,07/04/2020,3445284,"17,937.00",0.00,N/A,N/A
Physical Support,Community Support - Physical Support,Community Support,ABBEY COURT RESIDENTIAL AND NURSING HOME,10483,07/04/2020,3442414,"1,631.58",0.00,N/A,N/A
Physical Support,Community Support - Physical Support,Community Support,ABBEY COURT RESIDENTIAL AND NURSING HOME,10483,07/04/2020,3442520,"1,631.58",0.00,N/A,N/A
Physical Support,Community Support - Physical Support,Community Support,ABBEY COURT RESIDENTIAL AND NURSING HOME,10483,07/04/2020,3442099,"1,631.58",0.00,N/A,N/A
Physical Support,Community Support - Physical Support,Community Support,ABBEY COURT RESIDENTIAL AND NURSING HOME,10483,07/04/2020,3442458,"1,631.58",0.00,N/A,N/A
Physical Support,Community Support - Physical Support,Community Support,ABBEY COURT RESIDENTIAL AND NURSING HOME,10483,07/04/2020,3442459,"1,631.58",0.00,N/A,N/A
Physical Support,Community Support - Physical Support,Community Support,ABBEY COURT RESIDENTIAL AND NURSING HOME,10483,07/04/2020,3442460,"1,631.58",0.00,N/A,N/A
Physical Support,Community Support - Physical Support,Community Support,ABBEY COURT RESIDENTIAL AND NURSING HOME,10483,07/04/2020,3442462,"1,631.58",0.00,N/A,N/A
Physical Support,Community Support - Physical Support,Community Support,ABBEY COURT RESIDENTIAL AND NURSING HOME,10483,07/04/2020,3442216,"1,588.86",0.00,N/A,N/A
Physical Support,Community Support - Physical Support,Community Support,ABBEY COURT RESIDENTIAL AND NURSING HOME,10483,07/04/2020,3442513,"1,588.86",0.00,N/A,N/A
Physical Support,Community Support - Physical Support,Community Support,ABBEY COURT RESIDENTIAL AND NURSING HOME,10483,07/04/2020,3442511,"1,588.86",0.00,N/A,N/A
Physical Support,Community Support - Physical Support,Community Support,ABBEY COURT RESIDENTIAL AND NURSING HOME,10483,07/04/2020,3442512,"1,588.86",0.00,N/A,N/A
Physical Support,Community Support - Physical Support,Community Support,ABBEY COURT RESIDENTIAL AND NURSING HOME,10483,07/04/2020,3442087,"1,588.86",0.00,N/A,N/A
Physical Support,Community Support - Physical Support,Community Support,ABBEY COURT RESIDENTIAL AND NURSING HOME,10483,07/04/2020,3442517,"1,631.58",0.00,N/A,N/A
Physical Support,Community Support - Physical Support,Community Support,ABBEY COURT RESIDENTIAL AND NURSING HOME,10483,07/04/2020,3442212,"1,019.38",0.00,N/A,N/A
Physical Support,Community Support - Physical Support,Community Support,ABBEY COURT RESIDENTIAL AND NURSING HOME,10483,07/04/2020,3442213,"1,800.48",0.00,N/A,N/A
Mental Health Support,Community Support - Mental Health Support,Community Support,ABBEYDALE,10487,07/04/2020,3442141,"1,085.98",0.00,N/A,N/A
Mental Health Support,Community Support - Mental Health Support,Community Support,ABBEYDALE,10487,07/04/2020,3442142,"1,631.58",0.00,N/A,N/A
Physical Support,Community Support - Physical Support,Community Support,ABBEYDALE,10487,07/04/2020,3442406,672.94,0.00,N/A,N/A
Mental Health Support,Mental Health - Mental Health Support,Mental Health,ACACIA CARE CENTRE,1265486,07/04/2020,3445822,"2,104.59",0.00,N/A,N/A
Mental Health Support,Mental Health - Mental Health Support,Mental Health,ACACIA LODGE,471191,07/04/2020,3445848,"1,323.77",0.00,N/A,N/A
Mental Health Support,Mental Health - Mental Health Support,Mental Health,ACACIA LODGE,471191,07/04/2020,3445565,"2,206.29",0.00,N/A,N/A
Learning Disability Support,Transitions and Ordinary Lives - Learning Disability Support,Transitions and Ordinary Lives,ACACIA LODGE,471191,07/04/2020,3445850,"1,372.80",0.00,N/A,N/A
Learning Disability Support,Transitions and Ordinary Lives - Learning Disability Support,Transitions and Ordinary Lives,ACACIA LODGE,471191,07/04/2020,3445908,686.40,0.00,N/A,N/A
Integrated Services,Agency Placements,Non-Schools,ACORN FOSTERING SERVICES LTD,1113490,07/04/2020,3446027,"4,260.00",0.00,N/A,N/A
Integrated Services,Agency Placements,Non-Schools,ACORN FOSTERING SERVICES LTD,1113490,07/04/2020,3446027,"1,268.57",0.00,N/A,N/A
Integrated Services,Agency Placements,Non-Schools,ACORN FOSTERING SERVICES LTD,1113490,07/04/2020,3446027,"1,217.14",0.00,N/A,N/A
Integrated Services,Agency Placements,Non-Schools,ACORN FOSTERING SERVICES LTD,1113490,07/04/2020,3446027,"1,217.14",0.00,N/A,N/A
Learning Disability Support,Transitions and Ordinary Lives - Learning Disability Support,Transitions and Ordinary Lives,ACTION ON HEARING LOSS,896480,07/04/2020,3444925,"4,109.45",0.00,N/A,N/A
Learning Disability Support,Transitions and Ordinary Lives - Learning Disability Support,Transitions and Ordinary Lives,ACTION ON HEARING LOSS,896480,07/04/2020,3445067,"2,739.66",0.00,N/A,N/A
Early Help & Children�s Safeguarding,Integrated and Safeguarding Services Locality 3/4,Non-Schools,ADFAN,470777,07/04/2020,3445445,840.00,0.00,N/A,N/A
Early Help & Children�s Safeguarding,Integrated and Safeguarding Services Locality 3/4,Non-Schools,ADFAN,470777,07/04/2020,3445446,840.00,0.00,N/A,N/A
Early Help & Children�s Safeguarding,Integrated and Safeguarding Services Locality 3/4,Non-Schools,ADFAN,470777,07/04/2020,3445444,840.00,0.00,N/A,N/A
Planning,Spatial Planning,"Strategic Partnerships, Planning & Streetpride",AECOM LTD,787456,07/04/2020,3445287,"12,197.50",0.00,N/A,N/A
Highways & Engineering,Highways Maintenance & Street Lighting,"Strategic Partnerships, Planning & Streetpride",AGGREGATE INDUSTRIES UK LTD,117850,07/04/2020,3445325,727.76,0.00,Communities & Place,Building and Construction Machinery and
Highways & Engineering,Highways Maintenance & Street Lighting,"Strategic Partnerships, Planning & Streetpride",AGGREGATE INDUSTRIES UK LTD,117850,07/04/2020,3445323,554.04,0.00,Communities & Place,Building and Construction Machinery and
Highways & Engineering,Highways Maintenance & Street Lighting,"Strategic Partnerships, Planning & Streetpride",AGGREGATE INDUSTRIES UK LTD,117850,07/04/2020,3445331,934.51,0.00,Communities & Place,Building and Construction Machinery and
Mental Health Support,Community Support - Mental Health Support,Community Support,AGINCARE DERBY LIMITED,1224470,07/04/2020,3444246,"1,588.86",0.00,N/A,N/A
Mental Health Support,Community Support - Mental Health Support,Community Support,AGINCARE DERBY LIMITED,1224470,07/04/2020,3444783,"1,469.70",0.00,N/A,N/A
Mental Health Support,Community Support - Mental Health Support,Community Support,AGINCARE DERBY LIMITED,1224470,07/04/2020,3444773,875.64,0.00,N/A,N/A
Mental Health Support,Community Support - Mental Health Support,Community Support,AGINCARE DERBY LIMITED,1224470,07/04/2020,3444153,"1,588.86",0.00,N/A,N/A
Mental Health Support,Community Support - Mental Health Support,Community Support,AGINCARE DERBY LIMITED,1224470,07/04/2020,3444430,"1,588.86",0.00,N/A,N/A
Physical Support,Community Support - Physical Support,Community Support,AGINCARE DERBY LIMITED,1224470,07/04/2020,3444781,629.87,0.00,N/A,N/A
Physical Support,Community Support - Physical Support,Community Support,AGINCARE DERBY LIMITED,1224470,07/04/2020,3444838,"1,886.00",0.00,N/A,N/A
Physical Support,Community Support - Physical Support,Community Support,AGINCARE DERBY LIMITED,1224470,07/04/2020,3444778,808.29,0.00,N/A,N/A
Physical Support,Community Support - Physical Support,Community Support,AGINCARE DERBY LIMITED,1224470,07/04/2020,3444598,"1,588.86",0.00,N/A,N/A
Physical Support,Community Support - Physical Support,Community Support,AGINCARE DERBY LIMITED,1224470,07/04/2020,3444667,"1,588.86",0.00,N/A,N/A
Physical Support,Community Support - Physical Support,Community Support,AGINCARE DERBY LIMITED,1224470,07/04/2020,3444668,"1,588.86",0.00,N/A,N/A
Physical Support,Community Support - Physical Support,Community Support,AGINCARE DERBY LIMITED,1224470,07/04/2020,3444520,"1,588.86",0.00,N/A,N/A
Physical Support,Community Support - Physical Support,Community Support,AGINCARE DERBY LIMITED,1224470,07/04/2020,3444238,"1,588.86",0.00,N/A,N/A
Physical Support,Community Support - Physical Support,Community Support,AGINCARE DERBY LIMITED,1224470,07/04/2020,3444239,"1,588.86",0.00,N/A,N/A
Physical Support,Community Support - Physical Support,Community Support,AGINCARE DERBY LIMITED,1224470,07/04/2020,3444779,839.83,0.00,N/A,N/A
Physical Support,Community Support - Physical Support,Community Support,AGINCARE DERBY LIMITED,1224470,07/04/2020,3444514,"2,038.76",0.00,N/A,N/A
Physical Support,Community Support - Physical Support,Community Support,AGINCARE DERBY LIMITED,1224470,07/04/2020,3444333,"1,588.86",0.00,N/A,N/A
Physical Support,Community Support - Physical Support,Community Support,AGINCARE DERBY LIMITED,1224470,07/04/2020,3444143,"1,019.38",0.00,N/A,N/A
Physical Support,Community Support - Physical Support,Community Support,AGINCARE DERBY LIMITED,1224470,07/04/2020,3444150,"1,588.86",0.00,N/A,N/A
Physical Support,Community Support - Physical Support,Community Support,AGINCARE DERBY LIMITED,1224470,07/04/2020,3444837,"2,559.57",0.00,N/A,N/A
Physical Support,Community Support - Physical Support,Community Support,AGINCARE DERBY LIMITED,1224470,07/04/2020,3444839,606.21,0.00,N/A,N/A
Physical Support,Community Support - Physical Support,Community Support,AGINCARE DERBY LIMITED,1224470,07/04/2020,3444841,769.84,0.00,N/A,N/A
Physical Support,Community Support - Physical Support,Community Support,AGINCARE DERBY LIMITED,1224470,07/04/2020,3444842,"1,469.70",0.00,N/A,N/A
Physical Support,Community Support - Physical Support,Community Support,AGINCARE DERBY LIMITED,1224470,07/04/2020,3444844,"1,886.00",0.00,N/A,N/A
Physical Support,Community Support - Physical Support,Community Support,AGINCARE DERBY LIMITED,1224470,07/04/2020,3444527,"1,588.86",0.00,N/A,N/A
Physical Support,Community Support - Physical Support,Community Support,AGINCARE DERBY LIMITED,1224470,07/04/2020,3444850,"1,469.70",0.00,N/A,N/A
Physical Support,Community Support - Physical Support,Community Support,AGINCARE DERBY LIMITED,1224470,07/04/2020,3444852,"1,751.29",0.00,N/A,N/A
Physical Support,Community Support - Physical Support,Community Support,AGINCARE DERBY LIMITED,1224470,07/04/2020,3444854,"1,469.70",0.00,N/A,N/A
Physical Support,Community Support - Physical Support,Community Support,AGINCARE DERBY LIMITED,1224470,07/04/2020,3444855,"1,469.70",0.00,N/A,N/A
Physical Support,Community Support - Physical Support,Community Support,AGINCARE DERBY LIMITED,1224470,07/04/2020,3444675,"1,588.86",0.00,N/A,N/A
Physical Support,Community Support - Physical Support,Community Support,AGINCARE DERBY LIMITED,1224470,07/04/2020,3444244,"1,588.86",0.00,N/A,N/A
Physical Support,Community Support - Physical Support,Community Support,AGINCARE DERBY LIMITED,1224470,07/04/2020,3444422,"1,588.86",0.00,N/A,N/A
Physical Support,Community Support - Physical Support,Community Support,AGINCARE DERBY LIMITED,1224470,07/04/2020,3444423,"1,588.86",0.00,N/A,N/A
Physical Support,Community Support - Physical Support,Community Support,AGINCARE DERBY LIMITED,1224470,07/04/2020,3444232,"2,038.76",0.00,N/A,N/A
Physical Support,Community Support - Physical Support,Community Support,AGINCARE DERBY LIMITED,1224470,07/04/2020,3444767,"1,414.50",0.00,N/A,N/A
Sensory Support,Community Support - Sensory Support,Community Support,AGINCARE DERBY LIMITED,1224470,07/04/2020,3444782,"1,818.64",0.00,N/A,N/A
Sensory Support,Community Support - Sensory Support,Community Support,AGINCARE DERBY LIMITED,1224470,07/04/2020,3444776,"1,469.70",0.00,N/A,N/A
Support with Memory and Cognition,Community Support - Support with Memory and Cognition,Community Support,AGINCARE DERBY LIMITED,1224470,07/04/2020,3444144,"1,588.86",0.00,N/A,N/A
Support with Memory and Cognition,Community Support - Support with Memory and Cognition,Community Support,AGINCARE DERBY LIMITED,1224470,07/04/2020,3444765,"1,469.70",0.00,N/A,N/A
Support with Memory and Cognition,Community Support - Support with Memory and Cognition,Community Support,AGINCARE DERBY LIMITED,1224470,07/04/2020,3444777,"1,683.93",0.00,N/A,N/A
Support with Memory and Cognition,Community Support - Support with Memory and Cognition,Community Support,AGINCARE DERBY LIMITED,1224470,07/04/2020,3444592,"1,588.86",0.00,N/A,N/A
Mental Health Support,Mental Health - Mental Health Support,Mental Health,AGINCARE DERBY LIMITED,1224470,07/04/2020,3444528,"1,588.86",0.00,N/A,N/A
Integrated Services,Agency Placements,Non-Schools,ALL4U FOSTERING LTD.,1238475,07/04/2020,3446260,"4,120.00",0.00,N/A,N/A
Integrated Services,Agency Placements,Non-Schools,ALLIANCE FOSTER CARE,1108472,07/04/2020,3446038,"3,844.00",0.00,N/A,N/A
Integrated Services,Agency Placements,Non-Schools,ALLIANCE FOSTER CARE,1108472,07/04/2020,3446038,"3,156.00",0.00,N/A,N/A
General,Stores Road Depot & Fleet Management,"Strategic Partnerships, Planning & Streetpride",ALLSTAR BUSINESS SOLUTIONS LTD,135370,07/04/2020,3445423,"8,752.98",0.00,Communities & Place,Fuels and Fuel Additives and Lubricants
General,Stores Road Depot & Fleet Management,"Strategic Partnerships, Planning & Streetpride",ALLSTAR BUSINESS SOLUTIONS LTD,135370,07/04/2020,3445423,"8,752.98",0.00,Communities & Place,Fuels and Fuel Additives and Lubricants
Grounds Maintenance & Cleansing,Cleansing (inc public conveniences & gullies),"Strategic Partnerships, Planning & Streetpride",AMA SUPPLIES LTD,285,07/04/2020,3445361,"3,300.00",0.00,Communities & Place,Apparel and Luggage and Personal Care Pr
Learning Disability Support,Community Support - Learning Disability Support,Community Support,AMBER LODGE NURSING HOME,10490,07/04/2020,3442353,"1,588.86",0.00,N/A,N/A
Learning Disability Support,Community Support - Learning Disability Support,Community Support,AMBER LODGE NURSING HOME,10490,07/04/2020,3442426,"1,631.58",0.00,N/A,N/A
Mental Health Support,Community Support - Mental Health Support,Community Support,AMBER LODGE NURSING HOME,10490,07/04/2020,3442250,"1,631.58",0.00,N/A,N/A
Physical Support,Community Support - Physical Support,Community Support,AMBER LODGE NURSING HOME,10490,07/04/2020,3442342,822.49,0.00,N/A,N/A
Physical Support,Community Support - Physical Support,Community Support,AMBER LODGE NURSING HOME,10490,07/04/2020,3442466,"1,588.86",0.00,N/A,N/A
Physical Support,Community Support - Physical Support,Community Support,AMBER LODGE NURSING HOME,10490,07/04/2020,3442109,"1,631.58",0.00,N/A,N/A
Physical Support,Community Support - Physical Support,Community Support,AMBER LODGE NURSING HOME,10490,07/04/2020,3442472,"1,631.58",0.00,N/A,N/A
Physical Support,Community Support - Physical Support,Community Support,AMBER LODGE NURSING HOME,10490,07/04/2020,3442473,"1,631.58",0.00,N/A,N/A
Physical Support,Community Support - Physical Support,Community Support,AMBER LODGE NURSING HOME,10490,07/04/2020,3442159,"1,631.58",0.00,N/A,N/A
Physical Support,Community Support - Physical Support,Community Support,AMBER LODGE NURSING HOME,10490,07/04/2020,3442349,"1,631.58",0.00,N/A,N/A
Physical Support,Community Support - Physical Support,Community Support,AMBER LODGE NURSING HOME,10490,07/04/2020,3442350,"1,631.58",0.00,N/A,N/A
Physical Support,Community Support - Physical Support,Community Support,AMBER LODGE NURSING HOME,10490,07/04/2020,3442351,"1,631.58",0.00,N/A,N/A
Physical Support,Community Support - Physical Support,Community Support,AMBER LODGE NURSING HOME,10490,07/04/2020,3442352,"1,631.58",0.00,N/A,N/A
Physical Support,Community Support - Physical Support,Community Support,AMBER LODGE NURSING HOME,10490,07/04/2020,3442533,"1,631.58",0.00,N/A,N/A
Mental Health Support,Mental Health - Mental Health Support,Mental Health,AMBER LODGE NURSING HOME,10490,07/04/2020,3442427,557.14,0.00,N/A,N/A
Mental Health Support,Mental Health - Mental Health Support,Mental Health,AMBER LODGE NURSING HOME,10490,07/04/2020,3442110,"1,694.70",0.00,N/A,N/A
Mental Health Support,Mental Health - Mental Health Support,Mental Health,AMBER LODGE NURSING HOME,10490,07/04/2020,3442475,"1,631.58",0.00,N/A,N/A
Learning Disability Support,Transitions and Ordinary Lives - Learning Disability Support,Transitions and Ordinary Lives,AMBER LODGE NURSING HOME,10490,07/04/2020,3442174,"2,046.57",0.00,N/A,N/A
Learning Disability Support,Transitions and Ordinary Lives - Learning Disability Support,Transitions and Ordinary Lives,AMBER LODGE NURSING HOME,10490,07/04/2020,3442175,"2,451.43",0.00,N/A,N/A
Learning Disability Support,Transitions and Ordinary Lives - Learning Disability Support,Transitions and Ordinary Lives,AMBER LODGE NURSING HOME,10490,07/04/2020,3442367,"1,800.48",0.00,N/A,N/A
Learning Disability Support,Transitions and Ordinary Lives - Learning Disability Support,Transitions and Ordinary Lives,AMBER LODGE NURSING HOME,10490,07/04/2020,3442160,"1,800.48",0.00,N/A,N/A
Learning Disability Support,Transitions and Ordinary Lives - Learning Disability Support,Transitions and Ordinary Lives,AMBER LODGE NURSING HOME,10490,07/04/2020,3442180,"2,451.43",0.00,N/A,N/A
Learning Disability Support,Transitions and Ordinary Lives - Learning Disability Support,Transitions and Ordinary Lives,AMBER LODGE NURSING HOME,10490,07/04/2020,3442438,"2,451.43",0.00,N/A,N/A
Mental Health Support,Mental Health - Mental Health Support,Mental Health,AMBER LODGE NURSING HOME,10490,07/04/2020,3442464,531.49,0.00,N/A,N/A
Mental Health Support,Mental Health - Mental Health Support,Mental Health,AMBER LODGE NURSING HOME,10490,07/04/2020,3442527,826.76,0.00,N/A,N/A
Mental Health Support,Mental Health - Mental Health Support,Mental Health,AMBER LODGE NURSING HOME,10490,07/04/2020,3442156,826.76,0.00,N/A,N/A
Mental Health Support,Mental Health - Mental Health Support,Mental Health,AMBER LODGE NURSING HOME,10490,07/04/2020,3442291,826.76,0.00,N/A,N/A
Mental Health Support,Mental Health - Mental Health Support,Mental Health,AMBER LODGE NURSING HOME,10490,07/04/2020,3442550,767.71,0.00,N/A,N/A
Mental Health Support,Mental Health - Mental Health Support,Mental Health,AMBER LODGE NURSING HOME,10490,07/04/2020,3442178,"1,535.41",0.00,N/A,N/A
Physical Support,Community Support - Physical Support,Community Support,ANCHOR TRUST,10629,07/04/2020,3442386,"1,588.86",0.00,N/A,N/A
Physical Support,Community Support - Physical Support,Community Support,ANCHOR TRUST,10629,07/04/2020,3442197,"1,588.86",0.00,N/A,N/A
Physical Support,Community Support - Physical Support,Community Support,ANCHOR TRUST,10629,07/04/2020,3442135,706.87,0.00,N/A,N/A
Physical Support,Community Support - Physical Support,Community Support,ANCHOR TRUST,10629,07/04/2020,3442136,"1,588.86",0.00,N/A,N/A
Physical Support,Community Support - Physical Support,Community Support,ANCHOR TRUST,10629,07/04/2020,3442495,"1,588.86",0.00,N/A,N/A
Physical Support,Community Support - Physical Support,Community Support,ANCHOR TRUST,10629,07/04/2020,3442446,"1,588.86",0.00,N/A,N/A
Physical Support,Community Support - Physical Support,Community Support,ANCHOR TRUST,10629,07/04/2020,3442264,"1,588.86",0.00,N/A,N/A
Support with Memory and Cognition,Community Support - Support with Memory and Cognition,Community Support,ANCHOR TRUST,10629,07/04/2020,3442187,"1,588.86",0.00,N/A,N/A
Support with Memory and Cognition,Community Support - Support with Memory and Cognition,Community Support,ANCHOR TRUST,10629,07/04/2020,3442378,"1,588.86",0.00,N/A,N/A
Support with Memory and Cognition,Community Support - Support with Memory and Cognition,Community Support,ANCHOR TRUST,10629,07/04/2020,3442441,706.87,0.00,N/A,N/A
Support with Memory and Cognition,Community Support - Support with Memory and Cognition,Community Support,ANCHOR TRUST,10629,07/04/2020,3442442,"1,588.86",0.00,N/A,N/A
Support with Memory and Cognition,Community Support - Support with Memory and Cognition,Community Support,ANCHOR TRUST,10629,07/04/2020,3442251,"2,038.76",0.00,N/A,N/A
Support with Memory and Cognition,Community Support - Support with Memory and Cognition,Community Support,ANCHOR TRUST,10629,07/04/2020,3442491,"2,038.76",0.00,N/A,N/A
Support with Memory and Cognition,Community Support - Support with Memory and Cognition,Community Support,ANCHOR TRUST,10629,07/04/2020,3442316,"1,588.86",0.00,N/A,N/A
Support with Memory and Cognition,Community Support - Support with Memory and Cognition,Community Support,ANCHOR TRUST,10629,07/04/2020,3442252,"2,038.76",0.00,N/A,N/A
Support with Memory and Cognition,Community Support - Support with Memory and Cognition,Community Support,ANCHOR TRUST,10629,07/04/2020,3442130,"1,588.86",0.00,N/A,N/A
Support with Memory and Cognition,Community Support - Support with Memory and Cognition,Community Support,ANCHOR TRUST,10629,07/04/2020,3442551,509.69,0.00,N/A,N/A
Support with Memory and Cognition,Community Support - Support with Memory and Cognition,Community Support,ANCHOR TRUST,10629,07/04/2020,3442552,"1,674.70",0.00,N/A,N/A
Mental Health Support,Mental Health - Mental Health Support,Mental Health,ANCHOR TRUST,10629,07/04/2020,3442137,"1,588.86",0.00,N/A,N/A
Learning Disability Support,Transitions and Ordinary Lives - Learning Disability Support,Transitions and Ordinary Lives,ANCHOR TRUST,10629,07/04/2020,3442388,"2,302.86",0.00,N/A,N/A
Integrated Services,Agency Placements,Non-Schools,ANGLIA FOSTERING AGENCY LTD,1108475,07/04/2020,3446025,"3,141.60",0.00,N/A,N/A
Integrated Services,Agency Placements,Non-Schools,ANGLIA FOSTERING AGENCY LTD,1108475,07/04/2020,3446025,"3,141.60",0.00,N/A,N/A
Integrated Services,Agency Placements,Non-Schools,ANGLIA FOSTERING AGENCY LTD,1108475,07/04/2020,3446025,"3,074.12",0.00,N/A,N/A
Integrated Services,Agency Placements,Non-Schools,ANGLIA FOSTERING AGENCY LTD,1108475,07/04/2020,3446025,"2,019.60",0.00,N/A,N/A
Integrated Services,Agency Placements,Non-Schools,ANGLIA FOSTERING AGENCY LTD,1108475,07/04/2020,3446025,"2,019.60",0.00,N/A,N/A
Integrated Services,Agency Placements,Non-Schools,ANGLIA FOSTERING AGENCY LTD,1108475,07/04/2020,3446025,"1,976.22",0.00,N/A,N/A
Integrated Services,Agency Placements,Non-Schools,ANGLIA FOSTERING AGENCY LTD,1108475,07/04/2020,3446025,897.60,0.00,N/A,N/A
Mental Health Support,Mental Health - Mental Health Support,Mental Health,ANNEFIELD HOUSE LTD,153553,07/04/2020,3445025,891.43,0.00,N/A,N/A
Mental Health Support,Mental Health - Mental Health Support,Mental Health,ANNEFIELD HOUSE LTD,153553,07/04/2020,3445053,817.14,0.00,N/A,N/A
Learning Disability Support,Transitions and Ordinary Lives - Learning Disability Support,Transitions and Ordinary Lives,ANNEFIELD HOUSE LTD,153553,07/04/2020,3444902,"1,782.86",0.00,N/A,N/A
Learning Disability Support,Transitions and Ordinary Lives - Learning Disability Support,Transitions and Ordinary Lives,ANNEFIELD HOUSE LTD,153553,07/04/2020,3444967,"1,969.50",0.00,N/A,N/A
Learning Disability Support,Transitions and Ordinary Lives - Learning Disability Support,Transitions and Ordinary Lives,ANNEFIELD HOUSE LTD,153553,07/04/2020,3444934,"1,712.29",0.00,N/A,N/A
Learning Disability Support,Transitions and Ordinary Lives - Learning Disability Support,Transitions and Ordinary Lives,ANNEFIELD HOUSE LTD,153553,07/04/2020,3444935,"1,969.50",0.00,N/A,N/A
Learning Disability Support,Transitions and Ordinary Lives - Learning Disability Support,Transitions and Ordinary Lives,ANNEFIELD HOUSE LTD,153553,07/04/2020,3444936,"1,969.50",0.00,N/A,N/A
Learning Disability Support,Transitions and Ordinary Lives - Learning Disability Support,Transitions and Ordinary Lives,ANNEFIELD HOUSE LTD,153553,07/04/2020,3444997,"1,440.18",0.00,N/A,N/A
Learning Disability Support,Transitions and Ordinary Lives - Learning Disability Support,Transitions and Ordinary Lives,ANNEFIELD HOUSE LTD,153553,07/04/2020,3445027,984.73,0.00,N/A,N/A
Learning Disability Support,Transitions and Ordinary Lives - Learning Disability Support,Transitions and Ordinary Lives,ANNEFIELD HOUSE LTD,153553,07/04/2020,3444998,"1,929.65",0.00,N/A,N/A
Learning Disability Support,Transitions and Ordinary Lives - Learning Disability Support,Transitions and Ordinary Lives,ANNEFIELD HOUSE LTD,153553,07/04/2020,3445055,"1,782.86",0.00,N/A,N/A
Social Care Activities,Home First - Social Care Activities,Home First,APS GROUP,1006473,07/04/2020,3446476,556.92,0.00,N/A,N/A
Support with Memory and Cognition,Community Support - Support with Memory and Cognition,Community Support,ARBOUR COURT,471376,07/04/2020,3445851,723.95,0.00,N/A,N/A
Support with Memory and Cognition,Community Support - Support with Memory and Cognition,Community Support,ARBOUR COURT,471376,07/04/2020,3445783,724.62,0.00,N/A,N/A
Obsolete Codes,Capital,Capital,ARCADIS UK LTD,1063470,07/04/2020,3446434,"5,494.50",0.00,N/A,N/A
Neighbourhoods,Capital,Capital,ARCADIS UK LTD,1063470,07/04/2020,3446432,"1,659.50",0.00,N/A,N/A
Neighbourhoods,Capital,Capital,ARCADIS UK LTD,1063470,07/04/2020,3446433,"7,879.00",0.00,N/A,N/A
Highways & Engineering,Highways Maintenance & Street Lighting,"Strategic Partnerships, Planning & Streetpride",ARRIVING LTD,217400,07/04/2020,3442051,"1,757.00",0.00,Communities & Place,Commercial and Military and Private Vehi
Public Health,Drugs and Alcohol,Public Health,ASDA STORES LTD,187667,07/04/2020,3445978,502.00,0.00,N/A,N/A
Public Health,Drugs and Alcohol,Public Health,ASDA STORES LTD,187667,07/04/2020,3445961,936.00,0.00,N/A,N/A
Learning Disability Support,Transitions and Ordinary Lives - Learning Disability Support,Transitions and Ordinary Lives,ASH VILLA CARE HOME,15780,07/04/2020,3445859,"4,940.00",0.00,N/A,N/A
Learning Disability Support,Transitions and Ordinary Lives - Learning Disability Support,Transitions and Ordinary Lives,ASH VILLA CARE HOME,15780,07/04/2020,3445860,"5,168.58",0.00,N/A,N/A
Learning Disability Support,Transitions and Ordinary Lives - Learning Disability Support,Transitions and Ordinary Lives,ASH VILLA CARE HOME,15780,07/04/2020,3445571,"1,134.57",0.00,N/A,N/A
Physical Support,Community Support - Physical Support,Community Support,ASHA HEALTHCARE LTD,920470,07/04/2020,3445513,"1,885.45",0.00,N/A,N/A
Mental Health Support,Mental Health - Mental Health Support,Mental Health,ASHE FIELDS,51494,07/04/2020,3445641,"1,998.62",0.00,N/A,N/A
Learning Disability Support,Transitions and Ordinary Lives - Learning Disability Support,Transitions and Ordinary Lives,ASHFIELD COURT,10494,07/04/2020,3445832,"6,416.54",0.00,N/A,N/A
Learning Disability Support,Transitions and Ordinary Lives - Learning Disability Support,Transitions and Ordinary Lives,ASHFIELD COURT,10494,07/04/2020,3445606,574.80,0.00,N/A,N/A
Learning Disability Support,Transitions and Ordinary Lives - Learning Disability Support,Transitions and Ordinary Lives,ASHFIELD COURT,10494,07/04/2020,3445607,"7,472.44",0.00,N/A,N/A
Learning Disability Support,Transitions and Ordinary Lives - Learning Disability Support,Transitions and Ordinary Lives,ASHFIELD COURT,10494,07/04/2020,3445761,"5,941.22",0.00,N/A,N/A
Learning Disability Support,Transitions and Ordinary Lives - Learning Disability Support,Transitions and Ordinary Lives,ASHFIELD COURT,10494,07/04/2020,3445762,"6,567.30",0.00,N/A,N/A
Learning Disability Support,Transitions and Ordinary Lives - Learning Disability Support,Transitions and Ordinary Lives,ASHFIELD COURT,10494,07/04/2020,3445486,505.18,0.00,N/A,N/A
Sensory Support,Community Support - Sensory Support,Community Support,ASHFIELD SPECIALIST CARE LIMITED,1110470,07/04/2020,3445936,"4,800.00",0.00,N/A,N/A
Sensory Support,Community Support - Sensory Support,Community Support,ASHFIELD SPECIALIST CARE LIMITED,1110470,07/04/2020,3445940,"4,800.00",0.00,N/A,N/A
Sensory Support,Community Support - Sensory Support,Community Support,ASHFIELD SPECIALIST CARE LIMITED,1110470,07/04/2020,3445585,"24,000.00",0.00,N/A,N/A
Sensory Support,Community Support - Sensory Support,Community Support,ASHFIELD SPECIALIST CARE LIMITED,1110470,07/04/2020,3445587,"4,800.00",0.00,N/A,N/A
Sensory Support,Community Support - Sensory Support,Community Support,ASHFIELD SPECIALIST CARE LIMITED,1110470,07/04/2020,3445520,"13,885.71",0.00,N/A,N/A
Sensory Support,Community Support - Sensory Support,Community Support,ASHFIELD SPECIALIST CARE LIMITED,1110470,07/04/2020,3445532,"4,457.14",0.00,N/A,N/A
Sensory Support,Community Support - Sensory Support,Community Support,ASHFIELD SPECIALIST CARE LIMITED,1110470,07/04/2020,3445808,"4,800.00",0.00,N/A,N/A
Sensory Support,Community Support - Sensory Support,Community Support,ASHFIELD SPECIALIST CARE LIMITED,1110470,07/04/2020,3445941,"4,800.00",0.00,N/A,N/A
Sensory Support,Community Support - Sensory Support,Community Support,ASHFIELD SPECIALIST CARE LIMITED,1110470,07/04/2020,3445647,"4,800.00",0.00,N/A,N/A
Sensory Support,Community Support - Sensory Support,Community Support,ASHFIELD SPECIALIST CARE LIMITED,1110470,07/04/2020,3445648,"4,800.00",0.00,N/A,N/A
Sensory Support,Community Support - Sensory Support,Community Support,ASHFIELD SPECIALIST CARE LIMITED,1110470,07/04/2020,3445650,"4,800.00",0.00,N/A,N/A
Mental Health Support,Mental Health - Mental Health Support,Mental Health,ASHFIELDS,1171468,07/04/2020,3445723,"1,443.33",0.00,N/A,N/A
Learning Disability Support,Community Support - Learning Disability Support,Community Support,ASPEN HOUSE LTD,10497,07/04/2020,3442271,"3,529.69",0.00,N/A,N/A
Physical Support,Community Support - Physical Support,Community Support,ASPEN HOUSE LTD,10497,07/04/2020,3442394,"2,028.67",0.00,N/A,N/A
Mental Health Support,Mental Health - Mental Health Support,Mental Health,ASPEN HOUSE LTD,10497,07/04/2020,3442501,975.00,0.00,N/A,N/A
Mental Health Support,Mental Health - Mental Health Support,Mental Health,ASPEN HOUSE LTD,10497,07/04/2020,3442400,"2,100.00",0.00,N/A,N/A
Mental Health Support,Mental Health - Mental Health Support,Mental Health,ASPEN HOUSE LTD,10497,07/04/2020,3442401,"8,400.00",0.00,N/A,N/A
Learning Disability Support,Transitions and Ordinary Lives - Learning Disability Support,Transitions and Ordinary Lives,ASPEN HOUSE LTD,10497,07/04/2020,3442504,"1,836.05",0.00,N/A,N/A
Learning Disability Support,Transitions and Ordinary Lives - Learning Disability Support,Transitions and Ordinary Lives,ASPEN HOUSE LTD,10497,07/04/2020,3442564,975.00,0.00,N/A,N/A
Learning Disability Support,Transitions and Ordinary Lives - Learning Disability Support,Transitions and Ordinary Lives,ASPEN HOUSE LTD,10497,07/04/2020,3442203,"1,588.86",0.00,N/A,N/A
Learning Disability Support,Transitions and Ordinary Lives - Learning Disability Support,Transitions and Ordinary Lives,ASPEN HOUSE LTD,10497,07/04/2020,3442329,"1,836.05",0.00,N/A,N/A
Learning Disability Support,Transitions and Ordinary Lives - Learning Disability Support,Transitions and Ordinary Lives,ASPEN HOUSE LTD,10497,07/04/2020,3442274,"1,588.86",0.00,N/A,N/A
Learning Disability Support,Transitions and Ordinary Lives - Learning Disability Support,Transitions and Ordinary Lives,ASPEN HOUSE LTD,10497,07/04/2020,3442450,"1,588.86",0.00,N/A,N/A
Learning Disability Support,Transitions and Ordinary Lives - Learning Disability Support,Transitions and Ordinary Lives,ASPEN HOUSE LTD,10497,07/04/2020,3442205,"27,187.60",0.00,N/A,N/A
Mental Health Support,Mental Health - Mental Health Support,Mental Health,ASPEN HOUSE LTD,10497,07/04/2020,3442502,"1,946.77",0.00,N/A,N/A
Mental Health Support,Mental Health - Mental Health Support,Mental Health,ASPEN HOUSE LTD,10497,07/04/2020,3442204,"7,237.50",0.00,N/A,N/A
Mental Health Support,Mental Health - Mental Health Support,Mental Health,ASPIRE HEALTH AND CARE,1132468,07/04/2020,3444962,975.00,0.00,N/A,N/A
Mental Health Support,Mental Health - Mental Health Support,Mental Health,ASPIRE HEALTH AND CARE,1132468,07/04/2020,3444928,"3,825.00",0.00,N/A,N/A
Mental Health Support,Mental Health - Mental Health Support,Mental Health,ASPIRE HEALTH AND CARE,1132468,07/04/2020,3444882,"17,897.14",0.00,N/A,N/A
Mental Health Support,Mental Health - Mental Health Support,Mental Health,ASPIRE HEALTH AND CARE,1132468,07/04/2020,3444987,"2,005.71",0.00,N/A,N/A
Strategic Housing,Housing and Advice,"Regeneration, Property & Housing",ATLAS HOTELS TRADING LIMITED,1287468,07/04/2020,3444762,"46,166.25",0.00,N/A,N/A
Leisure,Leisure,"Leisure, Culture and Tourism",ATLOW CONTRACTING LTD,423402,07/04/2020,3445351,"1,036.38",0.00,Communities & Place,Environmental Services
Leisure,Leisure,"Leisure, Culture and Tourism",ATLOW CONTRACTING LTD,423402,07/04/2020,3445351,"6,085.00",0.00,Communities & Place,Environmental Services
Learning Disability Support,Transitions and Ordinary Lives - Learning Disability Support,Transitions and Ordinary Lives,AUTONOMY HEALTHCARE LTD,469426,07/04/2020,3444912,"16,682.76",0.00,N/A,N/A
Learning Disability Support,Transitions and Ordinary Lives - Learning Disability Support,Transitions and Ordinary Lives,AUTONOMY HEALTHCARE LTD,469426,07/04/2020,3445036,"13,107.88",0.00,N/A,N/A
Learning Disability Support,Transitions and Ordinary Lives - Learning Disability Support,Transitions and Ordinary Lives,AUTONOMY HEALTHCARE LTD,469426,07/04/2020,3444975,619.97,0.00,N/A,N/A
Learning Disability Support,Transitions and Ordinary Lives - Learning Disability Support,Transitions and Ordinary Lives,AUTONOMY HEALTHCARE LTD,469426,07/04/2020,3444870,"8,059.67",0.00,N/A,N/A
Mental Health Support,Mental Health - Mental Health Support,Mental Health,AUTONOMY HEALTHCARE LTD,469426,07/04/2020,3445011,"2,525.71",0.00,N/A,N/A
Physical Support,Community Support - Physical Support,Community Support,AVERY HOMES DERBY LTD,474000,07/04/2020,3444543,"1,588.86",0.00,N/A,N/A
Physical Support,Community Support - Physical Support,Community Support,AVERY HOMES DERBY LTD,474000,07/04/2020,3444544,"1,951.15",0.00,N/A,N/A
Learning Disability Support,Transitions and Ordinary Lives - Learning Disability Support,Transitions and Ordinary Lives,BANK HOUSE CARE HOMES LTD,417411,07/04/2020,3445564,"1,764.29",0.00,N/A,N/A
Mental Health Support,Community Support - Mental Health Support,Community Support,BANKWOOD NURSING HOME,10499,07/04/2020,3445498,"2,745.16",0.00,N/A,N/A
Business Support,Business Support,Strategic Services and Organisational Development,BANNER,1153479,07/04/2020,3446002,"1,640.46",0.00,N/A,N/A
Integrated Services,Agency Placements,Non-Schools,BANYA FAMILY PLACEMENT AGENCY LTD,1109488,07/04/2020,3446024,"3,920.00",0.00,N/A,N/A
Integrated Services,Agency Placements,Non-Schools,BANYA FAMILY PLACEMENT AGENCY LTD,1109488,07/04/2020,3446024,"3,258.36",0.00,N/A,N/A
Integrated Services,Agency Placements,Non-Schools,BANYA FAMILY PLACEMENT AGENCY LTD,1109488,07/04/2020,3446024,"2,800.00",0.00,N/A,N/A
Integrated Services,Agency Placements,Non-Schools,BANYA FAMILY PLACEMENT AGENCY LTD,1109488,07/04/2020,3446024,"2,800.00",0.00,N/A,N/A
Integrated Services,Agency Placements,Non-Schools,BANYA FAMILY PLACEMENT AGENCY LTD,1109488,07/04/2020,3446024,"2,720.00",0.00,N/A,N/A
Integrated Services,Agency Placements,Non-Schools,BANYA FAMILY PLACEMENT AGENCY LTD,1109488,07/04/2020,3446024,"2,720.00",0.00,N/A,N/A
Integrated Services,Agency Placements,Non-Schools,BANYA FAMILY PLACEMENT AGENCY LTD,1109488,07/04/2020,3446024,"2,720.00",0.00,N/A,N/A
Integrated Services,Agency Placements,Non-Schools,BARNARDOS,1122469,07/04/2020,3446039,"4,476.00",0.00,N/A,N/A
Integrated Services,Agency Placements,Non-Schools,BARNARDOS,1122469,07/04/2020,3446039,"3,300.00",0.00,N/A,N/A
Integrated Services,Agency Placements,Non-Schools,BARNARDOS,1122469,07/04/2020,3446039,"3,300.00",0.00,N/A,N/A
Integrated Services,Agency Placements,Non-Schools,BARNARDOS,1122469,07/04/2020,3446039,"3,300.00",0.00,N/A,N/A
Integrated Services,Agency Placements,Non-Schools,BARNARDOS,1122469,07/04/2020,3446039,"3,300.00",0.00,N/A,N/A
Integrated Services,Agency Placements,Non-Schools,BARNARDOS,1122469,07/04/2020,3446039,"3,300.00",0.00,N/A,N/A
Integrated Services,Agency Placements,Non-Schools,BARNARDOS,1122469,07/04/2020,3446039,"3,300.00",0.00,N/A,N/A
Integrated Services,Agency Placements,Non-Schools,BARNARDOS,1122469,07/04/2020,3446039,"3,300.00",0.00,N/A,N/A
Integrated Services,Agency Placements,Non-Schools,BARNARDOS,1122469,07/04/2020,3446039,"2,912.00",0.00,N/A,N/A
Integrated Services,Agency Placements,Non-Schools,BARNARDOS,1122469,07/04/2020,3446039,"2,912.00",0.00,N/A,N/A
Mental Health Support,Community Support - Mental Health Support,Community Support,BEARWARDCOTE HALL,10500,07/04/2020,3445903,586.37,0.00,N/A,N/A
Mental Health Support,Community Support - Mental Health Support,Community Support,BEARWARDCOTE HALL,10500,07/04/2020,3445562,"1,841.91",0.00,N/A,N/A
Physical Support,Community Support - Physical Support,Community Support,BEARWARDCOTE HALL,10500,07/04/2020,3445497,"1,738.62",0.00,N/A,N/A
Support with Memory and Cognition,Community Support - Support with Memory and Cognition,Community Support,BELPER VIEWS RESIDENTIAL HOME,10531,07/04/2020,3445738,"1,991.60",0.00,N/A,N/A
Culture & Business Development,Culture & Business Development,"Leisure, Culture and Tourism",BINARYFOLD4 LTD,1042473,07/04/2020,3445314,"3,172.80",0.00,N/A,N/A
Mental Health Support,Community Support - Mental Health Support,Community Support,BLUEBELL PARK CARE HOME,105060,07/04/2020,3444058,"1,588.86",0.00,N/A,N/A
Physical Support,Community Support - Physical Support,Community Support,BLUEBELL PARK CARE HOME,105060,07/04/2020,3443538,"1,631.58",0.00,N/A,N/A
Physical Support,Community Support - Physical Support,Community Support,BLUEBELL PARK CARE HOME,105060,07/04/2020,3443696,"1,786.72",0.00,N/A,N/A
Physical Support,Community Support - Physical Support,Community Support,BLUEBELL PARK CARE HOME,105060,07/04/2020,3443964,"1,631.58",0.00,N/A,N/A
Physical Support,Community Support - Physical Support,Community Support,BLUEBELL PARK CARE HOME,105060,07/04/2020,3443965,"1,631.58",0.00,N/A,N/A
Physical Support,Community Support - Physical Support,Community Support,BLUEBELL PARK CARE HOME,105060,07/04/2020,3443962,"1,792.44",0.00,N/A,N/A
Mental Health Support,Mental Health - Mental Health Support,Mental Health,BLUEBELL PARK CARE HOME,105060,07/04/2020,3443868,"1,944.06",0.00,N/A,N/A
Mental Health Support,Mental Health - Mental Health Support,Mental Health,BLUEBELL PARK CARE HOME,105060,07/04/2020,3443539,"2,121.01",0.00,N/A,N/A
Mental Health Support,Mental Health - Mental Health Support,Mental Health,BLUEBELL PARK CARE HOME,105060,07/04/2020,3443545,"2,121.01",0.00,N/A,N/A
Mental Health Support,Mental Health - Mental Health Support,Mental Health,BLUEBELL PARK CARE HOME,105060,07/04/2020,3443870,903.95,0.00,N/A,N/A
Mental Health Support,Mental Health - Mental Health Support,Mental Health,BLUEBELL PARK CARE HOME,105060,07/04/2020,3443780,"1,885.45",0.00,N/A,N/A
Mental Health Support,Mental Health - Mental Health Support,Mental Health,BLUEBELL PARK CARE HOME,105060,07/04/2020,3443967,"1,631.58",0.00,N/A,N/A
Mental Health Support,Mental Health - Mental Health Support,Mental Health,BLUEBELL PARK CARE HOME,105060,07/04/2020,3444059,"1,885.45",0.00,N/A,N/A
Mental Health Support,Mental Health - Mental Health Support,Mental Health,BLUEBELL PARK CARE HOME,105060,07/04/2020,3443875,"2,207.10",0.00,N/A,N/A
Strategic Housing,Housing and Advice,City Development & Growth,BOXALL BROWN & JONES,532,07/04/2020,3445450,"4,950.00",0.00,N/A,N/A
Mental Health Support,Mental Health - Mental Health Support,Mental Health,BRAMBLE LODGE,107083,07/04/2020,3445877,"1,991.60",0.00,N/A,N/A
Physical Support,Community Support - Physical Support,Community Support,BROOKFIELDS PNH LTD,10536,07/04/2020,3442330,"1,570.20",0.00,N/A,N/A
Physical Support,Community Support - Physical Support,Community Support,BROOKFIELDS PNH LTD,10536,07/04/2020,3442331,"2,093.60",0.00,N/A,N/A
Physical Support,Community Support - Physical Support,Community Support,BROOKFIELDS PNH LTD,10536,07/04/2020,3442332,"2,093.60",0.00,N/A,N/A
Physical Support,Community Support - Physical Support,Community Support,BROOKFIELDS PNH LTD,10536,07/04/2020,3442333,"2,093.60",0.00,N/A,N/A
Physical Support,Community Support - Physical Support,Community Support,BROOKFIELDS PNH LTD,10536,07/04/2020,3442567,552.16,0.00,N/A,N/A
Physical Support,Community Support - Physical Support,Community Support,BROOKFIELDS PNH LTD,10536,07/04/2020,3442276,"1,631.58",0.00,N/A,N/A
Physical Support,Community Support - Physical Support,Community Support,BROOKFIELDS PNH LTD,10536,07/04/2020,3442451,552.16,0.00,N/A,N/A
Physical Support,Community Support - Physical Support,Community Support,BROOKFIELDS PNH LTD,10536,07/04/2020,3442452,552.16,0.00,N/A,N/A
Physical Support,Community Support - Physical Support,Community Support,BROOKFIELDS PNH LTD,10536,07/04/2020,3442568,552.16,0.00,N/A,N/A
Physical Support,Community Support - Physical Support,Community Support,BROOKFIELDS PNH LTD,10536,07/04/2020,3442570,"1,631.58",0.00,N/A,N/A
Physical Support,Community Support - Physical Support,Community Support,BROOKFIELDS PNH LTD,10536,07/04/2020,3442207,552.16,0.00,N/A,N/A
Physical Support,Community Support - Physical Support,Community Support,BROOKFIELDS PNH LTD,10536,07/04/2020,3442208,"2,093.60",0.00,N/A,N/A
Physical Support,Community Support - Physical Support,Community Support,BROOKFIELDS PNH LTD,10536,07/04/2020,3442209,"2,093.60",0.00,N/A,N/A
Physical Support,Community Support - Physical Support,Community Support,BROOKFIELDS PNH LTD,10536,07/04/2020,3442506,512.72,0.00,N/A,N/A
Physical Support,Community Support - Physical Support,Community Support,BROOKFIELDS PNH LTD,10536,07/04/2020,3442402,552.16,0.00,N/A,N/A
Physical Support,Community Support - Physical Support,Community Support,BROOKFIELDS PNH LTD,10536,07/04/2020,3442403,"2,093.60",0.00,N/A,N/A
Learning Disability Support,Transitions and Ordinary Lives - Learning Disability Support,Transitions and Ordinary Lives,BROOMHOUSE,10538,07/04/2020,3445775,614.94,0.00,N/A,N/A
Learning Disability Support,Transitions and Ordinary Lives - Learning Disability Support,Transitions and Ordinary Lives,BROOMHOUSE,10538,07/04/2020,3445901,"2,505.06",0.00,N/A,N/A
Learning Disability Support,Transitions and Ordinary Lives - Learning Disability Support,Transitions and Ordinary Lives,BROOMHOUSE,10538,07/04/2020,3445776,"2,228.57",0.00,N/A,N/A
Learning Disability Support,Transitions and Ordinary Lives - Learning Disability Support,Transitions and Ordinary Lives,BROOMHOUSE,10538,07/04/2020,3445777,"3,294.57",0.00,N/A,N/A
Physical Support,Community Support - Physical Support,Community Support,BWA HEALTH AND CARE SERVICE LTD,1089474,07/04/2020,3441802,"1,007.23",0.00,N/A,N/A
Integrated Services,Agency Placements,Non-Schools,BY THE BRIDGE LTD,1109490,07/04/2020,3446063,"5,580.00",0.00,N/A,N/A
Integrated Services,Agency Placements,Non-Schools,BY THE BRIDGE LTD,1109490,07/04/2020,3446063,"5,529.00",0.00,N/A,N/A
Integrated Services,Agency Placements,Non-Schools,BY THE BRIDGE LTD,1109490,07/04/2020,3446063,"3,996.40",0.00,N/A,N/A
Integrated Services,Agency Placements,Non-Schools,BY THE BRIDGE LTD,1109490,07/04/2020,3446063,"3,996.40",0.00,N/A,N/A
Integrated Services,Agency Placements,Non-Schools,BY THE BRIDGE LTD,1109490,07/04/2020,3446063,"3,996.40",0.00,N/A,N/A
Integrated Services,Agency Placements,Non-Schools,BY THE BRIDGE LTD,1109490,07/04/2020,3446063,"3,140.03",0.00,N/A,N/A
Integrated Services,Agency Placements,Non-Schools,BY THE BRIDGE LTD,1109490,07/04/2020,3446063,"3,996.40",0.00,N/A,N/A
Integrated Services,Agency Placements,Non-Schools,BY THE BRIDGE LTD,1109490,07/04/2020,3446063,"3,996.40",0.00,N/A,N/A
Integrated Services,Agency Placements,Non-Schools,BY THE BRIDGE LTD,1109490,07/04/2020,3446063,"3,996.40",0.00,N/A,N/A
Integrated Services,Agency Placements,Non-Schools,BY THE BRIDGE LTD,1109490,07/04/2020,3446063,"3,794.40",0.00,N/A,N/A
Integrated Services,Agency Placements,Non-Schools,BY THE BRIDGE LTD,1109490,07/04/2020,3446063,"3,794.40",0.00,N/A,N/A
Integrated Services,Agency Placements,Non-Schools,BY THE BRIDGE LTD,1109490,07/04/2020,3446063,"3,794.40",0.00,N/A,N/A
Integrated Services,Agency Placements,Non-Schools,BY THE BRIDGE LTD,1109490,07/04/2020,3446063,"3,794.40",0.00,N/A,N/A
Integrated Services,Agency Placements,Non-Schools,BY THE BRIDGE LTD,1109490,07/04/2020,3446063,"3,794.40",0.00,N/A,N/A
Integrated Services,Agency Placements,Non-Schools,BY THE BRIDGE LTD,1109490,07/04/2020,3446063,"3,794.40",0.00,N/A,N/A
Integrated Services,Agency Placements,Non-Schools,BY THE BRIDGE LTD,1109490,07/04/2020,3446063,"3,794.40",0.00,N/A,N/A
Integrated Services,Agency Placements,Non-Schools,BY THE BRIDGE LTD,1109490,07/04/2020,3446063,"3,794.40",0.00,N/A,N/A
Integrated Services,Agency Placements,Non-Schools,BY THE BRIDGE LTD,1109490,07/04/2020,3446063,"3,760.00",0.00,N/A,N/A
Integrated Services,Agency Placements,Non-Schools,BY THE BRIDGE LTD,1109490,07/04/2020,3446063,"3,687.40",0.00,N/A,N/A
Integrated Services,Agency Placements,Non-Schools,BY THE BRIDGE LTD,1109490,07/04/2020,3446063,"3,687.40",0.00,N/A,N/A
Integrated Services,Agency Placements,Non-Schools,BY THE BRIDGE LTD,1109490,07/04/2020,3446063,"3,432.00",0.00,N/A,N/A
Integrated Services,Agency Placements,Non-Schools,BY THE BRIDGE LTD,1109490,07/04/2020,3446063,813.09,0.00,N/A,N/A
Integrated Services,Agency Placements,Non-Schools,BY THE BRIDGE NORTH WEST LTD,1109493,07/04/2020,3446103,"3,996.40",0.00,N/A,N/A
Mental Health Support,Mental Health - Mental Health Support,Mental Health,CADOGAN CARE LTD,946475,07/04/2020,3445802,"3,157.14",0.00,N/A,N/A
Integrated Services,Agency Placements,Non-Schools,CALDECOTT FOSTERING LTD,1109497,07/04/2020,3446298,"4,800.00",0.00,N/A,N/A
Integrated Services,Agency Placements,Non-Schools,CAPSTONE FOSTER CARE,1109499,07/04/2020,3446065,"2,974.32",0.00,N/A,N/A
Integrated Services,Agency Placements,Non-Schools,CAPSTONE FOSTER CARE,1109499,07/04/2020,3446065,"2,974.32",0.00,N/A,N/A
Integrated Services,Agency Placements,Non-Schools,CAPSTONE FOSTER CARE,1109499,07/04/2020,3446065,"3,325.28",0.00,N/A,N/A
Integrated Services,Agency Placements,Non-Schools,CAPSTONE FOSTER CARE,1109499,07/04/2020,3446065,"3,202.64",0.00,N/A,N/A
Integrated Services,Agency Placements,Non-Schools,CAPSTONE FOSTER CARE,1109499,07/04/2020,3446065,"3,096.72",0.00,N/A,N/A
Integrated Services,Agency Placements,Non-Schools,CAPSTONE FOSTER CARE,1109499,07/04/2020,3446065,"3,325.28",0.00,N/A,N/A
Integrated Services,Agency Placements,Non-Schools,CAPSTONE FOSTER CARE,1109499,07/04/2020,3446065,"3,202.64",0.00,N/A,N/A
Integrated Services,Agency Placements,Non-Schools,CAPSTONE FOSTER CARE,1109499,07/04/2020,3446065,"3,325.28",0.00,N/A,N/A
Integrated Services,Agency Placements,Non-Schools,CAPSTONE FOSTER CARE,1109499,07/04/2020,3446065,"3,202.64",0.00,N/A,N/A
Integrated Services,Agency Placements,Non-Schools,CAPSTONE FOSTER CARE,1109499,07/04/2020,3446065,"3,096.72",0.00,N/A,N/A
Integrated Services,Agency Placements,Non-Schools,CAPSTONE FOSTER CARE,1109499,07/04/2020,3446065,"3,096.72",0.00,N/A,N/A
Integrated Services,Agency Placements,Non-Schools,CAPSTONE FOSTER CARE,1109499,07/04/2020,3446065,"2,974.32",0.00,N/A,N/A
Integrated Services,Agency Placements,Non-Schools,CAPSTONE FOSTER CARE,1109499,07/04/2020,3446065,"2,974.32",0.00,N/A,N/A
Integrated Services,Agency Placements,Non-Schools,CAPSTONE FOSTER CARE,1109499,07/04/2020,3446065,"3,325.28",0.00,N/A,N/A
Integrated Services,Agency Placements,Non-Schools,CAPSTONE FOSTER CARE,1109499,07/04/2020,3446065,"3,202.64",0.00,N/A,N/A
Integrated Services,Agency Placements,Non-Schools,CAPSTONE FOSTER CARE,1109499,07/04/2020,3446065,"3,096.72",0.00,N/A,N/A
Integrated Services,Agency Placements,Non-Schools,CAPSTONE FOSTER CARE,1109499,07/04/2020,3446065,"2,974.32",0.00,N/A,N/A
Integrated Services,Agency Placements,Non-Schools,CAPSTONE FOSTER CARE,1109499,07/04/2020,3446065,"2,974.32",0.00,N/A,N/A
Integrated Services,Agency Placements,Non-Schools,CAPSTONE FOSTER CARE,1109499,07/04/2020,3446065,"3,325.28",0.00,N/A,N/A
Integrated Services,Agency Placements,Non-Schools,CAPSTONE FOSTER CARE,1109499,07/04/2020,3446065,"3,202.64",0.00,N/A,N/A
Integrated Services,Agency Placements,Non-Schools,CAPSTONE FOSTER CARE,1109499,07/04/2020,3446065,"3,096.72",0.00,N/A,N/A
Integrated Services,Agency Placements,Non-Schools,CAPSTONE FOSTER CARE,1109499,07/04/2020,3446065,"3,096.72",0.00,N/A,N/A
Integrated Services,Agency Placements,Non-Schools,CAPSTONE FOSTER CARE,1109499,07/04/2020,3446065,"2,974.32",0.00,N/A,N/A
Mental Health Support,Mental Health - Mental Health Support,Mental Health,CASTLE DONINGTON NH,10468,07/04/2020,3445888,"1,392.86",0.00,N/A,N/A
Mental Health Support,Mental Health - Mental Health Support,Mental Health,CASTLE DONINGTON NH,10468,07/04/2020,3445601,"1,832.78",0.00,N/A,N/A
Physical Support,Community Support - Physical Support,Community Support,CASTLE PARK NURSING HOME,10542,07/04/2020,3442478,"2,038.76",0.00,N/A,N/A
Physical Support,Community Support - Physical Support,Community Support,CASTLE PARK NURSING HOME,10542,07/04/2020,3442232,728.13,0.00,N/A,N/A
Physical Support,Community Support - Physical Support,Community Support,CASTLE PARK NURSING HOME,10542,07/04/2020,3442238,"1,588.86",0.00,N/A,N/A
Physical Support,Community Support - Physical Support,Community Support,CASTLE PARK NURSING HOME,10542,07/04/2020,3442360,"1,588.86",0.00,N/A,N/A
Physical Support,Community Support - Physical Support,Community Support,CASTLE PARK NURSING HOME,10542,07/04/2020,3442166,"1,631.58",0.00,N/A,N/A
Physical Support,Community Support - Physical Support,Community Support,CASTLE PARK NURSING HOME,10542,07/04/2020,3442302,"1,631.58",0.00,N/A,N/A
Physical Support,Community Support - Physical Support,Community Support,CASTLE PARK NURSING HOME,10542,07/04/2020,3442476,747.71,0.00,N/A,N/A
Physical Support,Community Support - Physical Support,Community Support,CASTLE PARK NURSING HOME,10542,07/04/2020,3442167,"1,631.58",0.00,N/A,N/A
Physical Support,Community Support - Physical Support,Community Support,CASTLE PARK NURSING HOME,10542,07/04/2020,3442168,"1,631.58",0.00,N/A,N/A
Physical Support,Community Support - Physical Support,Community Support,CASTLE PARK NURSING HOME,10542,07/04/2020,3442483,"1,631.58",0.00,N/A,N/A
Physical Support,Community Support - Physical Support,Community Support,CASTLE PARK NURSING HOME,10542,07/04/2020,3442301,"1,631.58",0.00,N/A,N/A
Physical Support,Community Support - Physical Support,Community Support,CASTLE PARK NURSING HOME,10542,07/04/2020,3442119,"1,631.58",0.00,N/A,N/A
Physical Support,Community Support - Physical Support,Community Support,CASTLE PARK NURSING HOME,10542,07/04/2020,3442235,"1,965.95",0.00,N/A,N/A
Physical Support,Community Support - Physical Support,Community Support,CASTLE PARK NURSING HOME,10542,07/04/2020,3442295,"1,601.88",0.00,N/A,N/A
Physical Support,Community Support - Physical Support,Community Support,CASTLE PARK NURSING HOME,10542,07/04/2020,3442432,"1,588.86",0.00,N/A,N/A
Support with Memory and Cognition,Community Support - Support with Memory and Cognition,Community Support,CASTLE PARK NURSING HOME,10542,07/04/2020,3442298,"1,588.86",0.00,N/A,N/A
Support with Memory and Cognition,Community Support - Support with Memory and Cognition,Community Support,CASTLE PARK NURSING HOME,10542,07/04/2020,3442163,"1,631.58",0.00,N/A,N/A
Support with Memory and Cognition,Community Support - Support with Memory and Cognition,Community Support,CASTLE PARK NURSING HOME,10542,07/04/2020,3442164,"1,631.58",0.00,N/A,N/A
Mental Health Support,Community Support - Mental Health Support,Community Support,CAVISTA LTD,1265480,07/04/2020,3444274,"1,588.86",0.00,N/A,N/A
Mental Health Support,Community Support - Mental Health Support,Community Support,CAVISTA LTD,1265480,07/04/2020,3444180,"1,588.86",0.00,N/A,N/A
Physical Support,Community Support - Physical Support,Community Support,CAVISTA LTD,1265480,07/04/2020,3444705,"1,588.86",0.00,N/A,N/A
Physical Support,Community Support - Physical Support,Community Support,CAVISTA LTD,1265480,07/04/2020,3444453,"1,588.86",0.00,N/A,N/A
Support with Memory and Cognition,Community Support - Support with Memory and Cognition,Community Support,CAVISTA LTD,1265480,07/04/2020,3444451,"1,588.86",0.00,N/A,N/A
Support with Memory and Cognition,Community Support - Support with Memory and Cognition,Community Support,CAVISTA LTD,1265480,07/04/2020,3444452,"1,588.86",0.00,N/A,N/A
Support with Memory and Cognition,Community Support - Support with Memory and Cognition,Community Support,CAVISTA LTD,1265480,07/04/2020,3444179,"1,588.86",0.00,N/A,N/A
Learning Disability Support,Transitions and Ordinary Lives - Learning Disability Support,Transitions and Ordinary Lives,CAXTON LODGE,18515,07/04/2020,3445680,"4,434.00",0.00,N/A,N/A
Chief Executives,Capital,Capital,CDW LTD,465403,07/04/2020,3445997,"1,515.00",0.00,ICT Stabilisation - Hardware Renewal,Information Technology Broadcasting and
Learning Disability Support,Transitions and Ordinary Lives - Learning Disability Support,Transitions and Ordinary Lives,CEDAR COURT NURSING HOME,10543,07/04/2020,3445702,"1,755.78",0.00,N/A,N/A
Physical Support,Community Support - Physical Support,Community Support,CEDAR HOUSE EXTRA CARE DCS,537474,07/04/2020,3441057,825.51,0.00,N/A,N/A
Physical Support,Community Support - Physical Support,Community Support,CEDAR HOUSE EXTRA CARE DCS,537474,07/04/2020,3441058,623.24,0.00,N/A,N/A
Physical Support,Community Support - Physical Support,Community Support,CEDAR HOUSE EXTRA CARE DCS,537474,07/04/2020,3441183,"1,166.92",0.00,N/A,N/A
Physical Support,Community Support - Physical Support,Community Support,CEDAR HOUSE EXTRA CARE DCS,537474,07/04/2020,3441566,642.45,0.00,N/A,N/A
Physical Support,Community Support - Physical Support,Community Support,CEDAR HOUSE EXTRA CARE DCS,537474,07/04/2020,3441919,856.60,0.00,N/A,N/A
Physical Support,Community Support - Physical Support,Community Support,CEDAR TREE CARE HOME,94367,07/04/2020,3443454,792.55,0.00,N/A,N/A
Physical Support,Community Support - Physical Support,Community Support,CEDAR TREE CARE HOME,94367,07/04/2020,3443455,"1,631.58",0.00,N/A,N/A
Physical Support,Community Support - Physical Support,Community Support,CEDAR TREE CARE HOME,94367,07/04/2020,3443865,"1,631.58",0.00,N/A,N/A
Physical Support,Community Support - Physical Support,Community Support,CEDAR TREE CARE HOME,94367,07/04/2020,3443622,714.55,0.00,N/A,N/A
Physical Support,Community Support - Physical Support,Community Support,CEDAR TREE CARE HOME,94367,07/04/2020,3443536,"2,414.29",0.00,N/A,N/A
Sensory Support,Community Support - Sensory Support,Community Support,CEDAR TREE CARE HOME,94367,07/04/2020,3443623,709.28,0.00,N/A,N/A
Sensory Support,Community Support - Sensory Support,Community Support,CEDAR TREE CARE HOME,94367,07/04/2020,3444052,"1,944.06",0.00,N/A,N/A
Support with Memory and Cognition,Community Support - Support with Memory and Cognition,Community Support,CEDAR TREE CARE HOME,94367,07/04/2020,3443534,709.28,0.00,N/A,N/A
Support with Memory and Cognition,Community Support - Support with Memory and Cognition,Community Support,CEDAR TREE CARE HOME,94367,07/04/2020,3443691,"1,631.58",0.00,N/A,N/A
Control Accounts,Capital,Capital,CHADDESDEN PARK PRIMARY SCHOOL,796447,07/04/2020,3446529,"1,250.00",0.00,N/A,N/A
Learning Disability Support,Transitions and Ordinary Lives - Learning Disability Support,Transitions and Ordinary Lives,CHANGING LIVES UK QUALITY CARE LTD,1042485,07/04/2020,3444927,"2,952.86",0.00,N/A,N/A
Learning Disability Support,Community Support - Learning Disability Support,Community Support,CHESAPEAKE HOUSE,10547,07/04/2020,3444957,"1,980.09",0.00,N/A,N/A
Learning Disability Support,Transitions and Ordinary Lives - Learning Disability Support,Transitions and Ordinary Lives,CHESAPEAKE HOUSE,10547,07/04/2020,3444880,"1,980.09",0.00,N/A,N/A
Learning Disability Support,Transitions and Ordinary Lives - Learning Disability Support,Transitions and Ordinary Lives,CHESAPEAKE HOUSE,10547,07/04/2020,3445016,"1,980.09",0.00,N/A,N/A
Learning Disability Support,Transitions and Ordinary Lives - Learning Disability Support,Transitions and Ordinary Lives,CHESAPEAKE HOUSE,10547,07/04/2020,3445046,"1,980.09",0.00,N/A,N/A
Learning Disability Support,Transitions and Ordinary Lives - Learning Disability Support,Transitions and Ordinary Lives,CHESAPEAKE HOUSE,10547,07/04/2020,3444895,"1,980.09",0.00,N/A,N/A
Learning Disability Support,Transitions and Ordinary Lives - Learning Disability Support,Transitions and Ordinary Lives,CHESAPEAKE HOUSE,10547,07/04/2020,3444921,"1,980.09",0.00,N/A,N/A
Learning Disability Support,Transitions and Ordinary Lives - Learning Disability Support,Transitions and Ordinary Lives,CHESAPEAKE HOUSE,10547,07/04/2020,3444922,"2,376.44",0.00,N/A,N/A
Learning Disability Support,Transitions and Ordinary Lives - Learning Disability Support,Transitions and Ordinary Lives,CHESAPEAKE HOUSE,10547,07/04/2020,3445065,"1,980.09",0.00,N/A,N/A
Learning Disability Support,Transitions and Ordinary Lives - Learning Disability Support,Transitions and Ordinary Lives,CHESAPEAKE HOUSE,10547,07/04/2020,3444984,"1,980.09",0.00,N/A,N/A
Learning Disability Support,Transitions and Ordinary Lives - Learning Disability Support,Transitions and Ordinary Lives,CHESAPEAKE HOUSE,10547,07/04/2020,3444985,"1,980.09",0.00,N/A,N/A
Physical Support,Community Support - Physical Support,Community Support,CHESTNUT VIEW,10548,07/04/2020,3443604,"1,588.86",0.00,N/A,N/A
Physical Support,Community Support - Physical Support,Community Support,CHESTNUT VIEW,10548,07/04/2020,3443841,"1,588.86",0.00,N/A,N/A
Physical Support,Community Support - Physical Support,Community Support,CHESTNUT VIEW,10548,07/04/2020,3443758,"1,588.86",0.00,N/A,N/A
Physical Support,Community Support - Physical Support,Community Support,CHESTNUT VIEW,10548,07/04/2020,3443508,"1,965.95",0.00,N/A,N/A
Physical Support,Community Support - Physical Support,Community Support,CHESTNUT VIEW,10548,07/04/2020,3443936,"1,588.86",0.00,N/A,N/A
Physical Support,Community Support - Physical Support,Community Support,CHESTNUT VIEW,10548,07/04/2020,3443675,"1,893.13",0.00,N/A,N/A
Support with Memory and Cognition,Community Support - Support with Memory and Cognition,Community Support,CHESTNUT VIEW,10548,07/04/2020,3443833,"1,588.86",0.00,N/A,N/A
Mental Health Support,Mental Health - Mental Health Support,Mental Health,CHESTNUT VIEW,10548,07/04/2020,3443609,"1,588.86",0.00,N/A,N/A
Integrated Services,Agency Placements,Non-Schools,CHILDCARE BUREAU LTD,1109500,07/04/2020,3446255,"3,300.00",0.00,N/A,N/A
Integrated Services,Agency Placements,Non-Schools,CHILDCARE BUREAU LTD,1109500,07/04/2020,3446255,"3,300.00",0.00,N/A,N/A
Integrated Services,Agency Placements,Non-Schools,CHILDCARE BUREAU LTD,1109500,07/04/2020,3446255,"3,260.00",0.00,N/A,N/A
Physical Support,Community Support - Physical Support,Community Support,CHOICE SUPPORT AND CARE SERVICES LTD,1291469,07/04/2020,3441182,659.20,0.00,N/A,N/A
Integrated Services,Agency Placements,Non-Schools,CHRYSALIS CONSORTIUM,1109501,07/04/2020,3446076,"4,800.00",0.00,N/A,N/A
Integrated Services,Agency Placements,Non-Schools,CHRYSALIS CONSORTIUM,1109501,07/04/2020,3446076,"4,800.00",0.00,N/A,N/A
Support with Memory and Cognition,Community Support - Support with Memory and Cognition,Community Support,CHURCH FARM AT SKYLARKS LTD,815455,07/04/2020,3445504,"2,317.71",0.00,N/A,N/A
Support with Memory and Cognition,Community Support - Support with Memory and Cognition,Community Support,CHURCH FARM AT SKYLARKS LTD,815455,07/04/2020,3445687,"1,366.26",0.00,N/A,N/A
Physical Support,Community Support - Physical Support,Community Support,CLOVA HOUSE,10572,07/04/2020,3443248,"1,588.86",0.00,N/A,N/A
Physical Support,Community Support - Physical Support,Community Support,CLOVA HOUSE,10572,07/04/2020,3443249,"1,588.86",0.00,N/A,N/A
Physical Support,Community Support - Physical Support,Community Support,CLOVA HOUSE,10572,07/04/2020,3443225,"1,588.86",0.00,N/A,N/A
Physical Support,Community Support - Physical Support,Community Support,CLOVA HOUSE,10572,07/04/2020,3443353,"1,588.86",0.00,N/A,N/A
Physical Support,Community Support - Physical Support,Community Support,CLOVA HOUSE,10572,07/04/2020,3443155,"1,588.86",0.00,N/A,N/A
Physical Support,Community Support - Physical Support,Community Support,CLOVA HOUSE,10572,07/04/2020,3443156,"1,588.86",0.00,N/A,N/A
Physical Support,Community Support - Physical Support,Community Support,CLOVA HOUSE,10572,07/04/2020,3443189,"1,588.86",0.00,N/A,N/A
Support with Memory and Cognition,Community Support - Support with Memory and Cognition,Community Support,CLOVA HOUSE,10572,07/04/2020,3443220,"1,588.86",0.00,N/A,N/A
Mental Health Support,Mental Health - Mental Health Support,Mental Health,CLOVA HOUSE,10572,07/04/2020,3443251,"1,588.86",0.00,N/A,N/A
Mental Health Support,Mental Health - Mental Health Support,Mental Health,CLOVA HOUSE,10572,07/04/2020,3443226,"1,588.86",0.00,N/A,N/A
Learning Disability Support,Transitions and Ordinary Lives - Learning Disability Support,Transitions and Ordinary Lives,CLOVA HOUSE,10572,07/04/2020,3443157,"1,588.86",0.00,N/A,N/A
Learning Disability Support,Transitions and Ordinary Lives - Learning Disability Support,Transitions and Ordinary Lives,CLOVA HOUSE,10572,07/04/2020,3443190,"1,588.86",0.00,N/A,N/A
Mental Health Support,Mental Health - Mental Health Support,Mental Health,CLOVA HOUSE,10572,07/04/2020,3443114,"1,588.86",0.00,N/A,N/A
Property Design & Maintenance,Building - Repairs & Maintenance,"Regeneration, Property & Housing",CLYMAC LTD,187927,07/04/2020,3445259,"6,707.64",0.00,N/A,N/A
Obsolete Codes,Capital,Capital,COMMUNITY ACTION DERBY LTD,1164,07/04/2020,3445293,"85,000.00",0.00,N/A,N/A
Learning Disability Support,Community Support - Learning Disability Support,Community Support,COMMUNITY LINKS DERBY CIC,868453,07/04/2020,3441425,"2,479.40",0.00,N/A,N/A
Learning Disability Support,Community Support - Learning Disability Support,Community Support,COMMUNITY LINKS DERBY CIC,868453,07/04/2020,3441295,"1,666.20",0.00,N/A,N/A
Learning Disability Support,Community Support - Learning Disability Support,Community Support,COMMUNITY LINKS DERBY CIC,868453,07/04/2020,3441296,"2,479.40",0.00,N/A,N/A
Learning Disability Support,Community Support - Learning Disability Support,Community Support,COMMUNITY LINKS DERBY CIC,868453,07/04/2020,3441048,680.00,0.00,N/A,N/A
Learning Disability Support,Community Support - Learning Disability Support,Community Support,COMMUNITY LINKS DERBY CIC,868453,07/04/2020,3441792,"2,479.40",0.00,N/A,N/A
Learning Disability Support,Community Support - Learning Disability Support,Community Support,COMMUNITY LINKS DERBY CIC,868453,07/04/2020,3441172,"2,479.40",0.00,N/A,N/A
Learning Disability Support,Community Support - Learning Disability Support,Community Support,COMMUNITY LINKS DERBY CIC,868453,07/04/2020,3441552,"2,479.40",0.00,N/A,N/A
Learning Disability Support,Community Support - Learning Disability Support,Community Support,COMMUNITY LINKS DERBY CIC,868453,07/04/2020,3441426,"2,479.40",0.00,N/A,N/A
Learning Disability Support,Community Support - Learning Disability Support,Community Support,COMMUNITY LINKS DERBY CIC,868453,07/04/2020,3441912,680.00,0.00,N/A,N/A
Learning Disability Support,Community Support - Learning Disability Support,Community Support,COMMUNITY LINKS DERBY CIC,868453,07/04/2020,3441793,"1,666.20",0.00,N/A,N/A
Learning Disability Support,Community Support - Learning Disability Support,Community Support,COMMUNITY LINKS DERBY CIC,868453,07/04/2020,3441553,"2,479.40",0.00,N/A,N/A
Learning Disability Support,Community Support - Learning Disability Support,Community Support,COMMUNITY LINKS DERBY CIC,868453,07/04/2020,3441554,"1,275.12",0.00,N/A,N/A
Physical Support,Community Support - Physical Support,Community Support,COMMUNITY LINKS DERBY CIC,868453,07/04/2020,3441782,"1,983.52",0.00,N/A,N/A
Learning Disability Support,Transitions and Ordinary Lives - Learning Disability Support,Transitions and Ordinary Lives,COMMUNITY LINKS DERBY CIC,868453,07/04/2020,3441297,"1,374.60",0.00,N/A,N/A
Learning Disability Support,Transitions and Ordinary Lives - Learning Disability Support,Transitions and Ordinary Lives,COMMUNITY LINKS DERBY CIC,868453,07/04/2020,3441173,"2,291.00",0.00,N/A,N/A
Integrated Services,Agency Placements,Non-Schools,COMPASS FOSTERING CENTRAL LTD,1109502,07/04/2020,3446033,"3,059.92",0.00,N/A,N/A
Integrated Services,Agency Placements,Non-Schools,COMPASS FOSTERING CENTRAL LTD,1109502,07/04/2020,3446033,"3,059.92",0.00,N/A,N/A
Integrated Services,Agency Placements,Non-Schools,COMPASS FOSTERING CENTRAL LTD,1109502,07/04/2020,3446033,"3,059.92",0.00,N/A,N/A
Integrated Services,Agency Placements,Non-Schools,COMPASS FOSTERING CENTRAL LTD,1109502,07/04/2020,3446033,"3,059.92",0.00,N/A,N/A
Integrated Services,Agency Placements,Non-Schools,COMPASS FOSTERING CENTRAL LTD,1109502,07/04/2020,3446033,"2,957.96",0.00,N/A,N/A
Integrated Services,Agency Placements,Non-Schools,COMPASS FOSTERING CENTRAL LTD,1109502,07/04/2020,3446033,"2,957.96",0.00,N/A,N/A
Integrated Services,Agency Placements,Non-Schools,COMPASS FOSTERING CENTRAL LTD,1109502,07/04/2020,3446033,"2,957.96",0.00,N/A,N/A
Integrated Services,Agency Placements,Non-Schools,COMPASS FOSTERING CENTRAL LTD,1109502,07/04/2020,3446033,"2,957.96",0.00,N/A,N/A
Integrated Services,Agency Placements,Non-Schools,COMPASS FOSTERING CENTRAL LTD,1109502,07/04/2020,3446033,"2,957.96",0.00,N/A,N/A
Integrated Services,Agency Placements,Non-Schools,COMPASS FOSTERING CENTRAL LTD,1109502,07/04/2020,3446033,"2,957.96",0.00,N/A,N/A
Integrated Services,Agency Placements,Non-Schools,COMPASS FOSTERING CENTRAL LTD,1109502,07/04/2020,3446033,"2,957.96",0.00,N/A,N/A
Integrated Services,Agency Placements,Non-Schools,COMPASS FOSTERING CENTRAL LTD,1109502,07/04/2020,3446033,"2,957.96",0.00,N/A,N/A
Integrated Services,Agency Placements,Non-Schools,COMPASS FOSTERING CENTRAL LTD,1109502,07/04/2020,3446033,"2,957.96",0.00,N/A,N/A
Integrated Services,Agency Placements,Non-Schools,COMPASS FOSTERING CENTRAL LTD,1109502,07/04/2020,3446033,"2,957.96",0.00,N/A,N/A
Integrated Services,Agency Placements,Non-Schools,COMPASS FOSTERING CENTRAL LTD,1109502,07/04/2020,3446033,"2,957.96",0.00,N/A,N/A
Integrated Services,Agency Placements,Non-Schools,COMPASS FOSTERING CENTRAL LTD,1109502,07/04/2020,3446033,"2,957.96",0.00,N/A,N/A
Integrated Services,Agency Placements,Non-Schools,COMPASS FOSTERING CENTRAL LTD,1109502,07/04/2020,3446033,"2,957.96",0.00,N/A,N/A
Integrated Services,Agency Placements,Non-Schools,COMPASS FOSTERING CENTRAL LTD,1109502,07/04/2020,3446033,"2,957.96",0.00,N/A,N/A
Integrated Services,Agency Placements,Non-Schools,COMPASS FOSTERING CENTRAL LTD,1109502,07/04/2020,3446033,"2,856.00",0.00,N/A,N/A
Integrated Services,Agency Placements,Non-Schools,COMPASS FOSTERING CENTRAL LTD,1109502,07/04/2020,3446033,"2,957.96",0.00,N/A,N/A
Integrated Services,Agency Placements,Non-Schools,COMPASS FOSTERING CENTRAL LTD,1109502,07/04/2020,3446033,"2,856.00",0.00,N/A,N/A
Integrated Services,Agency Placements,Non-Schools,COMPASS FOSTERING CENTRAL LTD,1109502,07/04/2020,3446033,"2,856.00",0.00,N/A,N/A
Integrated Services,Agency Placements,Non-Schools,COMPASS FOSTERING CENTRAL LTD,1109502,07/04/2020,3446033,"2,856.00",0.00,N/A,N/A
Integrated Services,Agency Placements,Non-Schools,COMPASS FOSTERING CENTRAL LTD,1109502,07/04/2020,3446033,"2,856.00",0.00,N/A,N/A
Integrated Services,Agency Placements,Non-Schools,COMPASS FOSTERING CENTRAL LTD,1109502,07/04/2020,3446033,"2,856.00",0.00,N/A,N/A
Integrated Services,Agency Placements,Non-Schools,COMPASS FOSTERING CENTRAL LTD,1109502,07/04/2020,3446033,"2,856.00",0.00,N/A,N/A
Integrated Services,Agency Placements,Non-Schools,COMPASS FOSTERING CENTRAL LTD,1109502,07/04/2020,3446033,"4,487.92",0.00,N/A,N/A
Integrated Services,Agency Placements,Non-Schools,COMPASS FOSTERING CENTRAL LTD,1109502,07/04/2020,3446033,"4,436.92",0.00,N/A,N/A
Integrated Services,Agency Placements,Non-Schools,COMPASS FOSTERING CENTRAL LTD,1109502,07/04/2020,3446033,"3,332.00",0.00,N/A,N/A
Integrated Services,Agency Placements,Non-Schools,COMPASS FOSTERING CENTRAL LTD,1109502,07/04/2020,3446033,"2,856.00",0.00,N/A,N/A
Integrated Services,Agency Placements,Non-Schools,COMPASS FOSTERING CENTRAL LTD,1109502,07/04/2020,3446033,"2,447.88",0.00,N/A,N/A
Integrated Services,Agency Placements,Non-Schools,COMPASS FOSTERING CENTRAL LTD,1109502,07/04/2020,3446033,"2,447.88",0.00,N/A,N/A
Integrated Services,Agency Placements,Non-Schools,COMPASS FOSTERING CENTRAL LTD,1109502,07/04/2020,3446033,"2,447.88",0.00,N/A,N/A
Integrated Services,Agency Placements,Non-Schools,COMPASS FOSTERING CENTRAL LTD,1109502,07/04/2020,3446033,"1,942.86",0.00,N/A,N/A
Integrated Services,Agency Placements,Non-Schools,COMPASS FOSTERING CENTRAL LTD,1109502,07/04/2020,3446033,"1,457.16",0.00,N/A,N/A
Integrated Services,Agency Placements,Non-Schools,COMPASS FOSTERING CENTRAL LTD,1109502,07/04/2020,3446033,"1,373.34",0.00,N/A,N/A
Property Design & Maintenance,Building - Repairs & Maintenance,"Regeneration, Property & Housing",CONCEPT ELEVATORS UK LIMITED,1116493,07/04/2020,3445249,"1,725.74",0.00,N/A,N/A
Learning Disability Support,Transitions and Ordinary Lives - Learning Disability Support,Transitions and Ordinary Lives,CRAEGMOOR HEALTHCARE,10478,07/04/2020,3445854,"1,604.60",0.00,N/A,N/A
Learning Disability Support,Transitions and Ordinary Lives - Learning Disability Support,Transitions and Ordinary Lives,CRAEGMOOR WIGGINTON COTTAGE,896468,07/04/2020,3444960,712.12,0.00,N/A,N/A
Learning Disability Support,Transitions and Ordinary Lives - Learning Disability Support,Transitions and Ordinary Lives,CRAEGMOOR WIGGINTON COTTAGE,896468,07/04/2020,3444961,"9,257.56",0.00,N/A,N/A
Learning Disability Support,Community Support - Learning Disability Support,Community Support,CREATIVE SUPPORT LTD,1026475,07/04/2020,3441512,"1,883.16",0.00,N/A,N/A
Learning Disability Support,Community Support - Learning Disability Support,Community Support,CREATIVE SUPPORT LTD,1026475,07/04/2020,3441757,"1,739.60",0.00,N/A,N/A
Learning Disability Support,Transitions and Ordinary Lives - Learning Disability Support,Transitions and Ordinary Lives,CREATIVE SUPPORT LTD,1026475,07/04/2020,3441892,"6,708.52",0.00,N/A,N/A
Learning Disability Support,Transitions and Ordinary Lives - Learning Disability Support,Transitions and Ordinary Lives,CREATIVE SUPPORT LTD,1026475,07/04/2020,3441893,"6,708.52",0.00,N/A,N/A
Learning Disability Support,Transitions and Ordinary Lives - Learning Disability Support,Transitions and Ordinary Lives,CREATIVE SUPPORT LTD,1026475,07/04/2020,3441147,"1,883.16",0.00,N/A,N/A
Learning Disability Support,Transitions and Ordinary Lives - Learning Disability Support,Transitions and Ordinary Lives,CREATIVE SUPPORT LTD,1026475,07/04/2020,3441260,"8,029.76",0.00,N/A,N/A
Learning Disability Support,Transitions and Ordinary Lives - Learning Disability Support,Transitions and Ordinary Lives,CREATIVE SUPPORT LTD,1026475,07/04/2020,3441513,"1,136.40",0.00,N/A,N/A
Integrated Services,Agency Placements,Non-Schools,CREDO CARE LTD,1109505,07/04/2020,3446140,"5,992.00",0.00,N/A,N/A
Learning Disability Support,Community Support - Learning Disability Support,Community Support,CYGNET LEARNING DISABILITIES MIDLANDS LIMITED,959473,07/04/2020,3445582,"6,006.00",0.00,N/A,N/A
Learning Disability Support,Transitions and Ordinary Lives - Learning Disability Support,Transitions and Ordinary Lives,CYGNET LEARNING DISABILITIES MIDLANDS LIMITED,959473,07/04/2020,3445869,572.44,0.00,N/A,N/A
Learning Disability Support,Transitions and Ordinary Lives - Learning Disability Support,Transitions and Ordinary Lives,CYGNET LEARNING DISABILITIES MIDLANDS LIMITED,959473,07/04/2020,3445870,572.44,0.00,N/A,N/A
Learning Disability Support,Transitions and Ordinary Lives - Learning Disability Support,Transitions and Ordinary Lives,CYGNET LEARNING DISABILITIES MIDLANDS LIMITED,959473,07/04/2020,3445741,572.44,0.00,N/A,N/A
Learning Disability Support,Transitions and Ordinary Lives - Learning Disability Support,Transitions and Ordinary Lives,CYGNET LEARNING DISABILITIES MIDLANDS LIMITED,959473,07/04/2020,3445742,572.44,0.00,N/A,N/A
Learning Disability Support,Transitions and Ordinary Lives - Learning Disability Support,Transitions and Ordinary Lives,CYGNET LEARNING DISABILITIES MIDLANDS LIMITED,959473,07/04/2020,3445925,552.00,0.00,N/A,N/A
Learning Disability Support,Transitions and Ordinary Lives - Learning Disability Support,Transitions and Ordinary Lives,CYGNET LEARNING DISABILITIES MIDLANDS LIMITED,959473,07/04/2020,3445803,572.44,0.00,N/A,N/A
Learning Disability Support,Transitions and Ordinary Lives - Learning Disability Support,Transitions and Ordinary Lives,CYGNET LEARNING DISABILITIES MIDLANDS LIMITED,959473,07/04/2020,3445515,"8,672.86",0.00,N/A,N/A
Learning Disability Support,Transitions and Ordinary Lives - Learning Disability Support,Transitions and Ordinary Lives,CYGNET LEARNING DISABILITIES MIDLANDS LIMITED,959473,07/04/2020,3445693,667.14,0.00,N/A,N/A
Learning Disability Support,Transitions and Ordinary Lives - Learning Disability Support,Transitions and Ordinary Lives,CYGNET LEARNING DISABILITIES MIDLANDS LIMITED,959473,07/04/2020,3445927,"4,483.07",0.00,N/A,N/A
Learning Disability Support,Transitions and Ordinary Lives - Learning Disability Support,Transitions and Ordinary Lives,CYGNET NW LTD,920472,07/04/2020,3445007,"5,734.78",0.00,N/A,N/A
Mental Health Support,Mental Health - Mental Health Support,Mental Health,DALE TOPCO LTD,624443,07/04/2020,3445684,"1,130.63",0.00,N/A,N/A
Mental Health Support,Mental Health - Mental Health Support,Mental Health,DALE TOPCO LTD,624443,07/04/2020,3445733,"1,262.86",0.00,N/A,N/A
Mental Health Support,Mental Health - Mental Health Support,Mental Health,DALE TOPCO LTD,624443,07/04/2020,3445862,"1,894.29",0.00,N/A,N/A
Public Health,Drugs and Alcohol,Public Health,DAY NIGHT LTD,187651,07/04/2020,3445989,"2,716.00",0.00,N/A,N/A
Public Health,Drugs and Alcohol,Public Health,DAY NIGHT LTD,187651,07/04/2020,3445989,"1,632.00",0.00,N/A,N/A
Public Health,Drugs and Alcohol,Public Health,DAY NIGHT LTD,187651,07/04/2020,3445966,"2,028.00",0.00,N/A,N/A
Public Health,Drugs and Alcohol,Public Health,DAY NIGHT LTD,187651,07/04/2020,3445966,"1,218.00",0.00,N/A,N/A
Public Health,Drugs and Alcohol,Public Health,DAY NIGHT LTD,187651,07/04/2020,3445975,"1,412.00",0.00,N/A,N/A
Public Health,Drugs and Alcohol,Public Health,DAY NIGHT LTD,187651,07/04/2020,3445975,938.00,0.00,N/A,N/A
Refuse & Waste Management,Refuse Collection,"Strategic Partnerships, Planning & Streetpride",DENNIS EAGLE LTD,1121,07/04/2020,3445455,"3,990.56",0.00,Communities & Place,Commercial and Military and Private Vehi
Refuse & Waste Management,Refuse Collection,"Strategic Partnerships, Planning & Streetpride",DENNIS EAGLE LTD,1121,07/04/2020,3445455,"8,312.50",0.00,Communities & Place,Commercial and Military and Private Vehi
Refuse & Waste Management,Refuse Collection,"Strategic Partnerships, Planning & Streetpride",DENNIS EAGLE LTD,1121,07/04/2020,3445455,"8,312.50",0.00,Communities & Place,Commercial and Military and Private Vehi
Refuse & Waste Management,Refuse Collection,"Strategic Partnerships, Planning & Streetpride",DENNIS EAGLE LTD,1121,07/04/2020,3445448,"3,850.00",0.00,Communities & Place,Commercial and Military and Private Vehi
Refuse & Waste Management,Refuse Collection,"Strategic Partnerships, Planning & Streetpride",DENNIS EAGLE LTD,1121,07/04/2020,3445448,783.75,0.00,Communities & Place,Commercial and Military and Private Vehi
Refuse & Waste Management,Refuse Collection,"Strategic Partnerships, Planning & Streetpride",DENNIS EAGLE LTD,1121,07/04/2020,3445448,"2,508.00",0.00,Communities & Place,Commercial and Military and Private Vehi
Refuse & Waste Management,Refuse Collection,"Strategic Partnerships, Planning & Streetpride",DENNIS EAGLE LTD,1121,07/04/2020,3445448,"6,531.25",0.00,Communities & Place,Commercial and Military and Private Vehi
Refuse & Waste Management,Refuse Collection,"Strategic Partnerships, Planning & Streetpride",DENNIS EAGLE LTD,1121,07/04/2020,3445453,"1,425.00",0.00,Communities & Place,Commercial and Military and Private Vehi
Commissioning,School Organisation & Provision,Non-Schools,DERBY CITY BSF LIMITED,127009,07/04/2020,3442073,"2,008.45",0.00,N/A,N/A
Commissioning,School Organisation & Provision,Non-Schools,DERBY CITY BSF LIMITED,127009,07/04/2020,3442073,"5,684.25",0.00,N/A,N/A
Commissioning,School Organisation & Provision,Non-Schools,DERBY CITY BSF LIMITED,127009,07/04/2020,3442073,"1,984.64",0.00,N/A,N/A
Commissioning,School Organisation & Provision,Non-Schools,DERBY CITY BSF LIMITED,127009,07/04/2020,3442073,"5,084.37",0.00,N/A,N/A
Commissioning,School Organisation & Provision,Non-Schools,DERBY CITY BSF LIMITED,127009,07/04/2020,3442073,"449,312.56",0.00,N/A,N/A
Commissioning,School Organisation & Provision,Non-Schools,DERBY CITY BSF LIMITED,127009,07/04/2020,3442073,"1,655.00",0.00,N/A,N/A
Commissioning,School Organisation & Provision,Non-Schools,DERBY CITY BSF LIMITED,127009,07/04/2020,3442073,"7,367.33",0.00,N/A,N/A
Commissioning,School Organisation & Provision,Non-Schools,DERBY CITY BSF LIMITED,127009,07/04/2020,3442073,919.58,0.00,N/A,N/A
Commissioning,School Organisation & Provision,Non-Schools,DERBY CITY BSF LIMITED,127009,07/04/2020,3442073,"8,473.75",0.00,N/A,N/A
Strategic Housing,Housing and Advice,"Regeneration, Property & Housing",DERBY CITY COUNCIL C/TAX,1036478,07/04/2020,3445479,790.19,0.00,N/A,N/A
General,Stores Road Depot & Fleet Management,"Strategic Partnerships, Planning & Streetpride",DERBY HOMES LTD,1078471,07/04/2020,3446428,846.40,0.00,N/A,N/A
General,Stores Road Depot & Fleet Management,"Strategic Partnerships, Planning & Streetpride",DERBY HOMES LTD,1078471,07/04/2020,3446508,502.69,0.00,N/A,N/A
General,Stores Road Depot & Fleet Management,"Strategic Partnerships, Planning & Streetpride",DERBY HOMES LTD,1078471,07/04/2020,3446495,668.77,0.00,N/A,N/A
General,Stores Road Depot & Fleet Management,"Strategic Partnerships, Planning & Streetpride",DERBY HOMES LTD,1078471,07/04/2020,3446444,708.66,0.00,N/A,N/A
General,Stores Road Depot & Fleet Management,"Strategic Partnerships, Planning & Streetpride",DERBY HOMES LTD,1078471,07/04/2020,3445436,"1,854.12",0.00,N/A,N/A
General,Stores Road Depot & Fleet Management,"Strategic Partnerships, Planning & Streetpride",DERBY HOMES LTD,1078471,07/04/2020,3445447,"1,016.90",0.00,N/A,N/A
General,Stores Road Depot & Fleet Management,"Strategic Partnerships, Planning & Streetpride",DERBY HOMES LTD,1078471,07/04/2020,3445441,"2,813.01",0.00,N/A,N/A
General,Stores Road Depot & Fleet Management,"Strategic Partnerships, Planning & Streetpride",DERBY HOMES LTD,1078471,07/04/2020,3445452,"1,140.61",0.00,N/A,N/A
Adults Health and Housing,Capital,Capital,DERBY HOMES LTD,1078471,07/04/2020,3445440,"14,190.88",0.00,N/A,N/A
Adults Health and Housing,Capital,Capital,DERBY HOMES LTD,1078471,07/04/2020,3445439,"7,416.88",0.00,N/A,N/A
Adults Health and Housing,Capital,Capital,DERBY HOMES LTD,1078471,07/04/2020,3445438,"8,881.00",0.00,N/A,N/A
Adults Health and Housing,Capital,Capital,DERBY HOMES LTD,1078471,07/04/2020,3445437,"7,184.50",0.00,N/A,N/A
Museums,Museums,"Leisure, Culture and Tourism",DERBY MUSEUMS,127016,07/04/2020,3445395,"81,680.00",0.00,N/A,N/A
Culture & Business Development,Culture & Business Development,"Leisure, Culture and Tourism",DERBY QUAD LTD,7833,07/04/2020,3445465,"25,000.00",0.00,Communities & Place,Travel and Food and Lodging and Entertai
Learning Disability Support,Transitions and Ordinary Lives - Learning Disability Support,Transitions and Ordinary Lives,DERBY ROAD CARE HOME,10579,07/04/2020,3445577,627.92,0.00,N/A,N/A
Learning Disability Support,Transitions and Ordinary Lives - Learning Disability Support,Transitions and Ordinary Lives,DERBY ROAD CARE HOME,10579,07/04/2020,3445796,"5,456.14",0.00,N/A,N/A
Learning Disability Support,Transitions and Ordinary Lives - Learning Disability Support,Transitions and Ordinary Lives,DERBY ROAD CARE HOME,10579,07/04/2020,3445689,"8,162.96",0.00,N/A,N/A
Learning Disability Support,Transitions and Ordinary Lives - Learning Disability Support,Transitions and Ordinary Lives,DERBY ROAD CARE HOME,10579,07/04/2020,3445578,611.19,0.00,N/A,N/A
Learning Disability Support,Transitions and Ordinary Lives - Learning Disability Support,Transitions and Ordinary Lives,DERBY ROAD CARE HOME,10579,07/04/2020,3445797,"7,945.49",0.00,N/A,N/A
Learning Disability Support,Community Support - Learning Disability Support,Community Support,DERBYSHIRE CARE SERVICES,388459,07/04/2020,3441630,588.80,0.00,N/A,N/A
Learning Disability Support,Community Support - Learning Disability Support,Community Support,DERBYSHIRE CARE SERVICES,388459,07/04/2020,3441498,963.56,0.00,N/A,N/A
Learning Disability Support,Community Support - Learning Disability Support,Community Support,DERBYSHIRE CARE SERVICES,388459,07/04/2020,3441126,737.77,0.00,N/A,N/A
Learning Disability Support,Community Support - Learning Disability Support,Community Support,DERBYSHIRE CARE SERVICES,388459,07/04/2020,3441384,"1,028.36",0.00,N/A,N/A
Mental Health Support,Community Support - Mental Health Support,Community Support,DERBYSHIRE CARE SERVICES,388459,07/04/2020,3441255,553.68,0.00,N/A,N/A
Mental Health Support,Community Support - Mental Health Support,Community Support,DERBYSHIRE CARE SERVICES,388459,07/04/2020,3441388,896.34,0.00,N/A,N/A
Physical Support,Community Support - Physical Support,Community Support,DERBYSHIRE CARE SERVICES,388459,07/04/2020,3441076,797.76,0.00,N/A,N/A
Physical Support,Community Support - Physical Support,Community Support,DERBYSHIRE CARE SERVICES,388459,07/04/2020,3441324,657.28,0.00,N/A,N/A
Physical Support,Community Support - Physical Support,Community Support,DERBYSHIRE CARE SERVICES,388459,07/04/2020,3441325,659.20,0.00,N/A,N/A
Physical Support,Community Support - Physical Support,Community Support,DERBYSHIRE CARE SERVICES,388459,07/04/2020,3441326,714.04,0.00,N/A,N/A
Physical Support,Community Support - Physical Support,Community Support,DERBYSHIRE CARE SERVICES,388459,07/04/2020,3441327,861.40,0.00,N/A,N/A
Physical Support,Community Support - Physical Support,Community Support,DERBYSHIRE CARE SERVICES,388459,07/04/2020,3441581,861.40,0.00,N/A,N/A
Physical Support,Community Support - Physical Support,Community Support,DERBYSHIRE CARE SERVICES,388459,07/04/2020,3441927,964.68,0.00,N/A,N/A
Physical Support,Community Support - Physical Support,Community Support,DERBYSHIRE CARE SERVICES,388459,07/04/2020,3441698,539.96,0.00,N/A,N/A
Physical Support,Community Support - Physical Support,Community Support,DERBYSHIRE CARE SERVICES,388459,07/04/2020,3441699,863.04,0.00,N/A,N/A
Physical Support,Community Support - Physical Support,Community Support,DERBYSHIRE CARE SERVICES,388459,07/04/2020,3441822,797.76,0.00,N/A,N/A
Physical Support,Community Support - Physical Support,Community Support,DERBYSHIRE CARE SERVICES,388459,07/04/2020,3441190,539.96,0.00,N/A,N/A
Physical Support,Community Support - Physical Support,Community Support,DERBYSHIRE CARE SERVICES,388459,07/04/2020,3441191,657.28,0.00,N/A,N/A
Physical Support,Community Support - Physical Support,Community Support,DERBYSHIRE CARE SERVICES,388459,07/04/2020,3441192,951.36,0.00,N/A,N/A
Physical Support,Community Support - Physical Support,Community Support,DERBYSHIRE CARE SERVICES,388459,07/04/2020,3441818,827.43,0.00,N/A,N/A
Physical Support,Community Support - Physical Support,Community Support,DERBYSHIRE CARE SERVICES,388459,07/04/2020,3441448,703.44,0.00,N/A,N/A
Physical Support,Community Support - Physical Support,Community Support,DERBYSHIRE CARE SERVICES,388459,07/04/2020,3441187,659.20,0.00,N/A,N/A
Physical Support,Community Support - Physical Support,Community Support,DERBYSHIRE CARE SERVICES,388459,07/04/2020,3441575,703.44,0.00,N/A,N/A
Physical Support,Community Support - Physical Support,Community Support,DERBYSHIRE CARE SERVICES,388459,07/04/2020,3441369,549.36,0.00,N/A,N/A
Physical Support,Community Support - Physical Support,Community Support,DERBYSHIRE CARE SERVICES,388459,07/04/2020,3441370,576.72,0.00,N/A,N/A
Physical Support,Community Support - Physical Support,Community Support,DERBYSHIRE CARE SERVICES,388459,07/04/2020,3441241,859.16,0.00,N/A,N/A
Physical Support,Community Support - Physical Support,Community Support,DERBYSHIRE CARE SERVICES,388459,07/04/2020,3441242,998.56,0.00,N/A,N/A
Physical Support,Community Support - Physical Support,Community Support,DERBYSHIRE CARE SERVICES,388459,07/04/2020,3441730,"1,103.24",0.00,N/A,N/A
Physical Support,Community Support - Physical Support,Community Support,DERBYSHIRE CARE SERVICES,388459,07/04/2020,3441731,"1,103.24",0.00,N/A,N/A
Physical Support,Community Support - Physical Support,Community Support,DERBYSHIRE CARE SERVICES,388459,07/04/2020,3441732,"1,168.44",0.00,N/A,N/A
Physical Support,Community Support - Physical Support,Community Support,DERBYSHIRE CARE SERVICES,388459,07/04/2020,3441118,659.20,0.00,N/A,N/A
Physical Support,Community Support - Physical Support,Community Support,DERBYSHIRE CARE SERVICES,388459,07/04/2020,3441119,713.28,0.00,N/A,N/A
Physical Support,Community Support - Physical Support,Community Support,DERBYSHIRE CARE SERVICES,388459,07/04/2020,3441122,"1,032.24",0.00,N/A,N/A
Physical Support,Community Support - Physical Support,Community Support,DERBYSHIRE CARE SERVICES,388459,07/04/2020,3441123,"1,032.24",0.00,N/A,N/A
Physical Support,Community Support - Physical Support,Community Support,DERBYSHIRE CARE SERVICES,388459,07/04/2020,3441115,529.05,0.00,N/A,N/A
Physical Support,Community Support - Physical Support,Community Support,DERBYSHIRE CARE SERVICES,388459,07/04/2020,3441116,538.76,0.00,N/A,N/A
Physical Support,Community Support - Physical Support,Community Support,DERBYSHIRE CARE SERVICES,388459,07/04/2020,3441124,"1,726.06",0.00,N/A,N/A
Physical Support,Community Support - Physical Support,Community Support,DERBYSHIRE CARE SERVICES,388459,07/04/2020,3441117,539.96,0.00,N/A,N/A
Physical Support,Community Support - Physical Support,Community Support,DERBYSHIRE CARE SERVICES,388459,07/04/2020,3441490,902.04,0.00,N/A,N/A
Physical Support,Community Support - Physical Support,Community Support,DERBYSHIRE CARE SERVICES,388459,07/04/2020,3441496,"1,103.24",0.00,N/A,N/A
Physical Support,Community Support - Physical Support,Community Support,DERBYSHIRE CARE SERVICES,388459,07/04/2020,3441497,"1,168.44",0.00,N/A,N/A
Physical Support,Community Support - Physical Support,Community Support,DERBYSHIRE CARE SERVICES,388459,07/04/2020,3441247,"1,103.24",0.00,N/A,N/A
Physical Support,Community Support - Physical Support,Community Support,DERBYSHIRE CARE SERVICES,388459,07/04/2020,3441862,603.86,0.00,N/A,N/A
Physical Support,Community Support - Physical Support,Community Support,DERBYSHIRE CARE SERVICES,388459,07/04/2020,3441863,777.00,0.00,N/A,N/A
Physical Support,Community Support - Physical Support,Community Support,DERBYSHIRE CARE SERVICES,388459,07/04/2020,3441627,"1,185.56",0.00,N/A,N/A
Physical Support,Community Support - Physical Support,Community Support,DERBYSHIRE CARE SERVICES,388459,07/04/2020,3441864,797.76,0.00,N/A,N/A
Physical Support,Community Support - Physical Support,Community Support,DERBYSHIRE CARE SERVICES,388459,07/04/2020,3441868,"1,032.24",0.00,N/A,N/A
Physical Support,Community Support - Physical Support,Community Support,DERBYSHIRE CARE SERVICES,388459,07/04/2020,3441869,"1,032.24",0.00,N/A,N/A
Physical Support,Community Support - Physical Support,Community Support,DERBYSHIRE CARE SERVICES,388459,07/04/2020,3441966,587.93,0.00,N/A,N/A
Physical Support,Community Support - Physical Support,Community Support,DERBYSHIRE CARE SERVICES,388459,07/04/2020,3441967,687.16,0.00,N/A,N/A
Physical Support,Community Support - Physical Support,Community Support,DERBYSHIRE CARE SERVICES,388459,07/04/2020,3441722,526.80,0.00,N/A,N/A
Physical Support,Community Support - Physical Support,Community Support,DERBYSHIRE CARE SERVICES,388459,07/04/2020,3441723,622.48,0.00,N/A,N/A
Physical Support,Community Support - Physical Support,Community Support,DERBYSHIRE CARE SERVICES,388459,07/04/2020,3441724,703.44,0.00,N/A,N/A
Physical Support,Community Support - Physical Support,Community Support,DERBYSHIRE CARE SERVICES,388459,07/04/2020,3441725,"1,008.92",0.00,N/A,N/A
Physical Support,Community Support - Physical Support,Community Support,DERBYSHIRE CARE SERVICES,388459,07/04/2020,3441726,"1,008.92",0.00,N/A,N/A
Physical Support,Community Support - Physical Support,Community Support,DERBYSHIRE CARE SERVICES,388459,07/04/2020,3441371,713.28,0.00,N/A,N/A
Physical Support,Community Support - Physical Support,Community Support,DERBYSHIRE CARE SERVICES,388459,07/04/2020,3441372,771.88,0.00,N/A,N/A
Physical Support,Community Support - Physical Support,Community Support,DERBYSHIRE CARE SERVICES,388459,07/04/2020,3441373,859.16,0.00,N/A,N/A
Physical Support,Community Support - Physical Support,Community Support,DERBYSHIRE CARE SERVICES,388459,07/04/2020,3441375,"1,091.12",0.00,N/A,N/A
Physical Support,Community Support - Physical Support,Community Support,DERBYSHIRE CARE SERVICES,388459,07/04/2020,3441376,"1,103.24",0.00,N/A,N/A
Physical Support,Community Support - Physical Support,Community Support,DERBYSHIRE CARE SERVICES,388459,07/04/2020,3441377,"1,127.72",0.00,N/A,N/A
Physical Support,Community Support - Physical Support,Community Support,DERBYSHIRE CARE SERVICES,388459,07/04/2020,3441378,"1,726.06",0.00,N/A,N/A
Physical Support,Community Support - Physical Support,Community Support,DERBYSHIRE CARE SERVICES,388459,07/04/2020,3441239,549.36,0.00,N/A,N/A
Physical Support,Community Support - Physical Support,Community Support,DERBYSHIRE CARE SERVICES,388459,07/04/2020,3441240,636.76,0.00,N/A,N/A
Physical Support,Community Support - Physical Support,Community Support,DERBYSHIRE CARE SERVICES,388459,07/04/2020,3441341,687.44,0.00,N/A,N/A
Physical Support,Community Support - Physical Support,Community Support,DERBYSHIRE CARE SERVICES,388459,07/04/2020,3441342,703.44,0.00,N/A,N/A
Physical Support,Community Support - Physical Support,Community Support,DERBYSHIRE CARE SERVICES,388459,07/04/2020,3441343,713.28,0.00,N/A,N/A
Physical Support,Community Support - Physical Support,Community Support,DERBYSHIRE CARE SERVICES,388459,07/04/2020,3441339,539.96,0.00,N/A,N/A
Physical Support,Community Support - Physical Support,Community Support,DERBYSHIRE CARE SERVICES,388459,07/04/2020,3441340,634.28,0.00,N/A,N/A
Physical Support,Community Support - Physical Support,Community Support,DERBYSHIRE CARE SERVICES,388459,07/04/2020,3441222,"1,147.40",0.00,N/A,N/A
Physical Support,Community Support - Physical Support,Community Support,DERBYSHIRE CARE SERVICES,388459,07/04/2020,3441219,953.48,0.00,N/A,N/A
Physical Support,Community Support - Physical Support,Community Support,DERBYSHIRE CARE SERVICES,388459,07/04/2020,3441220,992.92,0.00,N/A,N/A
Physical Support,Community Support - Physical Support,Community Support,DERBYSHIRE CARE SERVICES,388459,07/04/2020,3441846,"1,103.24",0.00,N/A,N/A
Physical Support,Community Support - Physical Support,Community Support,DERBYSHIRE CARE SERVICES,388459,07/04/2020,3441842,738.40,0.00,N/A,N/A
Physical Support,Community Support - Physical Support,Community Support,DERBYSHIRE CARE SERVICES,388459,07/04/2020,3441843,776.69,0.00,N/A,N/A
Physical Support,Community Support - Physical Support,Community Support,DERBYSHIRE CARE SERVICES,388459,07/04/2020,3441596,539.96,0.00,N/A,N/A
Physical Support,Community Support - Physical Support,Community Support,DERBYSHIRE CARE SERVICES,388459,07/04/2020,3441597,539.96,0.00,N/A,N/A
Physical Support,Community Support - Physical Support,Community Support,DERBYSHIRE CARE SERVICES,388459,07/04/2020,3441598,553.68,0.00,N/A,N/A
Physical Support,Community Support - Physical Support,Community Support,DERBYSHIRE CARE SERVICES,388459,07/04/2020,3441602,776.69,0.00,N/A,N/A
Physical Support,Community Support - Physical Support,Community Support,DERBYSHIRE CARE SERVICES,388459,07/04/2020,3441603,779.15,0.00,N/A,N/A
Physical Support,Community Support - Physical Support,Community Support,DERBYSHIRE CARE SERVICES,388459,07/04/2020,3441604,833.32,0.00,N/A,N/A
Physical Support,Community Support - Physical Support,Community Support,DERBYSHIRE CARE SERVICES,388459,07/04/2020,3441610,"1,008.92",0.00,N/A,N/A
Physical Support,Community Support - Physical Support,Community Support,DERBYSHIRE CARE SERVICES,388459,07/04/2020,3441467,539.96,0.00,N/A,N/A
Physical Support,Community Support - Physical Support,Community Support,DERBYSHIRE CARE SERVICES,388459,07/04/2020,3441950,"1,103.24",0.00,N/A,N/A
Physical Support,Community Support - Physical Support,Community Support,DERBYSHIRE CARE SERVICES,388459,07/04/2020,3441951,"1,147.40",0.00,N/A,N/A
Physical Support,Community Support - Physical Support,Community Support,DERBYSHIRE CARE SERVICES,388459,07/04/2020,3441349,863.04,0.00,N/A,N/A
Physical Support,Community Support - Physical Support,Community Support,DERBYSHIRE CARE SERVICES,388459,07/04/2020,3441350,"1,008.92",0.00,N/A,N/A
Physical Support,Community Support - Physical Support,Community Support,DERBYSHIRE CARE SERVICES,388459,07/04/2020,3441357,"1,008.92",0.00,N/A,N/A
Physical Support,Community Support - Physical Support,Community Support,DERBYSHIRE CARE SERVICES,388459,07/04/2020,3441706,542.56,0.00,N/A,N/A
Physical Support,Community Support - Physical Support,Community Support,DERBYSHIRE CARE SERVICES,388459,07/04/2020,3441707,548.68,0.00,N/A,N/A
Physical Support,Community Support - Physical Support,Community Support,DERBYSHIRE CARE SERVICES,388459,07/04/2020,3441711,713.28,0.00,N/A,N/A
Physical Support,Community Support - Physical Support,Community Support,DERBYSHIRE CARE SERVICES,388459,07/04/2020,3441712,"1,103.24",0.00,N/A,N/A
Physical Support,Community Support - Physical Support,Community Support,DERBYSHIRE CARE SERVICES,388459,07/04/2020,3441713,"1,103.24",0.00,N/A,N/A
Physical Support,Community Support - Physical Support,Community Support,DERBYSHIRE CARE SERVICES,388459,07/04/2020,3441105,"1,008.92",0.00,N/A,N/A
Physical Support,Community Support - Physical Support,Community Support,DERBYSHIRE CARE SERVICES,388459,07/04/2020,3441106,"1,008.92",0.00,N/A,N/A
Physical Support,Community Support - Physical Support,Community Support,DERBYSHIRE CARE SERVICES,388459,07/04/2020,3441107,"1,032.24",0.00,N/A,N/A
Physical Support,Community Support - Physical Support,Community Support,DERBYSHIRE CARE SERVICES,388459,07/04/2020,3441090,713.28,0.00,N/A,N/A
Physical Support,Community Support - Physical Support,Community Support,DERBYSHIRE CARE SERVICES,388459,07/04/2020,3441094,762.28,0.00,N/A,N/A
Physical Support,Community Support - Physical Support,Community Support,DERBYSHIRE CARE SERVICES,388459,07/04/2020,3441095,923.92,0.00,N/A,N/A
Physical Support,Community Support - Physical Support,Community Support,DERBYSHIRE CARE SERVICES,388459,07/04/2020,3441096,931.48,0.00,N/A,N/A
Physical Support,Community Support - Physical Support,Community Support,DERBYSHIRE CARE SERVICES,388459,07/04/2020,3441088,653.64,0.00,N/A,N/A
Physical Support,Community Support - Physical Support,Community Support,DERBYSHIRE CARE SERVICES,388459,07/04/2020,3441089,678.50,0.00,N/A,N/A
Physical Support,Community Support - Physical Support,Community Support,DERBYSHIRE CARE SERVICES,388459,07/04/2020,3441358,"1,103.24",0.00,N/A,N/A
Physical Support,Community Support - Physical Support,Community Support,DERBYSHIRE CARE SERVICES,388459,07/04/2020,3441359,"1,103.24",0.00,N/A,N/A
Physical Support,Community Support - Physical Support,Community Support,DERBYSHIRE CARE SERVICES,388459,07/04/2020,3441360,"1,211.15",0.00,N/A,N/A
Physical Support,Community Support - Physical Support,Community Support,DERBYSHIRE CARE SERVICES,388459,07/04/2020,3441215,779.15,0.00,N/A,N/A
Physical Support,Community Support - Physical Support,Community Support,DERBYSHIRE CARE SERVICES,388459,07/04/2020,3441216,790.64,0.00,N/A,N/A
Physical Support,Community Support - Physical Support,Community Support,DERBYSHIRE CARE SERVICES,388459,07/04/2020,3441217,841.84,0.00,N/A,N/A
Physical Support,Community Support - Physical Support,Community Support,DERBYSHIRE CARE SERVICES,388459,07/04/2020,3441218,876.64,0.00,N/A,N/A
Physical Support,Community Support - Physical Support,Community Support,DERBYSHIRE CARE SERVICES,388459,07/04/2020,3441844,916.73,0.00,N/A,N/A
Physical Support,Community Support - Physical Support,Community Support,DERBYSHIRE CARE SERVICES,388459,07/04/2020,3441474,722.88,0.00,N/A,N/A
Physical Support,Community Support - Physical Support,Community Support,DERBYSHIRE CARE SERVICES,388459,07/04/2020,3441475,762.28,0.00,N/A,N/A
Physical Support,Community Support - Physical Support,Community Support,DERBYSHIRE CARE SERVICES,388459,07/04/2020,3441476,771.88,0.00,N/A,N/A
Physical Support,Community Support - Physical Support,Community Support,DERBYSHIRE CARE SERVICES,388459,07/04/2020,3441477,953.48,0.00,N/A,N/A
Physical Support,Community Support - Physical Support,Community Support,DERBYSHIRE CARE SERVICES,388459,07/04/2020,3441480,"1,032.24",0.00,N/A,N/A
Physical Support,Community Support - Physical Support,Community Support,DERBYSHIRE CARE SERVICES,388459,07/04/2020,3441940,628.56,0.00,N/A,N/A
Physical Support,Community Support - Physical Support,Community Support,DERBYSHIRE CARE SERVICES,388459,07/04/2020,3441943,863.04,0.00,N/A,N/A
Physical Support,Community Support - Physical Support,Community Support,DERBYSHIRE CARE SERVICES,388459,07/04/2020,3441944,863.04,0.00,N/A,N/A
Physical Support,Community Support - Physical Support,Community Support,DERBYSHIRE CARE SERVICES,388459,07/04/2020,3441945,990.36,0.00,N/A,N/A
Physical Support,Community Support - Physical Support,Community Support,DERBYSHIRE CARE SERVICES,388459,07/04/2020,3441946,"1,001.56",0.00,N/A,N/A
Physical Support,Community Support - Physical Support,Community Support,DERBYSHIRE CARE SERVICES,388459,07/04/2020,3441248,"1,103.24",0.00,N/A,N/A
Physical Support,Community Support - Physical Support,Community Support,DERBYSHIRE CARE SERVICES,388459,07/04/2020,3441078,724.25,0.00,N/A,N/A
Physical Support,Community Support - Physical Support,Community Support,DERBYSHIRE CARE SERVICES,388459,07/04/2020,3441082,"1,028.36",0.00,N/A,N/A
Physical Support,Community Support - Physical Support,Community Support,DERBYSHIRE CARE SERVICES,388459,07/04/2020,3441457,659.20,0.00,N/A,N/A
Physical Support,Community Support - Physical Support,Community Support,DERBYSHIRE CARE SERVICES,388459,07/04/2020,3441461,797.76,0.00,N/A,N/A
Physical Support,Community Support - Physical Support,Community Support,DERBYSHIRE CARE SERVICES,388459,07/04/2020,3441825,573.91,0.00,N/A,N/A
Physical Support,Community Support - Physical Support,Community Support,DERBYSHIRE CARE SERVICES,388459,07/04/2020,3441831,"1,456.52",0.00,N/A,N/A
Physical Support,Community Support - Physical Support,Community Support,DERBYSHIRE CARE SERVICES,388459,07/04/2020,3441198,"1,103.24",0.00,N/A,N/A
Physical Support,Community Support - Physical Support,Community Support,DERBYSHIRE CARE SERVICES,388459,07/04/2020,3441587,855.48,0.00,N/A,N/A
Physical Support,Community Support - Physical Support,Community Support,DERBYSHIRE CARE SERVICES,388459,07/04/2020,3441456,"1,103.24",0.00,N/A,N/A
Physical Support,Community Support - Physical Support,Community Support,DERBYSHIRE CARE SERVICES,388459,07/04/2020,3441193,"1,103.24",0.00,N/A,N/A
Sensory Support,Community Support - Sensory Support,Community Support,DERBYSHIRE CARE SERVICES,388459,07/04/2020,3441628,"1,134.32",0.00,N/A,N/A
Sensory Support,Community Support - Sensory Support,Community Support,DERBYSHIRE CARE SERVICES,388459,07/04/2020,3441733,703.44,0.00,N/A,N/A
Support with Memory and Cognition,Community Support - Support with Memory and Cognition,Community Support,DERBYSHIRE CARE SERVICES,388459,07/04/2020,3441644,595.23,0.00,N/A,N/A
Support with Memory and Cognition,Community Support - Support with Memory and Cognition,Community Support,DERBYSHIRE CARE SERVICES,388459,07/04/2020,3441254,"1,125.40",0.00,N/A,N/A
Mental Health Support,Mental Health - Mental Health Support,Mental Health,DERBYSHIRE CARE SERVICES,388459,07/04/2020,3441642,729.14,0.00,N/A,N/A
Mental Health Support,Mental Health - Mental Health Support,Mental Health,DERBYSHIRE CARE SERVICES,388459,07/04/2020,3441979,586.72,0.00,N/A,N/A
Mental Health Support,Mental Health - Mental Health Support,Mental Health,DERBYSHIRE CARE SERVICES,388459,07/04/2020,3441386,598.84,0.00,N/A,N/A
Mental Health Support,Mental Health - Mental Health Support,Mental Health,DERBYSHIRE CARE SERVICES,388459,07/04/2020,3441876,634.28,0.00,N/A,N/A
Mental Health Support,Mental Health - Mental Health Support,Mental Health,DERBYSHIRE CARE SERVICES,388459,07/04/2020,3441980,527.12,0.00,N/A,N/A
Mental Health Support,Mental Health - Mental Health Support,Mental Health,DERBYSHIRE CARE SERVICES,388459,07/04/2020,3441981,875.04,0.00,N/A,N/A
Mental Health Support,Mental Health - Mental Health Support,Mental Health,DERBYSHIRE CARE SERVICES,388459,07/04/2020,3441135,703.44,0.00,N/A,N/A
Mental Health Support,Mental Health - Mental Health Support,Mental Health,DERBYSHIRE CARE SERVICES,388459,07/04/2020,3441645,"1,175.76",0.00,N/A,N/A
Corporate,Corporate Resources Other,Corporate,DERBYSHIRE COUNTY COUNCIL,1042478,07/04/2020,3445360,"212,877.18",0.00,N/A,N/A
Corporate,Corporate Resources Other,Corporate,DERBYSHIRE COUNTY COUNCIL,1042479,07/04/2020,3445363,"292,699.75",0.00,N/A,N/A
Learning Disability Support,Transitions and Ordinary Lives - Learning Disability Support,Transitions and Ordinary Lives,DERBYSHIRE HOME CARE LTD,388460,07/04/2020,3441600,"5,049.92",0.00,N/A,N/A
Learning Disability Support,Transitions and Ordinary Lives - Learning Disability Support,Transitions and Ordinary Lives,DERBYSHIRE HOME CARE LTD,388460,07/04/2020,3441213,"2,638.44",0.00,N/A,N/A
Learning Disability Support,Transitions and Ordinary Lives - Learning Disability Support,Transitions and Ordinary Lives,DERWENT VIEW RESIDENTIAL HOME,10577,07/04/2020,3445008,"1,096.08",0.00,N/A,N/A
Learning Disability Support,Transitions and Ordinary Lives - Learning Disability Support,Transitions and Ordinary Lives,DERWENT VIEW RESIDENTIAL HOME,10577,07/04/2020,3445009,"1,534.51",0.00,N/A,N/A
Learning Disability Support,Transitions and Ordinary Lives - Learning Disability Support,Transitions and Ordinary Lives,DERWENT VIEW RESIDENTIAL HOME,10577,07/04/2020,3444908,613.81,0.00,N/A,N/A
Learning Disability Support,Transitions and Ordinary Lives - Learning Disability Support,Transitions and Ordinary Lives,DERWENT VIEW RESIDENTIAL HOME,10577,07/04/2020,3444909,"7,979.47",0.00,N/A,N/A
Learning Disability Support,Transitions and Ordinary Lives - Learning Disability Support,Transitions and Ordinary Lives,DERWENT VIEW RESIDENTIAL HOME,10577,07/04/2020,3444864,"8,593.28",0.00,N/A,N/A
Learning Disability Support,Transitions and Ordinary Lives - Learning Disability Support,Transitions and Ordinary Lives,DERWENT VIEW RESIDENTIAL HOME,10577,07/04/2020,3444944,"8,593.28",0.00,N/A,N/A
Learning Disability Support,Transitions and Ordinary Lives - Learning Disability Support,Transitions and Ordinary Lives,DERWENT VIEW RESIDENTIAL HOME,10577,07/04/2020,3445057,"8,593.28",0.00,N/A,N/A
Learning Disability Support,Transitions and Ordinary Lives - Learning Disability Support,Transitions and Ordinary Lives,DERWENT VIEW RESIDENTIAL HOME,10577,07/04/2020,3444913,"8,364.83",0.00,N/A,N/A
Learning Disability Support,Transitions and Ordinary Lives - Learning Disability Support,Transitions and Ordinary Lives,DERWENT VIEW RESIDENTIAL HOME,10577,07/04/2020,3444946,537.85,0.00,N/A,N/A
Learning Disability Support,Transitions and Ordinary Lives - Learning Disability Support,Transitions and Ordinary Lives,DERWENT VIEW RESIDENTIAL HOME,10577,07/04/2020,3444947,643.45,0.00,N/A,N/A
Learning Disability Support,Transitions and Ordinary Lives - Learning Disability Support,Transitions and Ordinary Lives,DERWENT VIEW RESIDENTIAL HOME,10577,07/04/2020,3444950,"5,571.43",0.00,N/A,N/A
Learning Disability Support,Transitions and Ordinary Lives - Learning Disability Support,Transitions and Ordinary Lives,DERWENT VIEW RESIDENTIAL HOME,10577,07/04/2020,3444951,"6,991.99",0.00,N/A,N/A
Learning Disability Support,Transitions and Ordinary Lives - Learning Disability Support,Transitions and Ordinary Lives,DERWENT VIEW RESIDENTIAL HOME,10577,07/04/2020,3444952,"6,820.88",0.00,N/A,N/A
Physical Support,Community Support - Physical Support,Community Support,DEVONSHIRE COURT,40529,07/04/2020,3445800,"1,710.50",0.00,N/A,N/A
Business Support,Business Support,Strategic Services and Organisational Development,DIAMOND PRINT LTD,84579,07/04/2020,3442048,"1,329.00",0.00,Organisation & Governance,Editorial and Design and Graphic and Fin
Learning Disability Support,Community Support - Learning Disability Support,Community Support,DIMENSIONS UK LTD,388489,07/04/2020,3441352,"3,223.80",0.00,N/A,N/A
Learning Disability Support,Community Support - Learning Disability Support,Community Support,DIMENSIONS UK LTD,388489,07/04/2020,3441355,"3,223.80",0.00,N/A,N/A
Learning Disability Support,Community Support - Learning Disability Support,Community Support,DIMENSIONS UK LTD,388489,07/04/2020,3441221,"1,870.72",0.00,N/A,N/A
Learning Disability Support,Community Support - Learning Disability Support,Community Support,DIMENSIONS UK LTD,388489,07/04/2020,3441948,921.08,0.00,N/A,N/A
Learning Disability Support,Community Support - Learning Disability Support,Community Support,DIMENSIONS UK LTD,388489,07/04/2020,3441606,"1,985.80",0.00,N/A,N/A
Learning Disability Support,Community Support - Learning Disability Support,Community Support,DIMENSIONS UK LTD,388489,07/04/2020,3441607,921.08,0.00,N/A,N/A
Learning Disability Support,Community Support - Learning Disability Support,Community Support,DIMENSIONS UK LTD,388489,07/04/2020,3441608,"1,064.88",0.00,N/A,N/A
Learning Disability Support,Community Support - Learning Disability Support,Community Support,DIMENSIONS UK LTD,388489,07/04/2020,3441609,"1,985.80",0.00,N/A,N/A
Learning Disability Support,Community Support - Learning Disability Support,Community Support,DIMENSIONS UK LTD,388489,07/04/2020,3441949,"2,100.96",0.00,N/A,N/A
Learning Disability Support,Community Support - Learning Disability Support,Community Support,DIMENSIONS UK LTD,388489,07/04/2020,3441351,"1,064.88",0.00,N/A,N/A
Learning Disability Support,Community Support - Learning Disability Support,Community Support,DIMENSIONS UK LTD,388489,07/04/2020,3441099,"1,036.24",0.00,N/A,N/A
Learning Disability Support,Community Support - Learning Disability Support,Community Support,DIMENSIONS UK LTD,388489,07/04/2020,3441100,"1,708.40",0.00,N/A,N/A
Learning Disability Support,Community Support - Learning Disability Support,Community Support,DIMENSIONS UK LTD,388489,07/04/2020,3441101,"1,870.72",0.00,N/A,N/A
Learning Disability Support,Community Support - Learning Disability Support,Community Support,DIMENSIONS UK LTD,388489,07/04/2020,3441102,"7,596.16",0.00,N/A,N/A
Learning Disability Support,Community Support - Learning Disability Support,Community Support,DIMENSIONS UK LTD,388489,07/04/2020,3441103,"1,036.24",0.00,N/A,N/A
Learning Disability Support,Community Support - Learning Disability Support,Community Support,DIMENSIONS UK LTD,388489,07/04/2020,3441104,"2,100.96",0.00,N/A,N/A
Learning Disability Support,Community Support - Learning Disability Support,Community Support,DIMENSIONS UK LTD,388489,07/04/2020,3441478,"1,708.40",0.00,N/A,N/A
Learning Disability Support,Community Support - Learning Disability Support,Community Support,DIMENSIONS UK LTD,388489,07/04/2020,3441479,"7,596.16",0.00,N/A,N/A
Learning Disability Support,Community Support - Learning Disability Support,Community Support,DIMENSIONS UK LTD,388489,07/04/2020,3441845,"1,093.80",0.00,N/A,N/A
Learning Disability Support,Community Support - Learning Disability Support,Community Support,DIMENSIONS UK LTD,388489,07/04/2020,3441356,"1,093.80",0.00,N/A,N/A
Learning Disability Support,Transitions and Ordinary Lives - Learning Disability Support,Transitions and Ordinary Lives,DIMENSIONS UK LTD,388489,07/04/2020,3441482,"4,882.84",0.00,N/A,N/A
Learning Disability Support,Transitions and Ordinary Lives - Learning Disability Support,Transitions and Ordinary Lives,DIMENSIONS UK LTD,388489,07/04/2020,3441353,"4,882.84",0.00,N/A,N/A
Learning Disability Support,Transitions and Ordinary Lives - Learning Disability Support,Transitions and Ordinary Lives,DIMENSIONS UK LTD,388489,07/04/2020,3441361,"4,334.12",0.00,N/A,N/A
Adults Health and Housing,Capital,Capital,DIRECT STAIRLIFTS LTD,1108473,07/04/2020,3445463,"1,795.00",0.00,N/A,N/A
Physical Support,Community Support - Physical Support,Community Support,DISABILITY DIRECT,388493,07/04/2020,3441298,769.44,0.00,N/A,N/A
Mental Health Support,Community Support - Mental Health Support,Community Support,DOUGLAS COURT RESIDENTIAL HOME,10578,07/04/2020,3443278,"1,412.34",0.00,N/A,N/A
Mental Health Support,Community Support - Mental Health Support,Community Support,DOUGLAS COURT RESIDENTIAL HOME,10578,07/04/2020,3443279,"2,038.76",0.00,N/A,N/A
Mental Health Support,Community Support - Mental Health Support,Community Support,DOUGLAS COURT RESIDENTIAL HOME,10578,07/04/2020,3443280,"2,038.76",0.00,N/A,N/A
Mental Health Support,Community Support - Mental Health Support,Community Support,DOUGLAS COURT RESIDENTIAL HOME,10578,07/04/2020,3443116,"2,038.76",0.00,N/A,N/A
Mental Health Support,Community Support - Mental Health Support,Community Support,DOUGLAS COURT RESIDENTIAL HOME,10578,07/04/2020,3443117,"2,038.76",0.00,N/A,N/A
Mental Health Support,Community Support - Mental Health Support,Community Support,DOUGLAS COURT RESIDENTIAL HOME,10578,07/04/2020,3443356,"1,529.07",0.00,N/A,N/A
Mental Health Support,Community Support - Mental Health Support,Community Support,DOUGLAS COURT RESIDENTIAL HOME,10578,07/04/2020,3443357,"2,038.76",0.00,N/A,N/A
Mental Health Support,Community Support - Mental Health Support,Community Support,DOUGLAS COURT RESIDENTIAL HOME,10578,07/04/2020,3443281,"2,038.76",0.00,N/A,N/A
Mental Health Support,Community Support - Mental Health Support,Community Support,DOUGLAS COURT RESIDENTIAL HOME,10578,07/04/2020,3443283,"1,965.95",0.00,N/A,N/A
Mental Health Support,Community Support - Mental Health Support,Community Support,DOUGLAS COURT RESIDENTIAL HOME,10578,07/04/2020,3443332,"1,588.86",0.00,N/A,N/A
Mental Health Support,Community Support - Mental Health Support,Community Support,DOUGLAS COURT RESIDENTIAL HOME,10578,07/04/2020,3443320,"2,038.76",0.00,N/A,N/A
Mental Health Support,Community Support - Mental Health Support,Community Support,DOUGLAS COURT RESIDENTIAL HOME,10578,07/04/2020,3443321,"2,038.76",0.00,N/A,N/A
Mental Health Support,Community Support - Mental Health Support,Community Support,DOUGLAS COURT RESIDENTIAL HOME,10578,07/04/2020,3443158,"2,038.76",0.00,N/A,N/A
Mental Health Support,Community Support - Mental Health Support,Community Support,DOUGLAS COURT RESIDENTIAL HOME,10578,07/04/2020,3443191,"1,977.28",0.00,N/A,N/A
Mental Health Support,Community Support - Mental Health Support,Community Support,DOUGLAS COURT RESIDENTIAL HOME,10578,07/04/2020,3443192,"2,038.76",0.00,N/A,N/A
Physical Support,Community Support - Physical Support,Community Support,DOUGLAS COURT RESIDENTIAL HOME,10578,07/04/2020,3443358,"1,165.01",0.00,N/A,N/A
Physical Support,Community Support - Physical Support,Community Support,DOUGLAS COURT RESIDENTIAL HOME,10578,07/04/2020,3443259,"1,588.86",0.00,N/A,N/A
Physical Support,Community Support - Physical Support,Community Support,DOUGLAS COURT RESIDENTIAL HOME,10578,07/04/2020,3443165,661.37,0.00,N/A,N/A
Physical Support,Community Support - Physical Support,Community Support,DOUGLAS COURT RESIDENTIAL HOME,10578,07/04/2020,3443322,"2,038.76",0.00,N/A,N/A
Physical Support,Community Support - Physical Support,Community Support,DOUGLAS COURT RESIDENTIAL HOME,10578,07/04/2020,3443328,"1,719.69",0.00,N/A,N/A
Physical Support,Community Support - Physical Support,Community Support,DOUGLAS COURT RESIDENTIAL HOME,10578,07/04/2020,3443128,"1,588.86",0.00,N/A,N/A
Physical Support,Community Support - Physical Support,Community Support,DOUGLAS COURT RESIDENTIAL HOME,10578,07/04/2020,3443258,"1,588.86",0.00,N/A,N/A
Physical Support,Community Support - Physical Support,Community Support,DOUGLAS COURT RESIDENTIAL HOME,10578,07/04/2020,3443230,"2,038.76",0.00,N/A,N/A
Physical Support,Community Support - Physical Support,Community Support,DOUGLAS COURT RESIDENTIAL HOME,10578,07/04/2020,3443199,"1,588.86",0.00,N/A,N/A
Physical Support,Community Support - Physical Support,Community Support,DOUGLAS COURT RESIDENTIAL HOME,10578,07/04/2020,3443200,"1,719.69",0.00,N/A,N/A
Physical Support,Community Support - Physical Support,Community Support,DOUGLAS COURT RESIDENTIAL HOME,10578,07/04/2020,3443086,"1,588.86",0.00,N/A,N/A
Physical Support,Community Support - Physical Support,Community Support,DOUGLAS COURT RESIDENTIAL HOME,10578,07/04/2020,3443125,"1,588.86",0.00,N/A,N/A
Physical Support,Community Support - Physical Support,Community Support,DOUGLAS COURT RESIDENTIAL HOME,10578,07/04/2020,3443202,"1,588.86",0.00,N/A,N/A
Physical Support,Community Support - Physical Support,Community Support,DOUGLAS COURT RESIDENTIAL HOME,10578,07/04/2020,3443205,"1,588.86",0.00,N/A,N/A
Physical Support,Community Support - Physical Support,Community Support,DOUGLAS COURT RESIDENTIAL HOME,10578,07/04/2020,3443323,532.00,0.00,N/A,N/A
Support with Memory and Cognition,Community Support - Support with Memory and Cognition,Community Support,DOUGLAS COURT RESIDENTIAL HOME,10578,07/04/2020,3443256,"1,719.69",0.00,N/A,N/A
Support with Memory and Cognition,Community Support - Support with Memory and Cognition,Community Support,DOUGLAS COURT RESIDENTIAL HOME,10578,07/04/2020,3443121,"1,719.69",0.00,N/A,N/A
Support with Memory and Cognition,Community Support - Support with Memory and Cognition,Community Support,DOUGLAS COURT RESIDENTIAL HOME,10578,07/04/2020,3443233,"1,719.69",0.00,N/A,N/A
Support with Memory and Cognition,Community Support - Support with Memory and Cognition,Community Support,DOUGLAS COURT RESIDENTIAL HOME,10578,07/04/2020,3443324,"2,321.43",0.00,N/A,N/A
Mental Health Support,Mental Health - Mental Health Support,Mental Health,DOUGLAS COURT RESIDENTIAL HOME,10578,07/04/2020,3443089,"2,049.02",0.00,N/A,N/A
Mental Health Support,Mental Health - Mental Health Support,Mental Health,DOUGLAS COURT RESIDENTIAL HOME,10578,07/04/2020,3443090,"1,719.69",0.00,N/A,N/A
Traffic & Transportation,Network Mgmnt & Highway Dev Control,"Strategic Partnerships, Planning & Streetpride",DYNNIQ UK LTD,470727,07/04/2020,3442027,867.15,0.00,Communities & Place,Transportation and Storage and Mail Serv
Obsolete Codes,Capital,Capital,EBSFORD ENVIRONMENTAL LTD,877457,07/04/2020,3442078,"7,807.50",0.00,N/A,N/A
Learning Disability Support,Transitions and Ordinary Lives - Learning Disability Support,Transitions and Ordinary Lives,ELIZABETH FITZROY HOMES,10945,07/04/2020,3445765,"5,373.09",0.00,N/A,N/A
Learning Disability Support,Transitions and Ordinary Lives - Learning Disability Support,Transitions and Ordinary Lives,ELMCARE LTD,552446,07/04/2020,3445721,"3,342.86",0.00,N/A,N/A
Learning Disability Support,Transitions and Ordinary Lives - Learning Disability Support,Transitions and Ordinary Lives,ELMCARE LTD,552446,07/04/2020,3445771,"3,342.86",0.00,N/A,N/A
Learning Disability Support,Transitions and Ordinary Lives - Learning Disability Support,Transitions and Ordinary Lives,ELMCARE LTD,552446,07/04/2020,3445772,"3,342.86",0.00,N/A,N/A
Learning Disability Support,Transitions and Ordinary Lives - Learning Disability Support,Transitions and Ordinary Lives,ELMCARE LTD,552446,07/04/2020,3445773,"4,085.71",0.00,N/A,N/A
Learning Disability Support,Transitions and Ordinary Lives - Learning Disability Support,Transitions and Ordinary Lives,ELMCARE LTD,552446,07/04/2020,3445558,"3,342.86",0.00,N/A,N/A
Learning Disability Support,Transitions and Ordinary Lives - Learning Disability Support,Transitions and Ordinary Lives,ELMCARE LTD,552446,07/04/2020,3445488,"3,342.86",0.00,N/A,N/A
Learning Disability Support,Transitions and Ordinary Lives - Learning Disability Support,Transitions and Ordinary Lives,ELMCARE LTD,552446,07/04/2020,3445840,"3,342.86",0.00,N/A,N/A
Learning Disability Support,Transitions and Ordinary Lives - Learning Disability Support,Transitions and Ordinary Lives,ELMCARE LTD,552446,07/04/2020,3445669,"4,457.14",0.00,N/A,N/A
Learning Disability Support,Transitions and Ordinary Lives - Learning Disability Support,Transitions and Ordinary Lives,ELMCARE LTD,552446,07/04/2020,3445900,"4,457.14",0.00,N/A,N/A
Learning Disability Support,Transitions and Ordinary Lives - Learning Disability Support,Transitions and Ordinary Lives,ELMCARE LTD,552446,07/04/2020,3445722,"4,457.14",0.00,N/A,N/A
Learning Disability Support,Transitions and Ordinary Lives - Learning Disability Support,Transitions and Ordinary Lives,ELMCARE LTD,552446,07/04/2020,3445841,"4,457.14",0.00,N/A,N/A
Learning Disability Support,Transitions and Ordinary Lives - Learning Disability Support,Transitions and Ordinary Lives,ELMCARE LTD,552446,07/04/2020,3445560,"2,228.57",0.00,N/A,N/A
Mental Health Support,Community Support - Mental Health Support,Community Support,ELVASTON LODGE RESIDENTIAL HOME,10582,07/04/2020,3444363,"1,588.86",0.00,N/A,N/A
Physical Support,Community Support - Physical Support,Community Support,ELVASTON LODGE RESIDENTIAL HOME,10582,07/04/2020,3444496,"1,719.69",0.00,N/A,N/A
Physical Support,Community Support - Physical Support,Community Support,ELVASTON LODGE RESIDENTIAL HOME,10582,07/04/2020,3444171,"1,588.86",0.00,N/A,N/A
Physical Support,Community Support - Physical Support,Community Support,ELVASTON LODGE RESIDENTIAL HOME,10582,07/04/2020,3444538,744.01,0.00,N/A,N/A
Physical Support,Community Support - Physical Support,Community Support,ELVASTON LODGE RESIDENTIAL HOME,10582,07/04/2020,3444265,"1,588.86",0.00,N/A,N/A
Physical Support,Community Support - Physical Support,Community Support,ELVASTON LODGE RESIDENTIAL HOME,10582,07/04/2020,3444539,"1,719.69",0.00,N/A,N/A
Physical Support,Community Support - Physical Support,Community Support,ELVASTON LODGE RESIDENTIAL HOME,10582,07/04/2020,3444693,"1,588.86",0.00,N/A,N/A
Physical Support,Community Support - Physical Support,Community Support,ELVASTON LODGE RESIDENTIAL HOME,10582,07/04/2020,3444443,"2,049.02",0.00,N/A,N/A
Physical Support,Community Support - Physical Support,Community Support,ELVASTON LODGE RESIDENTIAL HOME,10582,07/04/2020,3444609,"1,588.86",0.00,N/A,N/A
Physical Support,Community Support - Physical Support,Community Support,ELVASTON LODGE RESIDENTIAL HOME,10582,07/04/2020,3444610,"1,588.86",0.00,N/A,N/A
Support with Memory and Cognition,Community Support - Support with Memory and Cognition,Community Support,ELVASTON LODGE RESIDENTIAL HOME,10582,07/04/2020,3444313,"1,588.86",0.00,N/A,N/A
Support with Memory and Cognition,Community Support - Support with Memory and Cognition,Community Support,ELVASTON LODGE RESIDENTIAL HOME,10582,07/04/2020,3444649,744.01,0.00,N/A,N/A
Mental Health Support,Mental Health - Mental Health Support,Mental Health,ELVASTON LODGE RESIDENTIAL HOME,10582,07/04/2020,3444552,"1,719.69",0.00,N/A,N/A
Mental Health Support,Mental Health - Mental Health Support,Mental Health,ELVASTON LODGE RESIDENTIAL HOME,10582,07/04/2020,3444494,"1,696.52",0.00,N/A,N/A
Mental Health Support,Mental Health - Mental Health Support,Mental Health,ELVASTON LODGE RESIDENTIAL HOME,10582,07/04/2020,3444711,"1,575.34",0.00,N/A,N/A
Mental Health Support,Mental Health - Mental Health Support,Mental Health,ELVASTON LODGE RESIDENTIAL HOME,10582,07/04/2020,3444311,"1,696.52",0.00,N/A,N/A
Mental Health Support,Mental Health - Mental Health Support,Mental Health,ELVASTON LODGE RESIDENTIAL HOME,10582,07/04/2020,3444312,"1,696.52",0.00,N/A,N/A
Mental Health Support,Mental Health - Mental Health Support,Mental Health,ELVASTON LODGE RESIDENTIAL HOME,10582,07/04/2020,3444279,"1,719.69",0.00,N/A,N/A
Mental Health Support,Mental Health - Mental Health Support,Mental Health,ELVASTON LODGE RESIDENTIAL HOME,10582,07/04/2020,3444189,"1,588.86",0.00,N/A,N/A
Mental Health Support,Mental Health - Mental Health Support,Mental Health,ELVASTON LODGE RESIDENTIAL HOME,10582,07/04/2020,3444647,"2,038.76",0.00,N/A,N/A
Mental Health Support,Mental Health - Mental Health Support,Mental Health,ELVASTON LODGE RESIDENTIAL HOME,10582,07/04/2020,3444115,"1,696.52",0.00,N/A,N/A
Mental Health Support,Community Support - Mental Health Support,Community Support,EMBRACE CARE LIMITED,683453,07/04/2020,3444655,"1,588.86",0.00,N/A,N/A
Mental Health Support,Community Support - Mental Health Support,Community Support,EMBRACE CARE LIMITED,683453,07/04/2020,3444317,"1,631.58",0.00,N/A,N/A
Physical Support,Community Support - Physical Support,Community Support,EMBRACE CARE LIMITED,683453,07/04/2020,3444475,"1,631.58",0.00,N/A,N/A
Physical Support,Community Support - Physical Support,Community Support,EMBRACE CARE LIMITED,683453,07/04/2020,3444565,"1,631.58",0.00,N/A,N/A
Physical Support,Community Support - Physical Support,Community Support,EMBRACE CARE LIMITED,683453,07/04/2020,3444701,946.57,0.00,N/A,N/A
Physical Support,Community Support - Physical Support,Community Support,EMBRACE CARE LIMITED,683453,07/04/2020,3444464,"1,588.86",0.00,N/A,N/A
Physical Support,Community Support - Physical Support,Community Support,EMBRACE CARE LIMITED,683453,07/04/2020,3444194,"1,631.58",0.00,N/A,N/A
Physical Support,Community Support - Physical Support,Community Support,EMBRACE CARE LIMITED,683453,07/04/2020,3444354,"1,271.11",0.00,N/A,N/A
Physical Support,Community Support - Physical Support,Community Support,EMBRACE CARE LIMITED,683453,07/04/2020,3444356,"1,944.06",0.00,N/A,N/A
Physical Support,Community Support - Physical Support,Community Support,EMBRACE CARE LIMITED,683453,07/04/2020,3444357,"2,093.60",0.00,N/A,N/A
Physical Support,Community Support - Physical Support,Community Support,EMBRACE CARE LIMITED,683453,07/04/2020,3444717,"1,631.58",0.00,N/A,N/A
Physical Support,Community Support - Physical Support,Community Support,EMBRACE CARE LIMITED,683453,07/04/2020,3444718,"1,631.58",0.00,N/A,N/A
Physical Support,Community Support - Physical Support,Community Support,EMBRACE CARE LIMITED,683453,07/04/2020,3444719,"1,631.58",0.00,N/A,N/A
Physical Support,Community Support - Physical Support,Community Support,EMBRACE CARE LIMITED,683453,07/04/2020,3444703,"1,944.06",0.00,N/A,N/A
Physical Support,Community Support - Physical Support,Community Support,EMBRACE CARE LIMITED,683453,07/04/2020,3444472,"1,631.58",0.00,N/A,N/A
Physical Support,Community Support - Physical Support,Community Support,EMBRACE CARE LIMITED,683453,07/04/2020,3444473,"1,631.58",0.00,N/A,N/A
Physical Support,Community Support - Physical Support,Community Support,EMBRACE CARE LIMITED,683453,07/04/2020,3444284,"1,631.58",0.00,N/A,N/A
Physical Support,Community Support - Physical Support,Community Support,EMBRACE CARE LIMITED,683453,07/04/2020,3444632,"1,631.58",0.00,N/A,N/A
Physical Support,Community Support - Physical Support,Community Support,EMBRACE CARE LIMITED,683453,07/04/2020,3444118,"1,631.58",0.00,N/A,N/A
Physical Support,Community Support - Physical Support,Community Support,EMBRACE CARE LIMITED,683453,07/04/2020,3444119,"1,631.58",0.00,N/A,N/A
Physical Support,Community Support - Physical Support,Community Support,EMBRACE CARE LIMITED,683453,07/04/2020,3444109,"1,631.58",0.00,N/A,N/A
Physical Support,Community Support - Physical Support,Community Support,EMBRACE CARE LIMITED,683453,07/04/2020,3444110,"1,631.58",0.00,N/A,N/A
Physical Support,Community Support - Physical Support,Community Support,EMBRACE CARE LIMITED,683453,07/04/2020,3444622,"1,631.58",0.00,N/A,N/A
Physical Support,Community Support - Physical Support,Community Support,EMBRACE CARE LIMITED,683453,07/04/2020,3444545,"1,747.51",0.00,N/A,N/A
Physical Support,Community Support - Physical Support,Community Support,EMBRACE CARE LIMITED,683453,07/04/2020,3444200,"1,588.86",0.00,N/A,N/A
Physical Support,Community Support - Physical Support,Community Support,EMBRACE CARE LIMITED,683453,07/04/2020,3444476,651.15,0.00,N/A,N/A
Physical Support,Community Support - Physical Support,Community Support,EMBRACE CARE LIMITED,683453,07/04/2020,3444121,"1,588.86",0.00,N/A,N/A
Physical Support,Community Support - Physical Support,Community Support,EMBRACE CARE LIMITED,683453,07/04/2020,3444570,"1,631.58",0.00,N/A,N/A
Physical Support,Community Support - Physical Support,Community Support,EMBRACE CARE LIMITED,683453,07/04/2020,3444299,"1,631.58",0.00,N/A,N/A
Physical Support,Community Support - Physical Support,Community Support,EMBRACE CARE LIMITED,683453,07/04/2020,3444300,"1,631.58",0.00,N/A,N/A
Physical Support,Community Support - Physical Support,Community Support,EMBRACE CARE LIMITED,683453,07/04/2020,3444481,"1,631.58",0.00,N/A,N/A
Physical Support,Community Support - Physical Support,Community Support,EMBRACE CARE LIMITED,683453,07/04/2020,3444482,"1,631.58",0.00,N/A,N/A
Sensory Support,Community Support - Sensory Support,Community Support,EMBRACE CARE LIMITED,683453,07/04/2020,3444401,"1,631.58",0.00,N/A,N/A
Support with Memory and Cognition,Community Support - Support with Memory and Cognition,Community Support,EMBRACE CARE LIMITED,683453,07/04/2020,3444098,"1,631.58",0.00,N/A,N/A
Support with Memory and Cognition,Community Support - Support with Memory and Cognition,Community Support,EMBRACE CARE LIMITED,683453,07/04/2020,3444361,"1,631.58",0.00,N/A,N/A
Support with Memory and Cognition,Community Support - Support with Memory and Cognition,Community Support,EMBRACE CARE LIMITED,683453,07/04/2020,3444362,"1,631.58",0.00,N/A,N/A
Support with Memory and Cognition,Community Support - Support with Memory and Cognition,Community Support,EMBRACE CARE LIMITED,683453,07/04/2020,3444459,"1,631.58",0.00,N/A,N/A
Support with Memory and Cognition,Community Support - Support with Memory and Cognition,Community Support,EMBRACE CARE LIMITED,683453,07/04/2020,3444460,"1,631.58",0.00,N/A,N/A
Support with Memory and Cognition,Community Support - Support with Memory and Cognition,Community Support,EMBRACE CARE LIMITED,683453,07/04/2020,3444181,"1,631.58",0.00,N/A,N/A
Support with Memory and Cognition,Community Support - Support with Memory and Cognition,Community Support,EMBRACE CARE LIMITED,683453,07/04/2020,3444102,"1,588.86",0.00,N/A,N/A
Support with Memory and Cognition,Community Support - Support with Memory and Cognition,Community Support,EMBRACE CARE LIMITED,683453,07/04/2020,3444103,"1,588.86",0.00,N/A,N/A
Support with Memory and Cognition,Community Support - Support with Memory and Cognition,Community Support,EMBRACE CARE LIMITED,683453,07/04/2020,3444555,"1,631.58",0.00,N/A,N/A
Support with Memory and Cognition,Community Support - Support with Memory and Cognition,Community Support,EMBRACE CARE LIMITED,683453,07/04/2020,3444400,"1,631.58",0.00,N/A,N/A
Mental Health Support,Mental Health - Mental Health Support,Mental Health,EMBRACE CARE LIMITED,683453,07/04/2020,3444301,"1,580.43",0.00,N/A,N/A
Mental Health Support,Mental Health - Mental Health Support,Mental Health,EMBRACE CARE LIMITED,683453,07/04/2020,3444125,"1,631.58",0.00,N/A,N/A
Mental Health Support,Mental Health - Mental Health Support,Mental Health,EMBRACE CARE LIMITED,683453,07/04/2020,3444484,"1,631.58",0.00,N/A,N/A
Mental Health Support,Mental Health - Mental Health Support,Mental Health,EMBRACE CARE LIMITED,683453,07/04/2020,3444638,"1,168.44",0.00,N/A,N/A
Mental Health Support,Mental Health - Mental Health Support,Mental Health,EMBRACE CARE LIMITED,683453,07/04/2020,3444639,"1,801.24",0.00,N/A,N/A
Mental Health Support,Mental Health - Mental Health Support,Mental Health,EMBRACE CARE LIMITED,683453,07/04/2020,3444490,"1,588.86",0.00,N/A,N/A
Mental Health Support,Mental Health - Mental Health Support,Mental Health,EMBRACE CARE LIMITED,683453,07/04/2020,3444308,"1,236.45",0.00,N/A,N/A
Mental Health Support,Mental Health - Mental Health Support,Mental Health,EMBRACE CARE LIMITED,683453,07/04/2020,3444643,"1,631.58",0.00,N/A,N/A
Learning Disability Support,Transitions and Ordinary Lives - Learning Disability Support,Transitions and Ordinary Lives,EMBRACE CARE LIMITED,683453,07/04/2020,3444644,"1,753.77",0.00,N/A,N/A
Learning Disability Support,Transitions and Ordinary Lives - Learning Disability Support,Transitions and Ordinary Lives,EMBRACE CARE LIMITED,683453,07/04/2020,3444388,"1,590.96",0.00,N/A,N/A
Learning Disability Support,Transitions and Ordinary Lives - Learning Disability Support,Transitions and Ordinary Lives,EMBRACE CARE LIMITED,683453,07/04/2020,3444734,"1,631.58",0.00,N/A,N/A
Learning Disability Support,Transitions and Ordinary Lives - Learning Disability Support,Transitions and Ordinary Lives,EMBRACE CARE LIMITED,683453,07/04/2020,3444645,"1,631.58",0.00,N/A,N/A
Learning Disability Support,Transitions and Ordinary Lives - Learning Disability Support,Transitions and Ordinary Lives,EMBRACE CARE LIMITED,683453,07/04/2020,3444646,"1,631.58",0.00,N/A,N/A
Learning Disability Support,Transitions and Ordinary Lives - Learning Disability Support,Transitions and Ordinary Lives,EMBRACE CARE LIMITED,683453,07/04/2020,3444587,"1,631.58",0.00,N/A,N/A
Learning Disability Support,Transitions and Ordinary Lives - Learning Disability Support,Transitions and Ordinary Lives,EMBRACE CARE LIMITED,683453,07/04/2020,3444405,"2,265.86",0.00,N/A,N/A
Mental Health Support,Mental Health - Mental Health Support,Mental Health,EMBRACE CARE LIMITED,683453,07/04/2020,3444134,"1,383.57",0.00,N/A,N/A
Mental Health Support,Mental Health - Mental Health Support,Mental Health,EMBRACE CARE LIMITED,683453,07/04/2020,3444219,"1,631.58",0.00,N/A,N/A
Children and Young People,Capital,Capital,EMEC ECOLOGY,187979,07/04/2020,3445243,636.74,0.00,N/A,N/A
Learning Disability Support,Transitions and Ordinary Lives - Learning Disability Support,Transitions and Ordinary Lives,EMH CARE AND SUPPORT LTD,1033482,07/04/2020,3445745,"2,609.58",0.00,N/A,N/A
Facilities Management,Accommodation Buildings,Strategic Services and Organisational Development,EMS SECURITY SERVICES LTD,471442,07/04/2020,3445347,713.62,0.00,Organisation & Governance,Defense and Law Enforcement and Security
"Occupational Health, Safety, Markets & Bereavement Services",Bereavement Services,"Communities, Environment & Regulatory Services",EMS SECURITY SERVICES LTD,471442,07/04/2020,3442065,641.08,0.00,Communities & Place,Defense and Law Enforcement and Security
Regeneration Projects,Regeneration Projects,"Regeneration, Property & Housing",EMS SECURITY SERVICES LTD,471442,07/04/2020,3445267,506.62,0.00,Communities & Place,Defense and Law Enforcement and Security
Retained Housing Revenue Account,Retained Housing Revenue Account,"Regeneration, Property & Housing",EMS SECURITY SERVICES LTD,471442,07/04/2020,3445456,"9,870.93",0.00,Communities & Place,Defense and Law Enforcement and Security
Strategic Asset Management and Estates,Strategic Asset Management and Estates,"Regeneration, Property & Housing",EMS SECURITY SERVICES LTD,471442,07/04/2020,3445286,565.84,0.00,Communities & Place,Defense and Law Enforcement and Security
Mental Health Support,Mental Health - Mental Health Support,Mental Health,ESSEX COUNTY COUNCIL,1485,07/04/2020,3445344,"21,172.66",0.00,People Services - Adults and Health,Politics and Civic Affairs Services
Learning Disability Support,Community Support - Learning Disability Support,Community Support,FARRIESS COURT,10585,07/04/2020,3443660,"2,038.76",0.00,N/A,N/A
Learning Disability Support,Community Support - Learning Disability Support,Community Support,FARRIESS COURT,10585,07/04/2020,3444015,"1,588.86",0.00,N/A,N/A
Learning Disability Support,Community Support - Learning Disability Support,Community Support,FARRIESS COURT,10585,07/04/2020,3443917,"1,456.26",0.00,N/A,N/A
Learning Disability Support,Community Support - Learning Disability Support,Community Support,FARRIESS COURT,10585,07/04/2020,3443409,"2,038.76",0.00,N/A,N/A
Physical Support,Community Support - Physical Support,Community Support,FARRIESS COURT,10585,07/04/2020,3443496,"1,588.86",0.00,N/A,N/A
Physical Support,Community Support - Physical Support,Community Support,FARRIESS COURT,10585,07/04/2020,3443497,"1,588.86",0.00,N/A,N/A
Physical Support,Community Support - Physical Support,Community Support,FARRIESS COURT,10585,07/04/2020,3443499,"1,588.86",0.00,N/A,N/A
Physical Support,Community Support - Physical Support,Community Support,FARRIESS COURT,10585,07/04/2020,3443816,"1,588.86",0.00,N/A,N/A
Physical Support,Community Support - Physical Support,Community Support,FARRIESS COURT,10585,07/04/2020,3443412,"1,588.86",0.00,N/A,N/A
Mental Health Support,Mental Health - Mental Health Support,Mental Health,FARRIESS COURT,10585,07/04/2020,3444017,"1,914.49",0.00,N/A,N/A
Mental Health Support,Mental Health - Mental Health Support,Mental Health,FARRIESS COURT,10585,07/04/2020,3443669,"1,588.86",0.00,N/A,N/A
Mental Health Support,Mental Health - Mental Health Support,Mental Health,FARRIESS COURT,10585,07/04/2020,3443583,"1,456.26",0.00,N/A,N/A
Mental Health Support,Mental Health - Mental Health Support,Mental Health,FARRIESS COURT,10585,07/04/2020,3443744,"11,504.43",0.00,N/A,N/A
Mental Health Support,Mental Health - Mental Health Support,Mental Health,FARRIESS COURT,10585,07/04/2020,3444018,"1,597.14",0.00,N/A,N/A
Mental Health Support,Mental Health - Mental Health Support,Mental Health,FARRIESS COURT,10585,07/04/2020,3443590,"1,588.86",0.00,N/A,N/A
Mental Health Support,Mental Health - Mental Health Support,Mental Health,FARRIESS COURT,10585,07/04/2020,3443670,"1,690.00",0.00,N/A,N/A
Chief Executives,Capital,Capital,FISHER GERMAN LLP,929474,07/04/2020,3442005,"2,017.10",0.00,N/A,N/A
Integrated Services,Agency Placements,Non-Schools,FIVE RIVERS CHILDCARE LTD,1122471,07/04/2020,3446037,"6,200.00",0.00,N/A,N/A
Integrated Services,Agency Placements,Non-Schools,FIVE RIVERS CHILDCARE LTD,1122471,07/04/2020,3446037,"5,800.00",0.00,N/A,N/A
Integrated Services,Agency Placements,Non-Schools,FIVE RIVERS CHILDCARE LTD,1122471,07/04/2020,3446037,"5,800.00",0.00,N/A,N/A
Integrated Services,Agency Placements,Non-Schools,FIVE RIVERS CHILDCARE LTD,1122471,07/04/2020,3446037,"3,316.00",0.00,N/A,N/A
Integrated Services,Agency Placements,Non-Schools,FIVE RIVERS CHILDCARE LTD,1122471,07/04/2020,3446037,"3,236.00",0.00,N/A,N/A
Integrated Services,Agency Placements,Non-Schools,FIVE RIVERS CHILDCARE LTD,1122471,07/04/2020,3446037,"3,076.00",0.00,N/A,N/A
Learning Disability Support,Community Support - Learning Disability Support,Community Support,FOSSE HEALTHCARE LTD,448402,07/04/2020,3441812,"1,030.04",0.00,N/A,N/A
Physical Support,Community Support - Physical Support,Community Support,FOSSE HEALTHCARE LTD,448402,07/04/2020,3441567,592.46,0.00,N/A,N/A
Physical Support,Community Support - Physical Support,Community Support,FOSSE HEALTHCARE LTD,448402,07/04/2020,3441550,522.63,0.00,N/A,N/A
Physical Support,Community Support - Physical Support,Community Support,FOSSE HEALTHCARE LTD,448402,07/04/2020,3441790,532.95,0.00,N/A,N/A
Physical Support,Community Support - Physical Support,Community Support,FOSSE HEALTHCARE LTD,448402,07/04/2020,3441791,691.64,0.00,N/A,N/A
Physical Support,Community Support - Physical Support,Community Support,FOSSE HEALTHCARE LTD,448402,07/04/2020,3441433,837.16,0.00,N/A,N/A
Physical Support,Community Support - Physical Support,Community Support,FOSSE HEALTHCARE LTD,448402,07/04/2020,3441434,854.28,0.00,N/A,N/A
Physical Support,Community Support - Physical Support,Community Support,FOSSE HEALTHCARE LTD,448402,07/04/2020,3441435,"1,026.20",0.00,N/A,N/A
Physical Support,Community Support - Physical Support,Community Support,FOSSE HEALTHCARE LTD,448402,07/04/2020,3441436,"1,042.69",0.00,N/A,N/A
Physical Support,Community Support - Physical Support,Community Support,FOSSE HEALTHCARE LTD,448402,07/04/2020,3441055,772.32,0.00,N/A,N/A
Physical Support,Community Support - Physical Support,Community Support,FOSSE HEALTHCARE LTD,448402,07/04/2020,3441056,942.90,0.00,N/A,N/A
Physical Support,Community Support - Physical Support,Community Support,FOSSE HEALTHCARE LTD,448402,07/04/2020,3441799,724.51,0.00,N/A,N/A
Physical Support,Community Support - Physical Support,Community Support,FOSSE HEALTHCARE LTD,448402,07/04/2020,3441800,"1,047.41",0.00,N/A,N/A
Physical Support,Community Support - Physical Support,Community Support,FOSSE HEALTHCARE LTD,448402,07/04/2020,3441176,780.50,0.00,N/A,N/A
Physical Support,Community Support - Physical Support,Community Support,FOSSE HEALTHCARE LTD,448402,07/04/2020,3441177,951.08,0.00,N/A,N/A
Physical Support,Community Support - Physical Support,Community Support,FOSSE HEALTHCARE LTD,448402,07/04/2020,3441551,713.28,0.00,N/A,N/A
Physical Support,Community Support - Physical Support,Community Support,FOSSE HEALTHCARE LTD,448402,07/04/2020,3441535,707.04,0.00,N/A,N/A
Physical Support,Community Support - Physical Support,Community Support,FOSSE HEALTHCARE LTD,448402,07/04/2020,3441293,589.64,0.00,N/A,N/A
Physical Support,Community Support - Physical Support,Community Support,FOSSE HEALTHCARE LTD,448402,07/04/2020,3441294,622.83,0.00,N/A,N/A
Physical Support,Community Support - Physical Support,Community Support,FOSSE HEALTHCARE LTD,448402,07/04/2020,3441046,578.63,0.00,N/A,N/A
Physical Support,Community Support - Physical Support,Community Support,FOSSE HEALTHCARE LTD,448402,07/04/2020,3441047,630.70,0.00,N/A,N/A
Physical Support,Community Support - Physical Support,Community Support,FOSSE HEALTHCARE LTD,448402,07/04/2020,3441561,931.48,0.00,N/A,N/A
Physical Support,Community Support - Physical Support,Community Support,FOSSE HEALTHCARE LTD,448402,07/04/2020,3441683,775.72,0.00,N/A,N/A
Physical Support,Community Support - Physical Support,Community Support,FOSSE HEALTHCARE LTD,448402,07/04/2020,3441684,"1,083.14",0.00,N/A,N/A
Physical Support,Community Support - Physical Support,Community Support,FOSSE HEALTHCARE LTD,448402,07/04/2020,3441685,"1,140.47",0.00,N/A,N/A
Physical Support,Community Support - Physical Support,Community Support,FOSSE HEALTHCARE LTD,448402,07/04/2020,3441917,926.12,0.00,N/A,N/A
Physical Support,Community Support - Physical Support,Community Support,FOSSE HEALTHCARE LTD,448402,07/04/2020,3441302,722.15,0.00,N/A,N/A
Physical Support,Community Support - Physical Support,Community Support,FOSSE HEALTHCARE LTD,448402,07/04/2020,3441303,837.16,0.00,N/A,N/A
Physical Support,Community Support - Physical Support,Community Support,FOSSE HEALTHCARE LTD,448402,07/04/2020,3441304,908.82,0.00,N/A,N/A
Physical Support,Community Support - Physical Support,Community Support,FOSSE HEALTHCARE LTD,448402,07/04/2020,3441305,982.88,0.00,N/A,N/A
Physical Support,Community Support - Physical Support,Community Support,FOSSE HEALTHCARE LTD,448402,07/04/2020,3441306,"1,083.72",0.00,N/A,N/A
Physical Support,Community Support - Physical Support,Community Support,FOSSE HEALTHCARE LTD,448402,07/04/2020,3441562,931.48,0.00,N/A,N/A
Physical Support,Community Support - Physical Support,Community Support,FOSSE HEALTHCARE LTD,448402,07/04/2020,3441563,"1,021.48",0.00,N/A,N/A
Physical Support,Community Support - Physical Support,Community Support,FOSSE HEALTHCARE LTD,448402,07/04/2020,3441778,655.37,0.00,N/A,N/A
Support with Memory and Cognition,Community Support - Support with Memory and Cognition,Community Support,FOSSE HEALTHCARE LTD,448402,07/04/2020,3441442,621.48,0.00,N/A,N/A
Mental Health Support,Mental Health - Mental Health Support,Mental Health,FOSSE HEALTHCARE LTD,448402,07/04/2020,3441315,558.10,0.00,N/A,N/A
Integrated Services,Agency Placements,Non-Schools,FOSTER CARE ASSOCIATES LTD fca,1109506,07/04/2020,3446028,"5,405.68",0.00,N/A,N/A
Integrated Services,Agency Placements,Non-Schools,FOSTER CARE ASSOCIATES LTD fca,1109506,07/04/2020,3446028,"5,698.00",0.00,N/A,N/A
Integrated Services,Agency Placements,Non-Schools,FOSTER CARE ASSOCIATES LTD fca,1109506,07/04/2020,3446028,"5,405.68",0.00,N/A,N/A
Integrated Services,Agency Placements,Non-Schools,FOSTER CARE ASSOCIATES LTD fca,1109506,07/04/2020,3446028,"5,200.00",0.00,N/A,N/A
Integrated Services,Agency Placements,Non-Schools,FOSTER CARE ASSOCIATES LTD fca,1109506,07/04/2020,3446028,"4,914.00",0.00,N/A,N/A
Integrated Services,Agency Placements,Non-Schools,FOSTER CARE ASSOCIATES LTD fca,1109506,07/04/2020,3446028,"3,871.00",0.00,N/A,N/A
Integrated Services,Agency Placements,Non-Schools,FOSTER CARE ASSOCIATES LTD fca,1109506,07/04/2020,3446028,"3,871.00",0.00,N/A,N/A
Integrated Services,Agency Placements,Non-Schools,FOSTER CARE ASSOCIATES LTD fca,1109506,07/04/2020,3446028,"3,801.00",0.00,N/A,N/A
Integrated Services,Agency Placements,Non-Schools,FOSTER CARE ASSOCIATES LTD fca,1109506,07/04/2020,3446028,"3,801.00",0.00,N/A,N/A
Integrated Services,Agency Placements,Non-Schools,FOSTER CARE ASSOCIATES LTD fca,1109506,07/04/2020,3446028,"3,549.84",0.00,N/A,N/A
Integrated Services,Agency Placements,Non-Schools,FOSTER CARE ASSOCIATES LTD fca,1109506,07/04/2020,3446028,"3,222.80",0.00,N/A,N/A
Integrated Services,Agency Placements,Non-Schools,FOSTER CARE ASSOCIATES LTD fca,1109506,07/04/2020,3446028,"3,222.80",0.00,N/A,N/A
Integrated Services,Agency Placements,Non-Schools,FOSTER CARE ASSOCIATES LTD fca,1109506,07/04/2020,3446028,"3,222.80",0.00,N/A,N/A
Integrated Services,Agency Placements,Non-Schools,FOSTER CARE ASSOCIATES LTD fca,1109506,07/04/2020,3446028,"3,222.80",0.00,N/A,N/A
Integrated Services,Agency Placements,Non-Schools,FOSTER CARE ASSOCIATES LTD fca,1109506,07/04/2020,3446028,"3,068.80",0.00,N/A,N/A
Integrated Services,Agency Placements,Non-Schools,FOSTER CARE ASSOCIATES LTD fca,1109506,07/04/2020,3446028,"3,068.80",0.00,N/A,N/A
Integrated Services,Agency Placements,Non-Schools,FOSTER CARE ASSOCIATES LTD fca,1109506,07/04/2020,3446167,"3,222.80",0.00,N/A,N/A
Integrated Services,Agency Placements,Non-Schools,FOSTER CARE ASSOCIATES LTD fca,1109506,07/04/2020,3446028,"3,068.80",0.00,N/A,N/A
Integrated Services,Agency Placements,Non-Schools,FOSTER CARE ASSOCIATES LTD fca,1109506,07/04/2020,3446028,"3,040.80",0.00,N/A,N/A
Integrated Services,Agency Placements,Non-Schools,FOSTER CARE ASSOCIATES LTD fca,1109506,07/04/2020,3446028,"2,867.20",0.00,N/A,N/A
Integrated Services,Agency Placements,Non-Schools,FOSTER CARE ASSOCIATES LTD fca,1109506,07/04/2020,3446028,"2,867.20",0.00,N/A,N/A
Integrated Services,Agency Placements,Non-Schools,FOSTER CARE ASSOCIATES LTD fca,1109506,07/04/2020,3446167,"5,006.96",0.00,N/A,N/A
Integrated Services,Agency Placements,Non-Schools,FOSTER CARE ASSOCIATES LTD fca,1109506,07/04/2020,3446167,"3,871.00",0.00,N/A,N/A
Integrated Services,Agency Placements,Non-Schools,FOSTER CARE ASSOCIATES LTD fca,1109506,07/04/2020,3446167,"3,749.76",0.00,N/A,N/A
Integrated Services,Agency Placements,Non-Schools,FOSTERING DIMENSIONS LTD,1109507,07/04/2020,3446059,"2,802.80",0.00,N/A,N/A
Integrated Services,Agency Placements,Non-Schools,FOSTERING DIMENSIONS LTD,1109507,07/04/2020,3446059,"2,802.80",0.00,N/A,N/A
Integrated Services,Agency Placements,Non-Schools,FOSTERING PEOPLE LTD,1109510,07/04/2020,3446043,"2,797.20",0.00,N/A,N/A
Integrated Services,Agency Placements,Non-Schools,FOSTERING PEOPLE LTD,1109510,07/04/2020,3446043,"2,797.20",0.00,N/A,N/A
Integrated Services,Agency Placements,Non-Schools,FOSTERING PEOPLE LTD,1109510,07/04/2020,3446043,"2,797.20",0.00,N/A,N/A
Integrated Services,Agency Placements,Non-Schools,FOSTERING PEOPLE LTD,1109510,07/04/2020,3446043,"2,797.20",0.00,N/A,N/A
Integrated Services,Agency Placements,Non-Schools,FOSTERING PEOPLE LTD,1109510,07/04/2020,3446043,"2,797.20",0.00,N/A,N/A
Integrated Services,Agency Placements,Non-Schools,FOSTERING PEOPLE LTD,1109510,07/04/2020,3446043,"2,797.20",0.00,N/A,N/A
Integrated Services,Agency Placements,Non-Schools,FOSTERING PEOPLE LTD,1109510,07/04/2020,3446043,"3,815.29",0.00,N/A,N/A
Integrated Services,Agency Placements,Non-Schools,FOSTERING PEOPLE LTD,1109510,07/04/2020,3446043,"3,718.96",0.00,N/A,N/A
Integrated Services,Agency Placements,Non-Schools,FOSTERING PEOPLE LTD,1109510,07/04/2020,3446043,"3,718.96",0.00,N/A,N/A
Integrated Services,Agency Placements,Non-Schools,FOSTERING PEOPLE LTD,1109510,07/04/2020,3446043,"3,718.96",0.00,N/A,N/A
Integrated Services,Agency Placements,Non-Schools,FOSTERING PEOPLE LTD,1109510,07/04/2020,3446043,"3,718.96",0.00,N/A,N/A
Integrated Services,Agency Placements,Non-Schools,FOSTERING PEOPLE LTD,1109510,07/04/2020,3446043,"3,718.96",0.00,N/A,N/A
Integrated Services,Agency Placements,Non-Schools,FOSTERING PEOPLE LTD,1109510,07/04/2020,3446043,"3,551.80",0.00,N/A,N/A
Integrated Services,Agency Placements,Non-Schools,FOSTERING PEOPLE LTD,1109510,07/04/2020,3446043,"3,344.00",0.00,N/A,N/A
Integrated Services,Agency Placements,Non-Schools,FOSTERING PEOPLE LTD,1109510,07/04/2020,3446043,"3,136.00",0.00,N/A,N/A
Integrated Services,Agency Placements,Non-Schools,FOSTERING PEOPLE LTD,1109510,07/04/2020,3446043,"3,110.80",0.00,N/A,N/A
Integrated Services,Agency Placements,Non-Schools,FOSTERING PEOPLE LTD,1109510,07/04/2020,3446043,"3,110.80",0.00,N/A,N/A
Integrated Services,Agency Placements,Non-Schools,FOSTERING PEOPLE LTD,1109510,07/04/2020,3446043,"3,110.80",0.00,N/A,N/A
Integrated Services,Agency Placements,Non-Schools,FOSTERING PEOPLE LTD,1109510,07/04/2020,3446043,"3,110.80",0.00,N/A,N/A
Integrated Services,Agency Placements,Non-Schools,FOSTERING PEOPLE LTD,1109510,07/04/2020,3446043,"3,110.80",0.00,N/A,N/A
Integrated Services,Agency Placements,Non-Schools,FOSTERING PEOPLE LTD,1109510,07/04/2020,3446043,"3,110.80",0.00,N/A,N/A
Integrated Services,Agency Placements,Non-Schools,FOSTERING PEOPLE LTD,1109510,07/04/2020,3446043,"3,080.00",0.00,N/A,N/A
Integrated Services,Agency Placements,Non-Schools,FOSTERING PEOPLE LTD,1109510,07/04/2020,3446043,"3,080.00",0.00,N/A,N/A
Integrated Services,Agency Placements,Non-Schools,FOSTERING PEOPLE LTD,1109510,07/04/2020,3446043,"3,110.80",0.00,N/A,N/A
Integrated Services,Agency Placements,Non-Schools,FOSTERING PEOPLE LTD,1109510,07/04/2020,3446043,"3,110.80",0.00,N/A,N/A
Integrated Services,Agency Placements,Non-Schools,FOSTERING PEOPLE LTD,1109510,07/04/2020,3446043,"2,954.00",0.00,N/A,N/A
Integrated Services,Agency Placements,Non-Schools,FOSTERING PEOPLE LTD,1109510,07/04/2020,3446043,"3,110.80",0.00,N/A,N/A
Integrated Services,Agency Placements,Non-Schools,FOSTERING PEOPLE LTD,1109510,07/04/2020,3446043,"2,954.00",0.00,N/A,N/A
Integrated Services,Agency Placements,Non-Schools,FOSTERING PEOPLE LTD,1109510,07/04/2020,3446043,"3,105.14",0.00,N/A,N/A
Integrated Services,Agency Placements,Non-Schools,FOSTERING PEOPLE LTD,1109510,07/04/2020,3446043,"2,954.00",0.00,N/A,N/A
Integrated Services,Agency Placements,Non-Schools,FOSTERING PEOPLE LTD,1109510,07/04/2020,3446043,"3,080.00",0.00,N/A,N/A
Integrated Services,Agency Placements,Non-Schools,FOSTERING PEOPLE LTD,1109510,07/04/2020,3446043,"2,954.00",0.00,N/A,N/A
Integrated Services,Agency Placements,Non-Schools,FOSTERING PEOPLE LTD,1109510,07/04/2020,3446043,"2,954.00",0.00,N/A,N/A
Integrated Services,Agency Placements,Non-Schools,FOSTERING PEOPLE LTD,1109510,07/04/2020,3446043,"2,954.00",0.00,N/A,N/A
Integrated Services,Agency Placements,Non-Schools,FOSTERING PEOPLE LTD,1109510,07/04/2020,3446043,"2,954.00",0.00,N/A,N/A
Integrated Services,Agency Placements,Non-Schools,FOSTERING PEOPLE LTD,1109510,07/04/2020,3446043,"2,954.00",0.00,N/A,N/A
Integrated Services,Agency Placements,Non-Schools,FOSTERING PEOPLE LTD,1109510,07/04/2020,3446043,"2,954.00",0.00,N/A,N/A
Integrated Services,Agency Placements,Non-Schools,FOSTERING PEOPLE LTD,1109510,07/04/2020,3446043,"2,954.00",0.00,N/A,N/A
Integrated Services,Agency Placements,Non-Schools,FOSTERING PEOPLE LTD,1109510,07/04/2020,3446043,"2,954.00",0.00,N/A,N/A
Integrated Services,Agency Placements,Non-Schools,FOSTERING PEOPLE LTD,1109510,07/04/2020,3446043,"2,954.00",0.00,N/A,N/A
Integrated Services,Agency Placements,Non-Schools,FOSTERING PEOPLE LTD,1109510,07/04/2020,3446043,"2,954.00",0.00,N/A,N/A
Integrated Services,Agency Placements,Non-Schools,FOSTERING PEOPLE LTD,1109510,07/04/2020,3446043,"2,912.00",0.00,N/A,N/A
Integrated Services,Agency Placements,Non-Schools,FOSTERING PEOPLE LTD,1109510,07/04/2020,3446043,"2,912.00",0.00,N/A,N/A
Integrated Services,Agency Placements,Non-Schools,FOSTERING PEOPLE LTD,1109510,07/04/2020,3446043,"2,797.20",0.00,N/A,N/A
Integrated Services,Agency Placements,Non-Schools,FOSTERING PEOPLE LTD,1109510,07/04/2020,3446043,"2,797.20",0.00,N/A,N/A
Integrated Services,Agency Placements,Non-Schools,FOSTERING PEOPLE LTD,1109510,07/04/2020,3446043,"2,797.20",0.00,N/A,N/A
Integrated Services,Agency Placements,Non-Schools,FOSTERING PEOPLE LTD,1109510,07/04/2020,3446043,"2,797.20",0.00,N/A,N/A
Integrated Services,Agency Placements,Non-Schools,FOSTERING PEOPLE LTD,1109510,07/04/2020,3446043,"2,797.20",0.00,N/A,N/A
Integrated Services,Agency Placements,Non-Schools,FOSTERING PEOPLE LTD,1109510,07/04/2020,3446043,"2,797.20",0.00,N/A,N/A
Integrated Services,Agency Placements,Non-Schools,FOSTERING PEOPLE LTD,1109510,07/04/2020,3446043,"2,797.20",0.00,N/A,N/A
Integrated Services,Agency Placements,Non-Schools,FOSTERING PEOPLE LTD,1109510,07/04/2020,3446043,"5,143.60",0.00,N/A,N/A
Integrated Services,Agency Placements,Non-Schools,FOSTERING PEOPLE LTD,1109510,07/04/2020,3446043,"2,954.00",0.00,N/A,N/A
Integrated Services,Agency Placements,Non-Schools,FOSTERING PEOPLE LTD,1109510,07/04/2020,3446043,"2,954.00",0.00,N/A,N/A
Integrated Services,Agency Placements,Non-Schools,FOSTERING PEOPLE LTD,1109510,07/04/2020,3446043,"2,954.00",0.00,N/A,N/A
Integrated Services,Agency Placements,Non-Schools,FOSTERING PEOPLE LTD,1109510,07/04/2020,3446043,"2,954.00",0.00,N/A,N/A
Integrated Services,Agency Placements,Non-Schools,FOSTERING PEOPLE LTD,1109510,07/04/2020,3446043,"2,954.00",0.00,N/A,N/A
Integrated Services,Agency Placements,Non-Schools,FOSTERING PEOPLE LTD,1109510,07/04/2020,3446043,"2,954.00",0.00,N/A,N/A
Integrated Services,Agency Placements,Non-Schools,FOSTERING PEOPLE LTD,1109510,07/04/2020,3446043,"2,954.00",0.00,N/A,N/A
Integrated Services,Agency Placements,Non-Schools,FOSTERING SOLUTIONS LTD,1109511,07/04/2020,3446052,"5,992.00",0.00,N/A,N/A
Integrated Services,Agency Placements,Non-Schools,FOSTERING SOLUTIONS LTD,1109511,07/04/2020,3446052,"3,968.00",0.00,N/A,N/A
Integrated Services,Agency Placements,Non-Schools,FOSTERING SOLUTIONS LTD,1109511,07/04/2020,3446052,"3,276.00",0.00,N/A,N/A
Integrated Services,Agency Placements,Non-Schools,FOSTERING SOLUTIONS LTD,1109511,07/04/2020,3446052,"3,276.00",0.00,N/A,N/A
Integrated Services,Agency Placements,Non-Schools,FOSTERING SOLUTIONS LTD,1109511,07/04/2020,3446052,"3,210.48",0.00,N/A,N/A
Integrated Services,Agency Placements,Non-Schools,FOSTERING SOLUTIONS LTD,1109511,07/04/2020,3446052,"2,980.04",0.00,N/A,N/A
Integrated Services,Agency Placements,Non-Schools,FOSTERING SOLUTIONS LTD,1109511,07/04/2020,3446052,"2,819.88",0.00,N/A,N/A
Integrated Services,Agency Placements,Non-Schools,FOSTERING SOLUTIONS LTD,1109511,07/04/2020,3446052,"2,819.88",0.00,N/A,N/A
Integrated Services,Agency Placements,Non-Schools,FOSTERING SOLUTIONS LTD,1109511,07/04/2020,3446052,"2,640.00",0.00,N/A,N/A
Integrated Services,Agency Placements,Non-Schools,FOSTERING SOLUTIONS LTD,1109511,07/04/2020,3446052,"2,640.00",0.00,N/A,N/A
Integrated Services,Agency Placements,Non-Schools,FOSTERPLUS LTD,1109515,07/04/2020,3446175,"2,960.00",0.00,N/A,N/A
Integrated Services,Agency Placements,Non-Schools,FOSTERPLUS LTD,1109515,07/04/2020,3446175,"2,960.00",0.00,N/A,N/A
Integrated Services,Agency Placements,Non-Schools,FOSTERPLUS LTD,1109515,07/04/2020,3446175,"2,880.00",0.00,N/A,N/A
Regeneration Projects,Connect Project,"Regeneration, Property & Housing",FRANCOTYP POSTALIA LTD,1104479,07/04/2020,3445299,579.00,0.00,N/A,N/A
Learning Disability Support,Transitions and Ordinary Lives - Learning Disability Support,Transitions and Ordinary Lives,FULLWOOD HOUSE ACH LTD,222389,07/04/2020,3445557,"2,042.86",0.00,N/A,N/A
Learning Disability Support,Transitions and Ordinary Lives - Learning Disability Support,Transitions and Ordinary Lives,FULLWOOD HOUSE ACH LTD,222389,07/04/2020,3445668,"2,000.55",0.00,N/A,N/A
Learning Disability Support,Transitions and Ordinary Lives - Learning Disability Support,Transitions and Ordinary Lives,FULLWOOD HOUSE ACH LTD,222389,07/04/2020,3445720,"2,587.22",0.00,N/A,N/A
Regeneration Projects,Regeneration Projects,"Regeneration, Property & Housing",G2V RECRUITMENT GROUP LIMITED,886471,07/04/2020,3445365,"5,312.50",0.00,N/A,N/A
Mental Health Support,Mental Health - Mental Health Support,Mental Health,GILBY HOUSE NURSING HOME,471192,07/04/2020,3445846,887.01,0.00,N/A,N/A
Learning Disability Support,Transitions and Ordinary Lives - Learning Disability Support,Transitions and Ordinary Lives,GRATIA RESIDENTIAL HOME,10590,07/04/2020,3445546,"2,923.66",0.00,N/A,N/A
Learning Disability Support,Transitions and Ordinary Lives - Learning Disability Support,Transitions and Ordinary Lives,GRETTON HOMES,10594,07/04/2020,3445784,"5,986.50",0.00,N/A,N/A
Mental Health Support,Mental Health - Mental Health Support,Mental Health,HALCYON LIVING 111 LTD,473756,07/04/2020,3445852,"1,409.39",0.00,N/A,N/A
Learning Disability Support,Transitions and Ordinary Lives - Learning Disability Support,Transitions and Ordinary Lives,HAREWOOD PARK NURSING HOME,10593,07/04/2020,3445554,"2,601.45",0.00,N/A,N/A
Physical Support,Community Support - Physical Support,Community Support,HC ONE LIMITED,1111483,07/04/2020,3445653,"1,893.13",0.00,N/A,N/A
Mental Health Support,Community Support - Mental Health Support,Community Support,HC ONE OVAL LTD,119813,07/04/2020,3444016,"1,631.58",0.00,N/A,N/A
Physical Support,Community Support - Physical Support,Community Support,HC ONE OVAL LTD,119813,07/04/2020,3443730,"1,631.58",0.00,N/A,N/A
Physical Support,Community Support - Physical Support,Community Support,HC ONE OVAL LTD,119813,07/04/2020,3443727,"1,588.86",0.00,N/A,N/A
Physical Support,Community Support - Physical Support,Community Support,HC ONE OVAL LTD,119813,07/04/2020,3443564,"1,631.58",0.00,N/A,N/A
Physical Support,Community Support - Physical Support,Community Support,HC ONE OVAL LTD,119813,07/04/2020,3443402,"1,588.86",0.00,N/A,N/A
Physical Support,Community Support - Physical Support,Community Support,HC ONE OVAL LTD,119813,07/04/2020,3443573,"1,631.58",0.00,N/A,N/A
Physical Support,Community Support - Physical Support,Community Support,HC ONE OVAL LTD,119813,07/04/2020,3443732,"1,631.58",0.00,N/A,N/A
Physical Support,Community Support - Physical Support,Community Support,HC ONE OVAL LTD,119813,07/04/2020,3443733,"1,631.58",0.00,N/A,N/A
Physical Support,Community Support - Physical Support,Community Support,HC ONE OVAL LTD,119813,07/04/2020,3443812,"1,588.86",0.00,N/A,N/A
Physical Support,Community Support - Physical Support,Community Support,HC ONE OVAL LTD,119813,07/04/2020,3444010,"1,588.86",0.00,N/A,N/A
Physical Support,Community Support - Physical Support,Community Support,HC ONE OVAL LTD,119813,07/04/2020,3443495,"1,588.86",0.00,N/A,N/A
Physical Support,Community Support - Physical Support,Community Support,HC ONE OVAL LTD,119813,07/04/2020,3443581,"1,631.58",0.00,N/A,N/A
Physical Support,Community Support - Physical Support,Community Support,HC ONE OVAL LTD,119813,07/04/2020,3443582,"1,631.58",0.00,N/A,N/A
Physical Support,Community Support - Physical Support,Community Support,HC ONE OVAL LTD,119813,07/04/2020,3443814,"1,631.58",0.00,N/A,N/A
Physical Support,Community Support - Physical Support,Community Support,HC ONE OVAL LTD,119813,07/04/2020,3443562,"1,588.86",0.00,N/A,N/A
Support with Memory and Cognition,Community Support - Support with Memory and Cognition,Community Support,HC ONE OVAL LTD,119813,07/04/2020,3443998,"1,631.58",0.00,N/A,N/A
Mental Health Support,Mental Health - Mental Health Support,Mental Health,HC ONE OVAL LTD,119813,07/04/2020,3445937,"1,154.40",0.00,N/A,N/A
Learning Disability Support,Transitions and Ordinary Lives - Learning Disability Support,Transitions and Ordinary Lives,HC ONE OVAL LTD,119813,07/04/2020,3443501,"1,588.86",0.00,N/A,N/A
Learning Disability Support,Transitions and Ordinary Lives - Learning Disability Support,Transitions and Ordinary Lives,HC ONE OVAL LTD,119813,07/04/2020,3443741,"1,944.06",0.00,N/A,N/A
Integrated Services,Agency Placements,Non-Schools,HEATH FARM FOSTERING,1112471,07/04/2020,3446314,"5,800.00",0.00,N/A,N/A
Learning Disability Support,Transitions and Ordinary Lives - Learning Disability Support,Transitions and Ordinary Lives,HEATHCOTES CARE HOME,17541,07/04/2020,3445730,713.83,0.00,N/A,N/A
Learning Disability Support,Transitions and Ordinary Lives - Learning Disability Support,Transitions and Ordinary Lives,HEATHCOTES CARE HOME,17541,07/04/2020,3445789,"9,279.85",0.00,N/A,N/A
Learning Disability Support,Transitions and Ordinary Lives - Learning Disability Support,Transitions and Ordinary Lives,HEATHCOTES CARE LTD,22350,07/04/2020,3445732,"7,255.82",0.00,N/A,N/A
Learning Disability Support,Transitions and Ordinary Lives - Learning Disability Support,Transitions and Ordinary Lives,HEATHCOTES CARE LTD,22350,07/04/2020,3445681,558.14,0.00,N/A,N/A
Learning Disability Support,Transitions and Ordinary Lives - Learning Disability Support,Transitions and Ordinary Lives,HEATHCOTES CARE LTD,22350,07/04/2020,3445790,620.08,0.00,N/A,N/A
Learning Disability Support,Transitions and Ordinary Lives - Learning Disability Support,Transitions and Ordinary Lives,HEATHCOTES CARE LTD,22350,07/04/2020,3445791,"1,280.43",0.00,N/A,N/A
Learning Disability Support,Transitions and Ordinary Lives - Learning Disability Support,Transitions and Ordinary Lives,HEATHCOTES CARE LTD,22350,07/04/2020,3445792,"8,061.00",0.00,N/A,N/A
Learning Disability Support,Community Support - Learning Disability Support,Community Support,HEATHCOTES DERBY,568444,07/04/2020,3444877,584.98,0.00,N/A,N/A
Learning Disability Support,Community Support - Learning Disability Support,Community Support,HEATHCOTES DERBY,568444,07/04/2020,3444894,"7,604.74",0.00,N/A,N/A
Physical Support,Community Support - Physical Support,Community Support,HEATHCOTES DERBY,568444,07/04/2020,3445044,"5,887.52",0.00,N/A,N/A
Physical Support,Community Support - Physical Support,Community Support,HEATHCOTES DERBY,568444,07/04/2020,3445045,"2,523.24",0.00,N/A,N/A
Physical Support,Community Support - Physical Support,Community Support,HEATHCOTES DERBY,568444,07/04/2020,3444980,"1,261.62",0.00,N/A,N/A
Physical Support,Community Support - Physical Support,Community Support,HEATHCOTES DERBY,568444,07/04/2020,3444981,"2,523.24",0.00,N/A,N/A
Physical Support,Community Support - Physical Support,Community Support,HEATHCOTES DERBY,568444,07/04/2020,3444982,"2,523.24",0.00,N/A,N/A
Physical Support,Community Support - Physical Support,Community Support,HEATHCOTES DERBY,568444,07/04/2020,3444918,"5,887.52",0.00,N/A,N/A
Physical Support,Community Support - Physical Support,Community Support,HEATHCOTES DERBY,568444,07/04/2020,3444920,"2,343.01",0.00,N/A,N/A
Physical Support,Community Support - Physical Support,Community Support,HEATHCOTES DERBY,568444,07/04/2020,3445063,"2,943.76",0.00,N/A,N/A
Physical Support,Community Support - Physical Support,Community Support,HEATHCOTES DERBY,568444,07/04/2020,3445064,"5,466.98",0.00,N/A,N/A
Physical Support,Community Support - Physical Support,Community Support,HEATHCOTES DERBY,568444,07/04/2020,3444874,"5,887.52",0.00,N/A,N/A
Learning Disability Support,Transitions and Ordinary Lives - Learning Disability Support,Transitions and Ordinary Lives,HEATHCOTES DERBY,568444,07/04/2020,3444959,"6,588.14",0.00,N/A,N/A
Learning Disability Support,Transitions and Ordinary Lives - Learning Disability Support,Transitions and Ordinary Lives,HEATHCOTES DERBY,568444,07/04/2020,3445017,506.78,0.00,N/A,N/A
Learning Disability Support,Transitions and Ordinary Lives - Learning Disability Support,Transitions and Ordinary Lives,HEATHCOTES DERBY,568444,07/04/2020,3445018,523.90,0.00,N/A,N/A
Learning Disability Support,Transitions and Ordinary Lives - Learning Disability Support,Transitions and Ordinary Lives,HEATHCOTES DERBY,568444,07/04/2020,3445019,"6,810.66",0.00,N/A,N/A
Learning Disability Support,Transitions and Ordinary Lives - Learning Disability Support,Transitions and Ordinary Lives,HEATHCOTES DERBY,568444,07/04/2020,3445048,609.27,0.00,N/A,N/A
Learning Disability Support,Transitions and Ordinary Lives - Learning Disability Support,Transitions and Ordinary Lives,HEATHCOTES DERBY,568444,07/04/2020,3445049,"7,920.45",0.00,N/A,N/A
Learning Disability Support,Transitions and Ordinary Lives - Learning Disability Support,Transitions and Ordinary Lives,HEGARTY CARE LIMITED,924470,07/04/2020,3444898,"11,375.00",0.00,N/A,N/A
Learning Disability Support,Transitions and Ordinary Lives - Learning Disability Support,Transitions and Ordinary Lives,HEGARTY CARE LIMITED,924470,07/04/2020,3445070,875.00,0.00,N/A,N/A
Regeneration Projects,Connect Project,"Regeneration, Property & Housing",HI SPEC FACILITIES SUPPORT COMPANY PLC,46169,07/04/2020,3446438,778.97,0.00,Communities & Place,Industrial Cleaning Services
Regeneration Projects,Connect Project,"Regeneration, Property & Housing",HI SPEC FACILITIES SUPPORT COMPANY PLC,46169,07/04/2020,3446438,958.68,0.00,Communities & Place,Industrial Cleaning Services
Regeneration Projects,Connect Project,"Regeneration, Property & Housing",HI SPEC FACILITIES SUPPORT COMPANY PLC,46169,07/04/2020,3446438,599.28,0.00,Communities & Place,Industrial Cleaning Services
Economic Regeneration,Economic Regeneration,"Regeneration, Property & Housing",HI SPEC FACILITIES SUPPORT COMPANY PLC,46169,07/04/2020,3446438,958.68,0.00,Communities & Place,Industrial Cleaning Services
Learning Disability Support,Transitions and Ordinary Lives - Learning Disability Support,Transitions and Ordinary Lives,HIGHFIELD COURT CARE COMPLEX,10608,07/04/2020,3445855,"2,971.43",0.00,N/A,N/A
Learning Disability Support,Transitions and Ordinary Lives - Learning Disability Support,Transitions and Ordinary Lives,HIGHFIELD COURT CARE COMPLEX,10608,07/04/2020,3445856,"4,466.80",0.00,N/A,N/A
Learning Disability Support,Transitions and Ordinary Lives - Learning Disability Support,Transitions and Ordinary Lives,HIGHFIELD COURT CARE COMPLEX,10608,07/04/2020,3445785,"2,036.10",0.00,N/A,N/A
Learning Disability Support,Transitions and Ordinary Lives - Learning Disability Support,Transitions and Ordinary Lives,HIGHFIELD COURT CARE COMPLEX,10608,07/04/2020,3445786,"2,785.71",0.00,N/A,N/A
Learning Disability Support,Transitions and Ordinary Lives - Learning Disability Support,Transitions and Ordinary Lives,HIGHFIELD COURT CARE COMPLEX,10608,07/04/2020,3445624,"2,785.71",0.00,N/A,N/A
Learning Disability Support,Transitions and Ordinary Lives - Learning Disability Support,Transitions and Ordinary Lives,HIGHFIELD COURT CARE COMPLEX,10608,07/04/2020,3445579,"2,440.40",0.00,N/A,N/A
Adults Health and Housing,Capital,Capital,HIGHFIELD JOINERY AND BUILD SERVS LTD,1895,07/04/2020,3446521,"14,308.84",0.00,Disabled Facilities Grant 96 Act,Building and Construction Machinery and
Integrated Services,Agency Placements,Non-Schools,HILLCREST CHILDRENS SERVICES 2 LIMITED,1112472,07/04/2020,3446316,"4,952.00",0.00,N/A,N/A
Physical Support,Community Support - Physical Support,Community Support,HOLLY TREE LODGE,10612,07/04/2020,3443210,"1,588.86",0.00,N/A,N/A
Physical Support,Community Support - Physical Support,Community Support,HOLLY TREE LODGE,10612,07/04/2020,3443299,"1,588.86",0.00,N/A,N/A
Physical Support,Community Support - Physical Support,Community Support,HOLLY TREE LODGE,10612,07/04/2020,3443300,"1,914.49",0.00,N/A,N/A
Physical Support,Community Support - Physical Support,Community Support,HOLLY TREE LODGE,10612,07/04/2020,3443266,"1,588.86",0.00,N/A,N/A
Support with Memory and Cognition,Community Support - Support with Memory and Cognition,Community Support,HOLLY TREE LODGE,10612,07/04/2020,3443262,"1,588.86",0.00,N/A,N/A
Support with Memory and Cognition,Community Support - Support with Memory and Cognition,Community Support,HOLLY TREE LODGE,10612,07/04/2020,3443173,"1,588.86",0.00,N/A,N/A
Mental Health Support,Mental Health - Mental Health Support,Mental Health,HOLLY TREE LODGE,10612,07/04/2020,3443095,"1,588.86",0.00,N/A,N/A
Mental Health Support,Mental Health - Mental Health Support,Mental Health,HOLLY TREE LODGE,10612,07/04/2020,3443175,"1,588.86",0.00,N/A,N/A
Mental Health Support,Mental Health - Mental Health Support,Mental Health,HOLLY TREE LODGE,10612,07/04/2020,3443336,"1,588.86",0.00,N/A,N/A
Physical Support,Community Support - Physical Support,Community Support,HOME SUPPORT SERVICES,1120475,07/04/2020,3441635,539.96,0.00,N/A,N/A
Physical Support,Community Support - Physical Support,Community Support,HOME SUPPORT SERVICES,1120475,07/04/2020,3441636,"1,103.24",0.00,N/A,N/A
Physical Support,Community Support - Physical Support,Community Support,HOME SUPPORT SERVICES,1120475,07/04/2020,3441251,539.96,0.00,N/A,N/A
Physical Support,Community Support - Physical Support,Community Support,HOME SUPPORT SERVICES,1120475,07/04/2020,3441503,"1,103.24",0.00,N/A,N/A
Physical Support,Community Support - Physical Support,Community Support,HOME SUPPORT SERVICES,1120475,07/04/2020,3441742,539.96,0.00,N/A,N/A
Physical Support,Community Support - Physical Support,Community Support,HOME SUPPORT SERVICES,1120475,07/04/2020,3441743,628.56,0.00,N/A,N/A
Physical Support,Community Support - Physical Support,Community Support,HOME SUPPORT SERVICES,1120475,07/04/2020,3441744,"1,008.92",0.00,N/A,N/A
Physical Support,Community Support - Physical Support,Community Support,HOME SUPPORT SERVICES,1120475,07/04/2020,3441381,897.32,0.00,N/A,N/A
Physical Support,Community Support - Physical Support,Community Support,HOME SUPPORT SERVICES,1120475,07/04/2020,3441382,"2,146.16",0.00,N/A,N/A
Physical Support,Community Support - Physical Support,Community Support,HOME SUPPORT SERVICES,1120475,07/04/2020,3441638,931.48,0.00,N/A,N/A
Physical Support,Community Support - Physical Support,Community Support,HOME SUPPORT SERVICES,1120475,07/04/2020,3441639,934.04,0.00,N/A,N/A
Physical Support,Community Support - Physical Support,Community Support,HOME SUPPORT SERVICES,1120475,07/04/2020,3441640,"1,012.36",0.00,N/A,N/A
Physical Support,Community Support - Physical Support,Community Support,HOME SUPPORT SERVICES,1120475,07/04/2020,3441252,"1,008.92",0.00,N/A,N/A
Physical Support,Community Support - Physical Support,Community Support,HOME SUPPORT SERVICES,1120475,07/04/2020,3441129,"1,067.80",0.00,N/A,N/A
Physical Support,Community Support - Physical Support,Community Support,HOME SUPPORT SERVICES,1120475,07/04/2020,3441873,"1,008.92",0.00,N/A,N/A
Physical Support,Community Support - Physical Support,Community Support,HOME SUPPORT SERVICES,1120475,07/04/2020,3441641,"1,103.24",0.00,N/A,N/A
Physical Support,Community Support - Physical Support,Community Support,HOME SUPPORT SERVICES,1120475,07/04/2020,3441874,"1,103.24",0.00,N/A,N/A
Support with Memory and Cognition,Community Support - Support with Memory and Cognition,Community Support,HOME SUPPORT SERVICES,1120475,07/04/2020,3441383,713.28,0.00,N/A,N/A
Integrated Commissioning,Integrated Commissioning,Commissioning,HOME SUPPORT SERVICES,1120475,07/04/2020,3441634,"1,103.24",0.00,N/A,N/A
Integrated Commissioning,Integrated Commissioning,Commissioning,HOME SUPPORT SERVICES,1120475,07/04/2020,3441380,"1,103.24",0.00,N/A,N/A
Integrated Services,Agency Placements,Non-Schools,HOPE FOSTERING SERVICE,1230482,07/04/2020,3446060,"2,808.00",0.00,N/A,N/A
Integrated Services,Agency Placements,Non-Schools,HOPE FOSTERING SERVICE,1230482,07/04/2020,3446060,"2,640.00",0.00,N/A,N/A
Integrated Services,Agency Placements,Non-Schools,HOPE FOSTERING SERVICE,1230482,07/04/2020,3446060,"3,400.00",0.00,N/A,N/A
Integrated Services,Agency Placements,Non-Schools,HOPE FOSTERING SERVICE,1230482,07/04/2020,3446060,"3,400.00",0.00,N/A,N/A
Integrated Services,Agency Placements,Non-Schools,HOPE FOSTERING SERVICE,1230482,07/04/2020,3446060,"3,000.00",0.00,N/A,N/A
Integrated Services,Agency Placements,Non-Schools,HOPE FOSTERING SERVICE,1230482,07/04/2020,3446060,"2,940.00",0.00,N/A,N/A
Integrated Services,Agency Placements,Non-Schools,HOPE FOSTERING SERVICE,1230482,07/04/2020,3446060,"2,940.00",0.00,N/A,N/A
Integrated Services,Agency Placements,Non-Schools,HOPE FOSTERING SERVICE,1230482,07/04/2020,3446060,"2,808.00",0.00,N/A,N/A
Integrated Services,Agency Placements,Non-Schools,HOPE FOSTERING SERVICE,1230482,07/04/2020,3446060,"2,808.00",0.00,N/A,N/A
Integrated Services,Agency Placements,Non-Schools,HOPE FOSTERING SERVICE,1230482,07/04/2020,3446060,"2,808.00",0.00,N/A,N/A
Learning Disability Support,Community Support - Learning Disability Support,Community Support,HOUSING 21,1116470,07/04/2020,3441942,521.76,0.00,N/A,N/A
Learning Disability Support,Community Support - Learning Disability Support,Community Support,HOUSING 21,1116470,07/04/2020,3441947,"1,042.08",0.00,N/A,N/A
Mental Health Support,Community Support - Mental Health Support,Community Support,HOUSING 21,1116470,07/04/2020,3441605,"1,091.12",0.00,N/A,N/A
Physical Support,Community Support - Physical Support,Community Support,HOUSING 21,1116470,07/04/2020,3441346,949.60,0.00,N/A,N/A
Physical Support,Community Support - Physical Support,Community Support,HOUSING 21,1116470,07/04/2020,3441470,"1,187.96",0.00,N/A,N/A
Physical Support,Community Support - Physical Support,Community Support,HOUSING 21,1116470,07/04/2020,3441471,"1,246.84",0.00,N/A,N/A
Physical Support,Community Support - Physical Support,Community Support,HOUSING 21,1116470,07/04/2020,3441601,602.68,0.00,N/A,N/A
Physical Support,Community Support - Physical Support,Community Support,HOUSING 21,1116470,07/04/2020,3441347,638.69,0.00,N/A,N/A
Physical Support,Community Support - Physical Support,Community Support,HOUSING 21,1116470,07/04/2020,3441472,957.36,0.00,N/A,N/A
Physical Support,Community Support - Physical Support,Community Support,HOUSING 21,1116470,07/04/2020,3441093,953.48,0.00,N/A,N/A
Physical Support,Community Support - Physical Support,Community Support,HOUSING 21,1116470,07/04/2020,3441091,775.72,0.00,N/A,N/A
Sensory Support,Community Support - Sensory Support,Community Support,HOUSING 21,1116470,07/04/2020,3441473,836.31,0.00,N/A,N/A
Sensory Support,Community Support - Sensory Support,Community Support,HOUSING 21,1116470,07/04/2020,3441214,"1,196.60",0.00,N/A,N/A
Support with Memory and Cognition,Community Support - Support with Memory and Cognition,Community Support,HOUSING 21,1116470,07/04/2020,3441098,602.68,0.00,N/A,N/A
Strategic Housing,Housing and Advice,"Regeneration, Property & Housing",HOUSING AUDIT SERVICES LIMITED,1188469,07/04/2020,3445261,"1,300.00",0.00,N/A,N/A
Learning Disability Support,Transitions and Ordinary Lives - Learning Disability Support,Transitions and Ordinary Lives,HOWSON CARE CENTRE LTD,120848,07/04/2020,3445697,"1,864.57",0.00,N/A,N/A
Mental Health Support,Mental Health - Mental Health Support,Mental Health,HUDSON SANDIACRE LTD,966473,07/04/2020,3445934,"3,992.86",0.00,N/A,N/A
Property Design & Maintenance,Building - Repairs & Maintenance,"Regeneration, Property & Housing",HYDRO X WATER TREATMENT LTD,1291473,07/04/2020,3445242,749.80,0.00,N/A,N/A
Learning Disability Support,Community Support - Learning Disability Support,Community Support,I CARE GB LTD,471255,07/04/2020,3441938,830.32,0.00,N/A,N/A
Learning Disability Support,Community Support - Learning Disability Support,Community Support,I CARE GB LTD,471255,07/04/2020,3441208,830.32,0.00,N/A,N/A
Mental Health Support,Community Support - Mental Health Support,Community Support,I CARE GB LTD,471255,07/04/2020,3441594,"1,316.80",0.00,N/A,N/A
Mental Health Support,Community Support - Mental Health Support,Community Support,I CARE GB LTD,471255,07/04/2020,3441941,"1,316.80",0.00,N/A,N/A
Physical Support,Community Support - Physical Support,Community Support,I CARE GB LTD,471255,07/04/2020,3441336,"1,162.12",0.00,N/A,N/A
Physical Support,Community Support - Physical Support,Community Support,I CARE GB LTD,471255,07/04/2020,3441836,687.40,0.00,N/A,N/A
Physical Support,Community Support - Physical Support,Community Support,I CARE GB LTD,471255,07/04/2020,3441937,675.20,0.00,N/A,N/A
Physical Support,Community Support - Physical Support,Community Support,I CARE GB LTD,471255,07/04/2020,3441593,682.56,0.00,N/A,N/A
Physical Support,Community Support - Physical Support,Community Support,I CARE GB LTD,471255,07/04/2020,3441086,539.26,0.00,N/A,N/A
Physical Support,Community Support - Physical Support,Community Support,I CARE GB LTD,471255,07/04/2020,3441465,762.28,0.00,N/A,N/A
Physical Support,Community Support - Physical Support,Community Support,I CARE GB LTD,471255,07/04/2020,3441464,698.02,0.00,N/A,N/A
Physical Support,Community Support - Physical Support,Community Support,I CARE GB LTD,471255,07/04/2020,3441335,553.68,0.00,N/A,N/A
Physical Support,Community Support - Physical Support,Community Support,I CARE GB LTD,471255,07/04/2020,3441834,588.76,0.00,N/A,N/A
Physical Support,Community Support - Physical Support,Community Support,I CARE GB LTD,471255,07/04/2020,3441835,705.10,0.00,N/A,N/A
Physical Support,Community Support - Physical Support,Community Support,I CARE GB LTD,471255,07/04/2020,3441583,650.69,0.00,N/A,N/A
Physical Support,Community Support - Physical Support,Community Support,I CARE GB LTD,471255,07/04/2020,3441932,650.69,0.00,N/A,N/A
Physical Support,Community Support - Physical Support,Community Support,I CARE GB LTD,471255,07/04/2020,3441584,"1,199.16",0.00,N/A,N/A
Mental Health Support,Mental Health - Mental Health Support,Mental Health,I CARE GB LTD,471255,07/04/2020,3441599,655.24,0.00,N/A,N/A
Information Systems Support,Information Systems Support,Digital Services,INNOVYZE LTD,1041506,07/04/2020,3445279,552.75,0.00,N/A,N/A
Information Systems Support,Information Systems Support,Digital Services,INNOVYZE LTD,1041506,07/04/2020,3445279,"3,685.00",0.00,N/A,N/A
Highways & Engineering,Highways Maintenance & Street Lighting,"Strategic Partnerships, Planning & Streetpride",INSTARMAC GROUP PLC,2326,07/04/2020,3445396,728.00,0.00,Communities & Place,Electrical systems and Lighting and comp
Highways & Engineering,Highways Maintenance & Street Lighting,"Strategic Partnerships, Planning & Streetpride",INSTARMAC GROUP PLC,2326,07/04/2020,3445396,"1,520.00",0.00,Communities & Place,Electrical systems and Lighting and comp
Highways & Engineering,Highways Maintenance & Street Lighting,"Strategic Partnerships, Planning & Streetpride",INSTARMAC GROUP PLC,2326,07/04/2020,3445396,"1,520.00",0.00,Communities & Place,Electrical systems and Lighting and comp
Mental Health Support,Mental Health - Mental Health Support,Mental Health,ISLAND PLACE,50475,07/04/2020,3445636,787.43,0.00,N/A,N/A
Integrated Services,Agency Placements,Non-Schools,ISP CENTRAL OFFICE,1112475,07/04/2020,3446105,"6,596.00",0.00,N/A,N/A
Integrated Services,Agency Placements,Non-Schools,ISP CENTRAL OFFICE,1112475,07/04/2020,3446105,"5,196.00",0.00,N/A,N/A
Integrated Services,Agency Placements,Non-Schools,ISP CENTRAL OFFICE,1112475,07/04/2020,3446105,"5,196.00",0.00,N/A,N/A
Integrated Services,Agency Placements,Non-Schools,ISP CENTRAL OFFICE,1112475,07/04/2020,3446105,"5,196.00",0.00,N/A,N/A
Integrated Services,Agency Placements,Non-Schools,ISP CENTRAL OFFICE,1112475,07/04/2020,3446105,"5,196.00",0.00,N/A,N/A
Integrated Services,Agency Placements,Non-Schools,ISP CENTRAL OFFICE,1112475,07/04/2020,3446105,"5,196.00",0.00,N/A,N/A
Integrated Services,Agency Placements,Non-Schools,ISP CENTRAL OFFICE,1112475,07/04/2020,3446105,"5,196.00",0.00,N/A,N/A
Traffic & Transportation,Traffic & Transportation (inc Integrated Pass Transport),"Strategic Partnerships, Planning & Streetpride",ITSO LTD,126482,07/04/2020,3442009,"1,145.00",0.00,Communities & Place,Organizations and Clubs
Adults Health and Housing,Capital,Capital,J A L ROOFING LTD,186824,07/04/2020,3443072,"4,455.78",0.00,Re-Roofing,Building and Construction and Maintenanc
Adults Health and Housing,Capital,Capital,J A L ROOFING LTD,186824,07/04/2020,3443072,"1,500.00",0.00,Re-Roofing,Building and Construction and Maintenanc
Learning Disability Support,Transitions and Ordinary Lives - Learning Disability Support,Transitions and Ordinary Lives,JAMES COURT RESIDENTIAL HOME,119369,07/04/2020,3445809,"2,125.35",0.00,N/A,N/A
Support with Memory and Cognition,Community Support - Support with Memory and Cognition,Community Support,JAMES HUDSON BUILDERS LTD,408411,07/04/2020,3445725,"1,907.10",0.00,N/A,N/A
Support with Memory and Cognition,Community Support - Support with Memory and Cognition,Community Support,JAMES HUDSON BUILDERS LTD,408411,07/04/2020,3445907,"1,164.61",0.00,N/A,N/A
Integrated Services,Agency Placements,Non-Schools,JAY FOSTERING,1112476,07/04/2020,3446030,"3,036.00",0.00,N/A,N/A
Integrated Services,Agency Placements,Non-Schools,JAY FOSTERING,1112476,07/04/2020,3446030,"3,036.00",0.00,N/A,N/A
Integrated Services,Agency Placements,Non-Schools,JAY FOSTERING,1112476,07/04/2020,3446030,"2,971.43",0.00,N/A,N/A
Integrated Services,Agency Placements,Non-Schools,JAY FOSTERING,1112476,07/04/2020,3446030,"2,956.00",0.00,N/A,N/A
Integrated Services,Agency Placements,Non-Schools,JAY FOSTERING,1112476,07/04/2020,3446030,"2,956.00",0.00,N/A,N/A
Integrated Services,Agency Placements,Non-Schools,JAY FOSTERING,1112476,07/04/2020,3446030,"2,956.00",0.00,N/A,N/A
Integrated Services,Agency Placements,Non-Schools,JAY FOSTERING,1112476,07/04/2020,3446030,"3,116.00",0.00,N/A,N/A
Integrated Services,Agency Placements,Non-Schools,JAY FOSTERING,1112476,07/04/2020,3446030,"3,116.00",0.00,N/A,N/A
Integrated Services,Agency Placements,Non-Schools,JAY FOSTERING,1112476,07/04/2020,3446030,"3,116.00",0.00,N/A,N/A
Integrated Services,Agency Placements,Non-Schools,JAY FOSTERING,1112476,07/04/2020,3446030,"3,116.00",0.00,N/A,N/A
Integrated Services,Agency Placements,Non-Schools,JAY FOSTERING,1112476,07/04/2020,3446030,"3,080.00",0.00,N/A,N/A
Integrated Services,Agency Placements,Non-Schools,JAY FOSTERING,1112476,07/04/2020,3446030,"2,956.00",0.00,N/A,N/A
Integrated Services,Agency Placements,Non-Schools,JAY FOSTERING,1112476,07/04/2020,3446030,"2,956.00",0.00,N/A,N/A
Integrated Services,Agency Placements,Non-Schools,JAY FOSTERING,1112476,07/04/2020,3446030,"2,880.00",0.00,N/A,N/A
Integrated Services,Agency Placements,Non-Schools,JAY FOSTERING,1112476,07/04/2020,3446030,"2,782.14",0.00,N/A,N/A
Integrated Services,Agency Placements,Non-Schools,JAY FOSTERING,1112476,07/04/2020,3446030,"2,448.29",0.00,N/A,N/A
Integrated Services,Agency Placements,Non-Schools,JAY FOSTERING,1112476,07/04/2020,3446030,667.71,0.00,N/A,N/A
Highways & Engineering,Highways Maintenance & Street Lighting,"Strategic Partnerships, Planning & Streetpride",JC BALLS AND SONS,164349,07/04/2020,3445430,720.00,0.00,Communities & Place,Building and Construction Machinery and
Regeneration Projects,Connect Project,"Regeneration, Property & Housing",JSA ARCHITECTS,1275482,07/04/2020,3445400,"1,800.00",0.00,N/A,N/A
Physical Support,Community Support - Physical Support,Community Support,KIDSLEY GRANGE NURSING HOME,11650,07/04/2020,3445844,"2,083.12",0.00,N/A,N/A
Mental Health Support,Community Support - Mental Health Support,Community Support,KILBURN CARE CENTRE,10256,07/04/2020,3445920,"1,991.60",0.00,N/A,N/A
Integrated Commissioning,Integrated Commissioning,Commissioning,KILBURN CARE CENTRE,10256,07/04/2020,3445794,"1,588.86",0.00,N/A,N/A
Mental Health Support,Mental Health - Mental Health Support,Mental Health,KILBURN CARE CENTRE,10256,07/04/2020,3445688,"2,477.06",0.00,N/A,N/A
Learning Disability Support,Transitions and Ordinary Lives - Learning Disability Support,Transitions and Ordinary Lives,KILBURN CARE CENTRE,10256,07/04/2020,3445921,"2,735.76",0.00,N/A,N/A
Learning Disability Support,Transitions and Ordinary Lives - Learning Disability Support,Transitions and Ordinary Lives,KILBURN CARE CENTRE,10256,07/04/2020,3445630,"8,525.47",0.00,N/A,N/A
Traffic & Transportation,Parking Services,"Strategic Partnerships, Planning & Streetpride",KINGS ARMOURED SECURITY SERVICES,2618,07/04/2020,3442036,"3,260.59",0.00,Communities & Place,National Defense and Public Order and Se
Learning Disability Support,Transitions and Ordinary Lives - Learning Disability Support,Transitions and Ordinary Lives,KIRKSTALL COURT CARE HOME,11741,07/04/2020,3445913,"2,767.14",0.00,N/A,N/A
Mental Health Support,Community Support - Mental Health Support,Community Support,KIWI HOUSE,471383,07/04/2020,3444174,986.14,0.00,N/A,N/A
Mental Health Support,Community Support - Mental Health Support,Community Support,KIWI HOUSE,471383,07/04/2020,3444271,"1,588.86",0.00,N/A,N/A
Physical Support,Community Support - Physical Support,Community Support,KIWI HOUSE,471383,07/04/2020,3444612,"1,022.58",0.00,N/A,N/A
Physical Support,Community Support - Physical Support,Community Support,KIWI HOUSE,471383,07/04/2020,3444445,"1,588.86",0.00,N/A,N/A
Support with Memory and Cognition,Community Support - Support with Memory and Cognition,Community Support,KIWI HOUSE,471383,07/04/2020,3444611,860.64,0.00,N/A,N/A
Support with Memory and Cognition,Community Support - Support with Memory and Cognition,Community Support,KIWI HOUSE,471383,07/04/2020,3444541,"1,588.86",0.00,N/A,N/A
Support with Memory and Cognition,Community Support - Support with Memory and Cognition,Community Support,KIWI HOUSE,471383,07/04/2020,3444695,"1,035.47",0.00,N/A,N/A
Support with Memory and Cognition,Community Support - Support with Memory and Cognition,Community Support,KIWI HOUSE,471383,07/04/2020,3444696,"1,588.86",0.00,N/A,N/A
Mental Health Support,Mental Health - Mental Health Support,Mental Health,KIWI HOUSE,471383,07/04/2020,3444542,"1,588.86",0.00,N/A,N/A
Mental Health Support,Mental Health - Mental Health Support,Mental Health,KIWI HOUSE,471383,07/04/2020,3444091,"1,325.18",0.00,N/A,N/A
Mental Health Support,Mental Health - Mental Health Support,Mental Health,KIWI HOUSE,471383,07/04/2020,3444698,"1,264.01",0.00,N/A,N/A
Mental Health Support,Mental Health - Mental Health Support,Mental Health,KIWI HOUSE,471383,07/04/2020,3444269,"1,588.86",0.00,N/A,N/A
Physical Support,Community Support - Physical Support,Community Support,LANGDALE HEIGHTS,10911,07/04/2020,3442258,"1,631.58",0.00,N/A,N/A
Physical Support,Community Support - Physical Support,Community Support,LANGDALE HEIGHTS,10911,07/04/2020,3442436,"2,093.60",0.00,N/A,N/A
Physical Support,Community Support - Physical Support,Community Support,LANGDALE HEIGHTS,10911,07/04/2020,3442306,"2,093.60",0.00,N/A,N/A
Physical Support,Community Support - Physical Support,Community Support,LANGDALE HEIGHTS,10911,07/04/2020,3442317,"1,631.58",0.00,N/A,N/A
Physical Support,Community Support - Physical Support,Community Support,LANGDALE HEIGHTS,10911,07/04/2020,3442259,"1,631.58",0.00,N/A,N/A
Physical Support,Community Support - Physical Support,Community Support,LANGDALE HEIGHTS,10911,07/04/2020,3442548,"1,944.06",0.00,N/A,N/A
Physical Support,Community Support - Physical Support,Community Support,LANGDALE HEIGHTS,10911,07/04/2020,3442309,"1,631.58",0.00,N/A,N/A
Physical Support,Community Support - Physical Support,Community Support,LANGDALE HEIGHTS,10911,07/04/2020,3442126,"1,013.07",0.00,N/A,N/A
Physical Support,Community Support - Physical Support,Community Support,LANGDALE HEIGHTS,10911,07/04/2020,3442374,"1,631.58",0.00,N/A,N/A
Physical Support,Community Support - Physical Support,Community Support,LANGDALE HEIGHTS,10911,07/04/2020,3442375,"1,631.58",0.00,N/A,N/A
Physical Support,Community Support - Physical Support,Community Support,LANGDALE HEIGHTS,10911,07/04/2020,3442127,"1,631.58",0.00,N/A,N/A
Physical Support,Community Support - Physical Support,Community Support,LANGDALE HEIGHTS,10911,07/04/2020,3442308,"1,631.58",0.00,N/A,N/A
Physical Support,Community Support - Physical Support,Community Support,LANGDALE HEIGHTS,10911,07/04/2020,3442553,"1,588.86",0.00,N/A,N/A
Mental Health Support,Mental Health - Mental Health Support,Mental Health,LANGFORD PARK LTD,1238482,07/04/2020,3445886,"1,578.57",0.00,N/A,N/A
Learning Disability Support,Transitions and Ordinary Lives - Learning Disability Support,Transitions and Ordinary Lives,LARWOOD HOUSE,470876,07/04/2020,3445040,"4,486.86",0.00,N/A,N/A
Learning Disability Support,Transitions and Ordinary Lives - Learning Disability Support,Transitions and Ordinary Lives,LARWOOD HOUSE,470876,07/04/2020,3445041,"5,341.14",0.00,N/A,N/A
Physical Support,Community Support - Physical Support,Community Support,LEONARD CHESHIRE DISABILITY,821456,07/04/2020,3445069,"4,409.04",0.00,N/A,N/A
Physical Support,Community Support - Physical Support,Community Support,LINDEN HOUSE,10636,07/04/2020,3443274,"1,588.86",0.00,N/A,N/A
Physical Support,Community Support - Physical Support,Community Support,LINDEN HOUSE,10636,07/04/2020,3443111,"1,588.86",0.00,N/A,N/A
Physical Support,Community Support - Physical Support,Community Support,LINDEN HOUSE,10636,07/04/2020,3443149,"1,588.86",0.00,N/A,N/A
Physical Support,Community Support - Physical Support,Community Support,LINDEN HOUSE,10636,07/04/2020,3443148,"1,588.86",0.00,N/A,N/A
Support with Memory and Cognition,Community Support - Support with Memory and Cognition,Community Support,LINDEN HOUSE,10636,07/04/2020,3443347,"1,588.86",0.00,N/A,N/A
Mental Health Support,Community Support - Mental Health Support,Community Support,LITTLEOVER NURSING HOME,10637,07/04/2020,3443791,"1,631.58",0.00,N/A,N/A
Mental Health Support,Community Support - Mental Health Support,Community Support,LITTLEOVER NURSING HOME,10637,07/04/2020,3443379,"1,588.86",0.00,N/A,N/A
Mental Health Support,Community Support - Mental Health Support,Community Support,LITTLEOVER NURSING HOME,10637,07/04/2020,3443467,"1,588.86",0.00,N/A,N/A
Physical Support,Community Support - Physical Support,Community Support,LITTLEOVER NURSING HOME,10637,07/04/2020,3443541,"1,601.88",0.00,N/A,N/A
Physical Support,Community Support - Physical Support,Community Support,LITTLEOVER NURSING HOME,10637,07/04/2020,3443710,"1,588.86",0.00,N/A,N/A
Physical Support,Community Support - Physical Support,Community Support,LITTLEOVER NURSING HOME,10637,07/04/2020,3443873,"1,588.86",0.00,N/A,N/A
Physical Support,Community Support - Physical Support,Community Support,LITTLEOVER NURSING HOME,10637,07/04/2020,3443974,"1,513.20",0.00,N/A,N/A
Physical Support,Community Support - Physical Support,Community Support,LITTLEOVER NURSING HOME,10637,07/04/2020,3443460,"1,588.86",0.00,N/A,N/A
Physical Support,Community Support - Physical Support,Community Support,LITTLEOVER NURSING HOME,10637,07/04/2020,3443874,"1,588.86",0.00,N/A,N/A
Physical Support,Community Support - Physical Support,Community Support,LITTLEOVER NURSING HOME,10637,07/04/2020,3443980,"1,631.58",0.00,N/A,N/A
Physical Support,Community Support - Physical Support,Community Support,LITTLEOVER NURSING HOME,10637,07/04/2020,3443466,"1,631.58",0.00,N/A,N/A
Physical Support,Community Support - Physical Support,Community Support,LITTLEOVER NURSING HOME,10637,07/04/2020,3443968,912.40,0.00,N/A,N/A
Support with Memory and Cognition,Community Support - Support with Memory and Cognition,Community Support,LITTLEOVER NURSING HOME,10637,07/04/2020,3443872,"1,631.58",0.00,N/A,N/A
Support with Memory and Cognition,Community Support - Support with Memory and Cognition,Community Support,LITTLEOVER NURSING HOME,10637,07/04/2020,3443711,"1,588.86",0.00,N/A,N/A
Learning Disability Support,Transitions and Ordinary Lives - Learning Disability Support,Transitions and Ordinary Lives,LITTLEOVER NURSING HOME,10637,07/04/2020,3443888,"2,228.57",0.00,N/A,N/A
Mental Health Support,Community Support - Mental Health Support,Community Support,LIVERSAGE COURT RESIDENTIAL HOME,10638,07/04/2020,3443577,"1,588.86",0.00,N/A,N/A
Mental Health Support,Community Support - Mental Health Support,Community Support,LIVERSAGE COURT RESIDENTIAL HOME,10638,07/04/2020,3443916,"1,588.86",0.00,N/A,N/A
Physical Support,Community Support - Physical Support,Community Support,LIVERSAGE COURT RESIDENTIAL HOME,10638,07/04/2020,3443911,"1,588.86",0.00,N/A,N/A
Physical Support,Community Support - Physical Support,Community Support,LIVERSAGE COURT RESIDENTIAL HOME,10638,07/04/2020,3443566,"1,588.86",0.00,N/A,N/A
Physical Support,Community Support - Physical Support,Community Support,LIVERSAGE COURT RESIDENTIAL HOME,10638,07/04/2020,3443567,"1,588.86",0.00,N/A,N/A
Physical Support,Community Support - Physical Support,Community Support,LIVERSAGE COURT RESIDENTIAL HOME,10638,07/04/2020,3443568,"1,588.86",0.00,N/A,N/A
Physical Support,Community Support - Physical Support,Community Support,LIVERSAGE COURT RESIDENTIAL HOME,10638,07/04/2020,3443651,"1,588.86",0.00,N/A,N/A
Physical Support,Community Support - Physical Support,Community Support,LIVERSAGE COURT RESIDENTIAL HOME,10638,07/04/2020,3443399,"1,588.86",0.00,N/A,N/A
Physical Support,Community Support - Physical Support,Community Support,LIVERSAGE COURT RESIDENTIAL HOME,10638,07/04/2020,3443400,"1,588.86",0.00,N/A,N/A
Physical Support,Community Support - Physical Support,Community Support,LIVERSAGE COURT RESIDENTIAL HOME,10638,07/04/2020,3443569,"1,903.35",0.00,N/A,N/A
Physical Support,Community Support - Physical Support,Community Support,LIVERSAGE COURT RESIDENTIAL HOME,10638,07/04/2020,3443653,"1,588.86",0.00,N/A,N/A
Support with Memory and Cognition,Community Support - Support with Memory and Cognition,Community Support,LIVERSAGE COURT RESIDENTIAL HOME,10638,07/04/2020,3443557,"1,588.86",0.00,N/A,N/A
Support with Memory and Cognition,Community Support - Support with Memory and Cognition,Community Support,LIVERSAGE COURT RESIDENTIAL HOME,10638,07/04/2020,3443714,"1,588.86",0.00,N/A,N/A
Support with Memory and Cognition,Community Support - Support with Memory and Cognition,Community Support,LIVERSAGE COURT RESIDENTIAL HOME,10638,07/04/2020,3443992,"1,588.86",0.00,N/A,N/A
Support with Memory and Cognition,Community Support - Support with Memory and Cognition,Community Support,LIVERSAGE COURT RESIDENTIAL HOME,10638,07/04/2020,3443389,"1,588.86",0.00,N/A,N/A
Support with Memory and Cognition,Community Support - Support with Memory and Cognition,Community Support,LIVERSAGE COURT RESIDENTIAL HOME,10638,07/04/2020,3443897,"1,588.86",0.00,N/A,N/A
Support with Memory and Cognition,Community Support - Support with Memory and Cognition,Community Support,LIVERSAGE COURT RESIDENTIAL HOME,10638,07/04/2020,3443898,"1,903.35",0.00,N/A,N/A
Support with Memory and Cognition,Community Support - Support with Memory and Cognition,Community Support,LIVERSAGE COURT RESIDENTIAL HOME,10638,07/04/2020,3443472,"1,903.35",0.00,N/A,N/A
Support with Memory and Cognition,Community Support - Support with Memory and Cognition,Community Support,LIVERSAGE COURT RESIDENTIAL HOME,10638,07/04/2020,3443642,"1,588.86",0.00,N/A,N/A
Mental Health Support,Mental Health - Mental Health Support,Mental Health,LIVERSAGE COURT RESIDENTIAL HOME,10638,07/04/2020,3443808,"1,588.86",0.00,N/A,N/A
Learning Disability Support,Transitions and Ordinary Lives - Learning Disability Support,Transitions and Ordinary Lives,LIVERSAGE COURT RESIDENTIAL HOME,10638,07/04/2020,3443656,"1,987.14",0.00,N/A,N/A
Learning Disability Support,Transitions and Ordinary Lives - Learning Disability Support,Transitions and Ordinary Lives,LONGUEVILLE COURT NURSING HOME,642461,07/04/2020,3445042,"3,842.21",0.00,N/A,N/A
Learning Disability Support,Transitions and Ordinary Lives - Learning Disability Support,Transitions and Ordinary Lives,M G B CARE SERVICES,10539,07/04/2020,3445767,"8,606.00",0.00,N/A,N/A
Learning Disability Support,Transitions and Ordinary Lives - Learning Disability Support,Transitions and Ordinary Lives,M G B CARE SERVICES,10539,07/04/2020,3445834,662.00,0.00,N/A,N/A
Learning Disability Support,Transitions and Ordinary Lives - Learning Disability Support,Transitions and Ordinary Lives,M G B CARE SERVICES,10539,07/04/2020,3445768,"5,385.71",0.00,N/A,N/A
Learning Disability Support,Transitions and Ordinary Lives - Learning Disability Support,Transitions and Ordinary Lives,M G B CARE SERVICES,10539,07/04/2020,3445713,"5,915.74",0.00,N/A,N/A
Learning Disability Support,Transitions and Ordinary Lives - Learning Disability Support,Transitions and Ordinary Lives,M G B CARE SERVICES,10539,07/04/2020,3445898,"1,668.53",0.00,N/A,N/A
Mental Health Support,Community Support - Mental Health Support,Community Support,MANOR FIELDS,10643,07/04/2020,3443436,"1,588.86",0.00,N/A,N/A
Mental Health Support,Community Support - Mental Health Support,Community Support,MANOR FIELDS,10643,07/04/2020,3443764,"1,588.86",0.00,N/A,N/A
Mental Health Support,Community Support - Mental Health Support,Community Support,MANOR FIELDS,10643,07/04/2020,3443519,"1,588.86",0.00,N/A,N/A
Physical Support,Community Support - Physical Support,Community Support,MANOR FIELDS,10643,07/04/2020,3443605,"1,588.86",0.00,N/A,N/A
Physical Support,Community Support - Physical Support,Community Support,MANOR FIELDS,10643,07/04/2020,3443836,"1,588.86",0.00,N/A,N/A
Physical Support,Community Support - Physical Support,Community Support,MANOR FIELDS,10643,07/04/2020,3443678,"1,719.69",0.00,N/A,N/A
Physical Support,Community Support - Physical Support,Community Support,MANOR FIELDS,10643,07/04/2020,3443754,"1,588.86",0.00,N/A,N/A
Physical Support,Community Support - Physical Support,Community Support,MANOR FIELDS,10643,07/04/2020,3443512,521.15,0.00,N/A,N/A
Physical Support,Community Support - Physical Support,Community Support,MANOR FIELDS,10643,07/04/2020,3443937,"1,719.69",0.00,N/A,N/A
Physical Support,Community Support - Physical Support,Community Support,MANOR FIELDS,10643,07/04/2020,3444034,"1,719.69",0.00,N/A,N/A
Support with Memory and Cognition,Community Support - Support with Memory and Cognition,Community Support,MANOR FIELDS,10643,07/04/2020,3443597,"1,588.86",0.00,N/A,N/A
Support with Memory and Cognition,Community Support - Support with Memory and Cognition,Community Support,MANOR FIELDS,10643,07/04/2020,3443747,"1,588.86",0.00,N/A,N/A
Support with Memory and Cognition,Community Support - Support with Memory and Cognition,Community Support,MANOR FIELDS,10643,07/04/2020,3443748,"1,719.69",0.00,N/A,N/A
Support with Memory and Cognition,Community Support - Support with Memory and Cognition,Community Support,MANOR FIELDS,10643,07/04/2020,3443933,"1,588.86",0.00,N/A,N/A
Support with Memory and Cognition,Community Support - Support with Memory and Cognition,Community Support,MANOR FIELDS,10643,07/04/2020,3443832,"1,719.69",0.00,N/A,N/A
Mental Health Support,Mental Health - Mental Health Support,Mental Health,MANOR FIELDS,10643,07/04/2020,3443940,"1,719.69",0.00,N/A,N/A
Mental Health Support,Mental Health - Mental Health Support,Mental Health,MANOR FIELDS,10643,07/04/2020,3443757,"1,377.03",0.00,N/A,N/A
Mental Health Support,Mental Health - Mental Health Support,Mental Health,MANOR FIELDS,10643,07/04/2020,3443503,"1,529.07",0.00,N/A,N/A
Mental Health Support,Mental Health - Mental Health Support,Mental Health,MANOR FIELDS,10643,07/04/2020,3443680,"1,588.86",0.00,N/A,N/A
Mental Health Support,Mental Health - Mental Health Support,Mental Health,MANOR FIELDS,10643,07/04/2020,3443607,"1,588.86",0.00,N/A,N/A
Mental Health Support,Mental Health - Mental Health Support,Mental Health,MANOR FIELDS,10643,07/04/2020,3443671,"2,038.76",0.00,N/A,N/A
Mental Health Support,Mental Health - Mental Health Support,Mental Health,MANOR FIELDS,10643,07/04/2020,3443745,"2,038.76",0.00,N/A,N/A
Mental Health Support,Mental Health - Mental Health Support,Mental Health,MANOR FIELDS,10643,07/04/2020,3443755,"1,588.86",0.00,N/A,N/A
Mental Health Support,Mental Health - Mental Health Support,Mental Health,MANOR FIELDS,10643,07/04/2020,3443928,728.13,0.00,N/A,N/A
Mental Health Support,Mental Health - Mental Health Support,Mental Health,MANOR FIELDS,10643,07/04/2020,3443591,"2,038.76",0.00,N/A,N/A
Mental Health Support,Mental Health - Mental Health Support,Mental Health,MANOR FIELDS,10643,07/04/2020,3443592,"2,038.76",0.00,N/A,N/A
Mental Health Support,Mental Health - Mental Health Support,Mental Health,MANOR FIELDS,10643,07/04/2020,3443423,"2,038.76",0.00,N/A,N/A
Mental Health Support,Mental Health - Mental Health Support,Mental Health,MANOR FIELDS,10643,07/04/2020,3443763,"1,719.69",0.00,N/A,N/A
Mental Health Support,Mental Health - Mental Health Support,Mental Health,MANOR FIELDS,10643,07/04/2020,3443929,"1,165.01",0.00,N/A,N/A
